Workbook

Sheet Instructions
B2: Buildings GHG Mitigation Estimator Worksheet, Version 1
B3: Version updated January 31, 2013
B4: This tool assists Federal agencies in estimating the greenhouse gas mitigation reduction from implementing energy efficiency measures across a portfolio of buildings. The tool is designed to be applied to groups of office buildings, for example at a program, regional, or site level, and can be summarized at the agency level. While the default savings and cost estimates apply to office buildings, users can define their own efficiency measures, costs, and savings estimates for inclusion in the portfolio assessment. More information on user-defined measures can be found in Step 2 of the Buildings Emission Reduction guidance. The output of this tool is a prioritized set of activities that can help the agency to achieve its greenhouse gas reduction targets most cost-effectively.
B6: The default savings estimates in this tool are taken from the U.S. Department of Energy (DOE)'s Advanced Energy Retrofit Guides, and assume the buildings analyzed use electricity and natural gas. Savings estimates for buildings that use other fuel types may differ slightly from the values presented in this tool. Before pursuing actual projects within a building, building audits should be performed to develop a more comprehensive understanding of the systems in place and the energy savings potential.
B8: Before starting, the agency should identify priority groups of buildings and building types to analyze further. Those data serve as the primary inputs to this tool. The process of data collection and analysis is described in Step 2 of the Buildings Emission Reduction guidance on the FEMP greenhouse gas mitigation website.
B10: Follow the instructions in the Input and Summary worksheets to develop mitigation estimates.
B11: Key
B12: Only orange cells require user inputs.
B13: Grey cells are automatic calculations.
B14: Blue cells are reference-based assumptions.
B16: Worksheets
B17: Input: Enter the information requested for the portfolio of buildings in the assessment. Calculations for each entry are provided here.
B18: Summary: Calculates the agency-wide results, and lists the aggregated results for the agency, programs, and sites. This also lists the results for each measure when implemented across the agency as the user indicates.
B19: Graphs: Provides a visual summary of the aggregated results for the programs, sites and measures.
B20: Measures: Lists the background calculations of the measures with user-defined measures in Rows 72 to 76.
B21: References: Lists the references used within the worksheets to calculate the GHG reduction potential.
B23: NOTES:
B24: 1. Macros must be enabled for the embedded calculations to operate properly.
B25: 2. This estimator was developed using Microsoft Excel 2010. Contact FEMP if using an older version of Microsoft Excel and are experiencing errors.

Sheet Input
B1: Buildings Portfolio GHG Mitigation Estimator - (Worksheet with Example Data)
B3: Key: | C3: User Entered | F3: Agency: | H3: ABC
C4: Calculated | F4: Baseline (2008) Buildings Emissions: | H4: 40305755
C5: Reference-based value
Q9: Total Annual Energy Savings (kBtu) | R9: Total Annual Electricity GHG Reduction (MTCO2e) | S9: Total Annual Natural Gas GHG Reduction (MTCO2e) | T9: Total Annual GHG Reduction (MTCO2e) | W9: Total Cumulative GHG Reduction (MTCO2e) | Y9: Total Capital Cost ($) | AA9: Total Annual Cost Savings ($/year) | AB9: Average Simple Payback (years)
B10: Required Inputs | M10: Calculations used in Estimator - No Input Needed | Q10: =SUM(Q13:Q68) -> 115367217.4 | R10: =SUM(R13:R68) -> 553.0536857 | S10: =SUM(S13:S68) -> 3630.65552 | T10: =SUM(T13:T68) -> 4183.709206 | W10: =SUM(W13:W68) -> 83378.41796 | Y10: =SUM(Y13:Y68) -> 5766675.4 | AA10: =SUM(AA13:AA68) -> 2160640 | AB10: =Y10/AA10 -> 2.668966325
B12: Program Name | C12: Site Name | D12: Climate Type1 (drop down menu) | E12: Total Building Floor Area (SF) | F12: eGRID Region2 (drop down menu) | G12: Default Measure or User-defined Measure? (drop down menu) | H12: Measure Name3 (drop down menu) | I12: Applicable SF (%) | J12: Ease of Implementation | K12: Proceed to Step 5 - Summary (click here) | L12: blank | M12: eGRID Emission Factor (kg CO2e/kBtu) | N12: Electricity Savings (kBtu/sf) | O12: Natural Gas Savings (kBtu/sf) | P12: Energy Savings (kBtu/sf) | Q12: Annual Energy Savings (kBtu/yr) | R12: Electricity Annual GHG Reduction (MTCO2e) | S12: Natural Gas Annual GHG Reduction (MTCO2e) | T12: Annual GHG Reduction (MTCO2e/year) | U12: Annual GHG Reduction (MTCO2e/KSF) | V12: Effective Useful Life (years) | W12: Cumulative GHG Reduction (MTCO2e) | X12: Capital Cost Index ($/sf) | Y12: Capital Cost ($) | Z12: Annual Cost Savings ($/sf) | AA12: Annual Cost Savings ($/year) | AB12: Simple Payback (years) | AC12: Cost Effectiveness ($/MTCO2e) | AD12: Rank (based on $/MTCO2e)
B13: Program B | C13: Site 3 | D13: Cold | E13: 2200000 | F13: RFC West | G13: Default | H13: Replace the tenant server room cooling units with more efficient units | I13: 0.4 | J13: High | M13: =IF(F13<>0,VLOOKUP(F13,'Emission Factors'!$A$4:$J$31,7,FALSE)," ") -> 0.008218649926 | N13: =IF($G13="User-defined Measure",VLOOKUP($H13,Measures!$C$73:$W$77,16,FALSE),IF($D13="Hot & Humid",VLOOKUP($H13,Measures!$C$6:$W$19,16,FALSE),IF($D13="Hot & Dry",VLOOKUP($H13,Measures!$C$20:$W$32,16,FALSE),IF($D13="Marine",VLOOKUP($H13,Measures!$C$33:$W$45,16,FALSE),IF($D13="Cold",VLOOKUP($H13,Measures!$C$46:$W$58,16,FALSE),IF($D13="Very Cold",VLOOKUP($H13,Measures!$C$59:$W$72,16,FALSE)," ")))))) -> 0.83428518 | O13: =IF($G13="User-defined Measure",VLOOKUP($H13,Measures!$C$73:$W$77,19,FALSE),IF($D13="Hot & Humid",VLOOKUP($H13,Measures!$C$6:$W$19,19,FALSE),IF($D13="Hot & Dry",VLOOKUP($H13,Measures!$C$20:$W$32,19,FALSE),IF($D13="Marine",VLOOKUP($H13,Measures!$C$33:$W$45,19,FALSE),IF($D13="Cold",VLOOKUP($H13,Measures!$C$46:$W$58,19,FALSE),IF($D13="Very Cold",VLOOKUP($H13,Measures!$C$59:$W$72,19,FALSE)," ")))))) -> 0 | P13: =IF(B13=0," ",SUM(N13,O13)) -> 0.83428518 | Q13: =IF(B13=0," ",SUM(N13,O13)*E13*I13) -> 734170.9584 | R13: =IF(B13=0," ",PRODUCT(M13,N13,E13,I13)/1000) -> 6.033894093 | S13: =IF(B13=0," ",PRODUCT(O13,'Emission Factors'!$J$36,E13,I13)/1000) -> 0 | T13: =IF(B13=0," ",R13+S13) -> 6.033894093 | U13: =IF(E13=0,"",PRODUCT(1000,(T13/PRODUCT(E13,I13)))) -> 0.006856697833 | V13: =IF($G13="User-defined Measure",VLOOKUP($H13,Measures!$C$73:$X$77,22,FALSE),IF($D13="Hot & Humid",VLOOKUP($H13,Measures!$C$6:$X$19,22,FALSE),IF($D13="Hot & Dry",VLOOKUP($H13,Measures!$C$20:$X$32,22,FALSE),IF($D13="Marine",VLOOKUP($H13,Measures!$C$33:$X$45,22,FALSE),IF($D13="Cold",VLOOKUP($H13,Measures!$C$46:$X$58,22,FALSE),IF($D13="Very Cold",VLOOKUP($H13,Measures!$C$59:$X$72,22,FALSE)," ")))))) -> 15 | W13: =IF(E13=0," ",V13*T13) -> 90.50841139 | X13: =IF($G13="User-defined Measure",VLOOKUP($H13,Measures!$C$73:$W$77,9,FALSE),IF($D13="Hot & Humid",VLOOKUP($H13,Measures!$C$6:$W$19,9,FALSE),IF($D13="Hot & Dry",VLOOKUP($H13,Measures!$C$20:$W$32,9,FALSE),IF($D13="Marine",VLOOKUP($H13,Measures!$C$33:$W$45,9,FALSE),IF($D13="Cold",VLOOKUP($H13,Measures!$C$46:$W$58,9,FALSE),IF($D13="Very Cold",VLOOKUP($H13,Measures!$C$59:$W$72,9,FALSE)," ")))))) -> 0.255455 | Y13: =IF(B13=0," ",PRODUCT(X13,E13,I13)) -> 224800.4 | Z13: =IF($G13="User-defined Measure",VLOOKUP($H13,Measures!$C$73:$W$77,12,FALSE),IF($D13="Hot & Humid",VLOOKUP($H13,Measures!$C$6:$W$19,12,FALSE),IF($D13="Hot & Dry",VLOOKUP($H13,Measures!$C$20:$W$32,12,FALSE),IF($D13="Marine",VLOOKUP($H13,Measures!$C$33:$W$45,12,FALSE),IF($D13="Cold",VLOOKUP($H13,Measures!$C$46:$W$58,12,FALSE),IF($D13="Very Cold",VLOOKUP($H13,Measures!$C$59:$W$72,12,FALSE)," ")))))) -> 0.0255 | AA13: =IF(B13=0," ",PRODUCT(Z13,E13,I13)) -> 22440 | AB13: =IF(B13=0," ",Y13/AA13) -> 10.01784314 | AC13: =IF(B13=0," ",IF(W13 = 0, 0, Y13/W13)) -> 2483.751472 | AD13: =IF(B13=0," ",RANK(AC13,AC$13:AC$68,1)) -> 9
B14: Program B | C14: Site 3 | D14: Cold | E14: 2200000 | F14: RFC West | G14: Default | H14: Standard Retrofit Package | I14: 0.2 | J14: Medium | M14: =IF(F14<>0,VLOOKUP(F14,'Emission Factors'!$A$4:$J$31,7,FALSE)," ") -> 0.008218649926 | N14: =IF($G14="User-defined Measure",VLOOKUP($H14,Measures!$C$73:$W$77,16,FALSE),IF($D14="Hot & Humid",VLOOKUP($H14,Measures!$C$6:$W$19,16,FALSE),IF($D14="Hot & Dry",VLOOKUP($H14,Measures!$C$20:$W$32,16,FALSE),IF($D14="Marine",VLOOKUP($H14,Measures!$C$33:$W$45,16,FALSE),IF($D14="Cold",VLOOKUP($H14,Measures!$C$46:$W$58,16,FALSE),IF($D14="Very Cold",VLOOKUP($H14,Measures!$C$59:$W$72,16,FALSE)," ")))))) -> 13.75036 | O14: =IF($G14="User-defined Measure",VLOOKUP($H14,Measures!$C$73:$W$77,19,FALSE),IF($D14="Hot & Humid",VLOOKUP($H14,Measures!$C$6:$W$19,19,FALSE),IF($D14="Hot & Dry",VLOOKUP($H14,Measures!$C$20:$W$32,19,FALSE),IF($D14="Marine",VLOOKUP($H14,Measures!$C$33:$W$45,19,FALSE),IF($D14="Cold",VLOOKUP($H14,Measures!$C$46:$W$58,19,FALSE),IF($D14="Very Cold",VLOOKUP($H14,Measures!$C$59:$W$72,19,FALSE)," ")))))) -> 19.5 | P14: 33.25036 | Q14: 14630158.4 | R14: 49.72413389 | S14: =IF(B14=0," ",PRODUCT(O14,'Emission Factors'!$J$36,E14,I14)/1000) -> 455.35776 | T14: 505.0818939 | U14: 1.147913395 | V14: =IF($G14="User-defined Measure",VLOOKUP($H14,Measures!$C$73:$X$77,22,FALSE),IF($D14="Hot & Humid",VLOOKUP($H14,Measures!$C$6:$X$19,22,FALSE),IF($D14="Hot & Dry",VLOOKUP($H14,Measures!$C$20:$X$32,22,FALSE),IF($D14="Marine",VLOOKUP($H14,Measures!$C$33:$X$45,22,FALSE),IF($D14="Cold",VLOOKUP($H14,Measures!$C$46:$X$58,22,FALSE),IF($D14="Very Cold",VLOOKUP($H14,Measures!$C$59:$X$72,22,FALSE)," ")))))) -> 20 | W14: =IF(E14=0," ",V14*T14) -> 10101.63788 | X14: =IF($G14="User-defined Measure",VLOOKUP($H14,Measures!$C$73:$W$77,9,FALSE),IF($D14="Hot & Humid",VLOOKUP($H14,Measures!$C$6:$W$19,9,FALSE),IF($D14="Hot & Dry",VLOOKUP($H14,Measures!$C$20:$W$32,9,FALSE),IF($D14="Marine",VLOOKUP($H14,Measures!$C$33:$W$45,9,FALSE),IF($D14="Cold",VLOOKUP($H14,Measures!$C$46:$W$58,9,FALSE),IF($D14="Very Cold",VLOOKUP($H14,Measures!$C$59:$W$72,9,FALSE)," ")))))) -> 2.195 | Y14: 965800 | Z14: =IF($G14="User-defined Measure",VLOOKUP($H14,Measures!$C$73:$W$77,12,FALSE),IF($D14="Hot & Humid",VLOOKUP($H14,Measures!$C$6:$W$19,12,FALSE),IF($D14="Hot & Dry",VLOOKUP($H14,Measures!$C$20:$W$32,12,FALSE),IF($D14="Marine",VLOOKUP($H14,Measures!$C$33:$W$45,12,FALSE),IF($D14="Cold",VLOOKUP($H14,Measures!$C$46:$W$58,12,FALSE),IF($D14="Very Cold",VLOOKUP($H14,Measures!$C$59:$W$72,12,FALSE)," ")))))) -> 0.935 | AA14: 411400 | AB14: 2.347593583 | AC14: =IF(B14=0," ",IF(W14 = 0, 0, Y14/W14)) -> 95.60825796 | AD14: 5
B15: Program B | C15: Site 3 | D15: Cold | E15: 2200000 | F15: RFC West | G15: Default | H15: Major Renovation (Deep Retrofit) Package | I15: 0.1 | J15: Low | M15: =IF(F15<>0,VLOOKUP(F15,'Emission Factors'!$A$4:$J$31,7,FALSE)," ") -> 0.008218649926 | N15: =IF($G15="User-defined Measure",VLOOKUP($H15,Measures!$C$73:$W$77,16,FALSE),IF($D15="Hot & Humid",VLOOKUP($H15,Measures!$C$6:$W$19,16,FALSE),IF($D15="Hot & Dry",VLOOKUP($H15,Measures!$C$20:$W$32,16,FALSE),IF($D15="Marine",VLOOKUP($H15,Measures!$C$33:$W$45,16,FALSE),IF($D15="Cold",VLOOKUP($H15,Measures!$C$46:$W$58,16,FALSE),IF($D15="Very Cold",VLOOKUP($H15,Measures!$C$59:$W$72,16,FALSE)," ")))))) -> 19.9602 | O15: =IF($G15="User-defined Measure",VLOOKUP($H15,Measures!$C$73:$W$77,19,FALSE),IF($D15="Hot & Humid",VLOOKUP($H15,Measures!$C$6:$W$19,19,FALSE),IF($D15="Hot & Dry",VLOOKUP($H15,Measures!$C$20:$W$32,19,FALSE),IF($D15="Marine",VLOOKUP($H15,Measures!$C$33:$W$45,19,FALSE),IF($D15="Cold",VLOOKUP($H15,Measures!$C$46:$W$58,19,FALSE),IF($D15="Very Cold",VLOOKUP($H15,Measures!$C$59:$W$72,19,FALSE)," ")))))) -> 22 | P15: 41.9602 | Q15: 9231244 | R15: 36.09009718 | S15: =IF(B15=0," ",PRODUCT(O15,'Emission Factors'!$J$36,E15,I15)/1000) -> 256.86848 | T15: 292.9585772 | U15: 1.331629896 | V15: =IF($G15="User-defined Measure",VLOOKUP($H15,Measures!$C$73:$X$77,22,FALSE),IF($D15="Hot & Humid",VLOOKUP($H15,Measures!$C$6:$X$19,22,FALSE),IF($D15="Hot & Dry",VLOOKUP($H15,Measures!$C$20:$X$32,22,FALSE),IF($D15="Marine",VLOOKUP($H15,Measures!$C$33:$X$45,22,FALSE),IF($D15="Cold",VLOOKUP($H15,Measures!$C$46:$X$58,22,FALSE),IF($D15="Very Cold",VLOOKUP($H15,Measures!$C$59:$X$72,22,FALSE)," ")))))) -> 20 | W15: 5859.171544 | X15: =IF($G15="User-defined Measure",VLOOKUP($H15,Measures!$C$73:$W$77,9,FALSE),IF($D15="Hot & Humid",VLOOKUP($H15,Measures!$C$6:$W$19,9,FALSE),IF($D15="Hot & Dry",VLOOKUP($H15,Measures!$C$20:$W$32,9,FALSE),IF($D15="Marine",VLOOKUP($H15,Measures!$C$33:$W$45,9,FALSE),IF($D15="Cold",VLOOKUP($H15,Measures!$C$46:$W$58,9,FALSE),IF($D15="Very Cold",VLOOKUP($H15,Measures!$C$59:$W$72,9,FALSE)," ")))))) -> 4.425 | Y15: 973500 | Z15: =IF($G15="User-defined Measure",VLOOKUP($H15,Measures!$C$73:$W$77,12,FALSE),IF($D15="Hot & Humid",VLOOKUP($H15,Measures!$C$6:$W$19,12,FALSE),IF($D15="Hot & Dry",VLOOKUP($H15,Measures!$C$20:$W$32,12,FALSE),IF($D15="Marine",VLOOKUP($H15,Measures!$C$33:$W$45,12,FALSE),IF($D15="Cold",VLOOKUP($H15,Measures!$C$46:$W$58,12,FALSE),IF($D15="Very Cold",VLOOKUP($H15,Measures!$C$59:$W$72,12,FALSE)," ")))))) -> 0.765 | AA15: 168300 | AB15: 5.784313725 | AC15: 166.1497693 | AD15: 8
B16: Program B | C16: Site 2 | D16: Marine | E16: 4500000 | F16: WECC Northwest | G16: Default | H16: RCx (EBCx) Package | I16: 0.3 | J16: Medium | M16: =IF(F16<>0,VLOOKUP(F16,'Emission Factors'!$A$4:$J$31,7,FALSE)," ") -> 0.006936841723 | N16: =IF($G16="User-defined Measure",VLOOKUP($H16,Measures!$C$73:$W$77,16,FALSE),IF($D16="Hot & Humid",VLOOKUP($H16,Measures!$C$6:$W$19,16,FALSE),IF($D16="Hot & Dry",VLOOKUP($H16,Measures!$C$20:$W$32,16,FALSE),IF($D16="Marine",VLOOKUP($H16,Measures!$C$33:$W$45,16,FALSE),IF($D16="Cold",VLOOKUP($H16,Measures!$C$46:$W$58,16,FALSE),IF($D16="Very Cold",VLOOKUP($H16,Measures!$C$59:$W$72,16,FALSE)," ")))))) -> 6.9946 | O16: =IF($G16="User-defined Measure",VLOOKUP($H16,Measures!$C$73:$W$77,19,FALSE),IF($D16="Hot & Humid",VLOOKUP($H16,Measures!$C$6:$W$19,19,FALSE),IF($D16="Hot & Dry",VLOOKUP($H16,Measures!$C$20:$W$32,19,FALSE),IF($D16="Marine",VLOOKUP($H16,Measures!$C$33:$W$45,19,FALSE),IF($D16="Cold",VLOOKUP($H16,Measures!$C$46:$W$58,19,FALSE),IF($D16="Very Cold",VLOOKUP($H16,Measures!$C$59:$W$72,19,FALSE)," ")))))) -> 18.5 | P16: 25.4946 | Q16: 34417710 | R16: 65.50258471 | S16: =IF(B16=0," ",PRODUCT(O16,'Emission Factors'!$J$36,E16,I16)/1000) -> 1325.4732 | T16: 1390.975785 | U16: 1.030352433 | V16: =IF($G16="User-defined Measure",VLOOKUP($H16,Measures!$C$73:$X$77,22,FALSE),IF($D16="Hot & Humid",VLOOKUP($H16,Measures!$C$6:$X$19,22,FALSE),IF($D16="Hot & Dry",VLOOKUP($H16,Measures!$C$20:$X$32,22,FALSE),IF($D16="Marine",VLOOKUP($H16,Measures!$C$33:$X$45,22,FALSE),IF($D16="Cold",VLOOKUP($H16,Measures!$C$46:$X$58,22,FALSE),IF($D16="Very Cold",VLOOKUP($H16,Measures!$C$59:$X$72,22,FALSE)," ")))))) -> 20 | W16: 27819.51569 | X16: =IF($G16="User-defined Measure",VLOOKUP($H16,Measures!$C$73:$W$77,9,FALSE),IF($D16="Hot & Humid",VLOOKUP($H16,Measures!$C$6:$W$19,9,FALSE),IF($D16="Hot & Dry",VLOOKUP($H16,Measures!$C$20:$W$32,9,FALSE),IF($D16="Marine",VLOOKUP($H16,Measures!$C$33:$W$45,9,FALSE),IF($D16="Cold",VLOOKUP($H16,Measures!$C$46:$W$58,9,FALSE),IF($D16="Very Cold",VLOOKUP($H16,Measures!$C$59:$W$72,9,FALSE)," ")))))) -> 0.3055 | Y16: 412425 | Z16: =IF($G16="User-defined Measure",VLOOKUP($H16,Measures!$C$73:$W$77,12,FALSE),IF($D16="Hot & Humid",VLOOKUP($H16,Measures!$C$6:$W$19,12,FALSE),IF($D16="Hot & Dry",VLOOKUP($H16,Measures!$C$20:$W$32,12,FALSE),IF($D16="Marine",VLOOKUP($H16,Measures!$C$33:$W$45,12,FALSE),IF($D16="Cold",VLOOKUP($H16,Measures!$C$46:$W$58,12,FALSE),IF($D16="Very Cold",VLOOKUP($H16,Measures!$C$59:$W$72,12,FALSE)," ")))))) -> 0.36 | AA16: 486000 | AB16: 0.8486111111 | AC16: 14.82502444 | AD16: 1
B17: Program B | C17: Site 2 | D17: Marine | E17: 4500000 | F17: WECC Northwest | G17: Default | H17: Standard Retrofit Package | I17: 0.1 | J17: High | M17: =IF(F17<>0,VLOOKUP(F17,'Emission Factors'!$A$4:$J$31,7,FALSE)," ") -> 0.006936841723 | N17: =IF($G17="User-defined Measure",VLOOKUP($H17,Measures!$C$73:$W$77,16,FALSE),IF($D17="Hot & Humid",VLOOKUP($H17,Measures!$C$6:$W$19,16,FALSE),IF($D17="Hot & Dry",VLOOKUP($H17,Measures!$C$20:$W$32,16,FALSE),IF($D17="Marine",VLOOKUP($H17,Measures!$C$33:$W$45,16,FALSE),IF($D17="Cold",VLOOKUP($H17,Measures!$C$46:$W$58,16,FALSE),IF($D17="Very Cold",VLOOKUP($H17,Measures!$C$59:$W$72,16,FALSE)," ")))))) -> 14.94456 | O17: =IF($G17="User-defined Measure",VLOOKUP($H17,Measures!$C$73:$W$77,19,FALSE),IF($D17="Hot & Humid",VLOOKUP($H17,Measures!$C$6:$W$19,19,FALSE),IF($D17="Hot & Dry",VLOOKUP($H17,Measures!$C$20:$W$32,19,FALSE),IF($D17="Marine",VLOOKUP($H17,Measures!$C$33:$W$45,19,FALSE),IF($D17="Cold",VLOOKUP($H17,Measures!$C$46:$W$58,19,FALSE),IF($D17="Very Cold",VLOOKUP($H17,Measures!$C$59:$W$72,19,FALSE)," ")))))) -> 25.5 | P17: 40.44456 | Q17: 18200052 | R17: 46.6506213 | S17: =IF(B17=0," ",PRODUCT(O17,'Emission Factors'!$J$36,E17,I17)/1000) -> 609.0012 | T17: 655.6518213 | U17: 1.457004047 | V17: =IF($G17="User-defined Measure",VLOOKUP($H17,Measures!$C$73:$X$77,22,FALSE),IF($D17="Hot & Humid",VLOOKUP($H17,Measures!$C$6:$X$19,22,FALSE),IF($D17="Hot & Dry",VLOOKUP($H17,Measures!$C$20:$X$32,22,FALSE),IF($D17="Marine",VLOOKUP($H17,Measures!$C$33:$X$45,22,FALSE),IF($D17="Cold",VLOOKUP($H17,Measures!$C$46:$X$58,22,FALSE),IF($D17="Very Cold",VLOOKUP($H17,Measures!$C$59:$X$72,22,FALSE)," ")))))) -> 20 | W17: 13113.03643 | X17: =IF($G17="User-defined Measure",VLOOKUP($H17,Measures!$C$73:$W$77,9,FALSE),IF($D17="Hot & Humid",VLOOKUP($H17,Measures!$C$6:$W$19,9,FALSE),IF($D17="Hot & Dry",VLOOKUP($H17,Measures!$C$20:$W$32,9,FALSE),IF($D17="Marine",VLOOKUP($H17,Measures!$C$33:$W$45,9,FALSE),IF($D17="Cold",VLOOKUP($H17,Measures!$C$46:$W$58,9,FALSE),IF($D17="Very Cold",VLOOKUP($H17,Measures!$C$59:$W$72,9,FALSE)," ")))))) -> 2.195 | Y17: 987750 | Z17: =IF($G17="User-defined Measure",VLOOKUP($H17,Measures!$C$73:$W$77,12,FALSE),IF($D17="Hot & Humid",VLOOKUP($H17,Measures!$C$6:$W$19,12,FALSE),IF($D17="Hot & Dry",VLOOKUP($H17,Measures!$C$20:$W$32,12,FALSE),IF($D17="Marine",VLOOKUP($H17,Measures!$C$33:$W$45,12,FALSE),IF($D17="Cold",VLOOKUP($H17,Measures!$C$46:$W$58,12,FALSE),IF($D17="Very Cold",VLOOKUP($H17,Measures!$C$59:$W$72,12,FALSE)," ")))))) -> 0.995 | AA17: 447750 | AB17: 2.206030151 | AC17: 75.32580311 | AD17: 4
B18: Program B | C18: Site 2 | D18: Hot & Dry | E18: 200000 | F18: WECC Northwest | G18: User-defined Measure | H18: Install IR heating | I18: 0.2 | J18: Low | M18: =IF(F18<>0,VLOOKUP(F18,'Emission Factors'!$A$4:$J$31,7,FALSE)," ") -> 0.006936841723 | N18: =IF($G18="User-defined Measure",VLOOKUP($H18,Measures!$C$73:$W$77,16,FALSE),IF($D18="Hot & Humid",VLOOKUP($H18,Measures!$C$6:$W$19,16,FALSE),IF($D18="Hot & Dry",VLOOKUP($H18,Measures!$C$20:$W$32,16,FALSE),IF($D18="Marine",VLOOKUP($H18,Measures!$C$33:$W$45,16,FALSE),IF($D18="Cold",VLOOKUP($H18,Measures!$C$46:$W$58,16,FALSE),IF($D18="Very Cold",VLOOKUP($H18,Measures!$C$59:$W$72,16,FALSE)," ")))))) -> 0.0853 | O18: =IF($G18="User-defined Measure",VLOOKUP($H18,Measures!$C$73:$W$77,19,FALSE),IF($D18="Hot & Humid",VLOOKUP($H18,Measures!$C$6:$W$19,19,FALSE),IF($D18="Hot & Dry",VLOOKUP($H18,Measures!$C$20:$W$32,19,FALSE),IF($D18="Marine",VLOOKUP($H18,Measures!$C$33:$W$45,19,FALSE),IF($D18="Cold",VLOOKUP($H18,Measures!$C$46:$W$58,19,FALSE),IF($D18="Very Cold",VLOOKUP($H18,Measures!$C$59:$W$72,19,FALSE)," ")))))) -> 12.5 | P18: 12.5853 | Q18: 503412 | R18: 0.02366850396 | S18: =IF(B18=0," ",PRODUCT(O18,'Emission Factors'!$J$36,E18,I18)/1000) -> 26.536 | T18: 26.5596685 | U18: 0.6639917126 | V18: =IF($G18="User-defined Measure",VLOOKUP($H18,Measures!$C$73:$X$77,22,FALSE),IF($D18="Hot & Humid",VLOOKUP($H18,Measures!$C$6:$X$19,22,FALSE),IF($D18="Hot & Dry",VLOOKUP($H18,Measures!$C$20:$X$32,22,FALSE),IF($D18="Marine",VLOOKUP($H18,Measures!$C$33:$X$45,22,FALSE),IF($D18="Cold",VLOOKUP($H18,Measures!$C$46:$X$58,22,FALSE),IF($D18="Very Cold",VLOOKUP($H18,Measures!$C$59:$X$72,22,FALSE)," ")))))) -> 10 | W18: 265.596685 | X18: =IF($G18="User-defined Measure",VLOOKUP($H18,Measures!$C$73:$W$77,9,FALSE),IF($D18="Hot & Humid",VLOOKUP($H18,Measures!$C$6:$W$19,9,FALSE),IF($D18="Hot & Dry",VLOOKUP($H18,Measures!$C$20:$W$32,9,FALSE),IF($D18="Marine",VLOOKUP($H18,Measures!$C$33:$W$45,9,FALSE),IF($D18="Cold",VLOOKUP($H18,Measures!$C$46:$W$58,9,FALSE),IF($D18="Very Cold",VLOOKUP($H18,Measures!$C$59:$W$72,9,FALSE)," ")))))) -> 0.5 | Y18: 20000 | Z18: =IF($G18="User-defined Measure",VLOOKUP($H18,Measures!$C$73:$W$77,12,FALSE),IF($D18="Hot & Humid",VLOOKUP($H18,Measures!$C$6:$W$19,12,FALSE),IF($D18="Hot & Dry",VLOOKUP($H18,Measures!$C$20:$W$32,12,FALSE),IF($D18="Marine",VLOOKUP($H18,Measures!$C$33:$W$45,12,FALSE),IF($D18="Cold",VLOOKUP($H18,Measures!$C$46:$W$58,12,FALSE),IF($D18="Very Cold",VLOOKUP($H18,Measures!$C$59:$W$72,12,FALSE)," ")))))) -> 0.15 | AA18: 6000 | AB18: 3.333333333 | AC18: 75.30214467 | AD18: 3
B19: Program B | C19: Site 4 | D19: Hot & Humid | E19: 2200000 | F19: FRCC All | G19: Default | H19: RCx (EBCx) Package | I19: 0.5 | J19: Medium | M19: =IF(F19<>0,VLOOKUP(F19,'Emission Factors'!$A$4:$J$31,7,FALSE)," ") -> 0.01779807858 | N19: =IF($G19="User-defined Measure",VLOOKUP($H19,Measures!$C$73:$W$77,16,FALSE),IF($D19="Hot & Humid",VLOOKUP($H19,Measures!$C$6:$W$19,16,FALSE),IF($D19="Hot & Dry",VLOOKUP($H19,Measures!$C$20:$W$32,16,FALSE),IF($D19="Marine",VLOOKUP($H19,Measures!$C$33:$W$45,16,FALSE),IF($D19="Cold",VLOOKUP($H19,Measures!$C$46:$W$58,16,FALSE),IF($D19="Very Cold",VLOOKUP($H19,Measures!$C$59:$W$72,16,FALSE)," ")))))) -> 5.44214 | O19: =IF($G19="User-defined Measure",VLOOKUP($H19,Measures!$C$73:$W$77,19,FALSE),IF($D19="Hot & Humid",VLOOKUP($H19,Measures!$C$6:$W$19,19,FALSE),IF($D19="Hot & Dry",VLOOKUP($H19,Measures!$C$20:$W$32,19,FALSE),IF($D19="Marine",VLOOKUP($H19,Measures!$C$33:$W$45,19,FALSE),IF($D19="Cold",VLOOKUP($H19,Measures!$C$46:$W$58,19,FALSE),IF($D19="Very Cold",VLOOKUP($H19,Measures!$C$59:$W$72,19,FALSE)," ")))))) -> 8 | P19: 13.44214 | Q19: 14786354 | R19: 106.5455989 | S19: =IF(B19=0," ",PRODUCT(O19,'Emission Factors'!$J$36,E19,I19)/1000) -> 467.0336 | T19: 573.5791989 | U19: 0.5214356354 | V19: =IF($G19="User-defined Measure",VLOOKUP($H19,Measures!$C$73:$X$77,22,FALSE),IF($D19="Hot & Humid",VLOOKUP($H19,Measures!$C$6:$X$19,22,FALSE),IF($D19="Hot & Dry",VLOOKUP($H19,Measures!$C$20:$X$32,22,FALSE),IF($D19="Marine",VLOOKUP($H19,Measures!$C$33:$X$45,22,FALSE),IF($D19="Cold",VLOOKUP($H19,Measures!$C$46:$X$58,22,FALSE),IF($D19="Very Cold",VLOOKUP($H19,Measures!$C$59:$X$72,22,FALSE)," ")))))) -> 20 | W19: 11471.58398 | X19: =IF($G19="User-defined Measure",VLOOKUP($H19,Measures!$C$73:$W$77,9,FALSE),IF($D19="Hot & Humid",VLOOKUP($H19,Measures!$C$6:$W$19,9,FALSE),IF($D19="Hot & Dry",VLOOKUP($H19,Measures!$C$20:$W$32,9,FALSE),IF($D19="Marine",VLOOKUP($H19,Measures!$C$33:$W$45,9,FALSE),IF($D19="Cold",VLOOKUP($H19,Measures!$C$46:$W$58,9,FALSE),IF($D19="Very Cold",VLOOKUP($H19,Measures!$C$59:$W$72,9,FALSE)," ")))))) -> 0.3055 | Y19: 336050 | Z19: =IF($G19="User-defined Measure",VLOOKUP($H19,Measures!$C$73:$W$77,12,FALSE),IF($D19="Hot & Humid",VLOOKUP($H19,Measures!$C$6:$W$19,12,FALSE),IF($D19="Hot & Dry",VLOOKUP($H19,Measures!$C$20:$W$32,12,FALSE),IF($D19="Marine",VLOOKUP($H19,Measures!$C$33:$W$45,12,FALSE),IF($D19="Cold",VLOOKUP($H19,Measures!$C$46:$W$58,12,FALSE),IF($D19="Very Cold",VLOOKUP($H19,Measures!$C$59:$W$72,12,FALSE)," ")))))) -> 0.1815 | AA19: 199650 | AB19: 1.683195592 | AC19: 29.29412369 | AD19: 2
B20: Program B | C20: Site 4 | D20: Hot & Humid | E20: 2200000 | F20: FRCC All | G20: Default | H20: Standard Retrofit Package | I20: 0.15 | J20: High | M20: =IF(F20<>0,VLOOKUP(F20,'Emission Factors'!$A$4:$J$31,7,FALSE)," ") -> 0.01779807858 | N20: =IF($G20="User-defined Measure",VLOOKUP($H20,Measures!$C$73:$W$77,16,FALSE),IF($D20="Hot & Humid",VLOOKUP($H20,Measures!$C$6:$W$19,16,FALSE),IF($D20="Hot & Dry",VLOOKUP($H20,Measures!$C$20:$W$32,16,FALSE),IF($D20="Marine",VLOOKUP($H20,Measures!$C$33:$W$45,16,FALSE),IF($D20="Cold",VLOOKUP($H20,Measures!$C$46:$W$58,16,FALSE),IF($D20="Very Cold",VLOOKUP($H20,Measures!$C$59:$W$72,16,FALSE)," ")))))) -> 15.354 | O20: =IF($G20="User-defined Measure",VLOOKUP($H20,Measures!$C$73:$W$77,19,FALSE),IF($D20="Hot & Humid",VLOOKUP($H20,Measures!$C$6:$W$19,19,FALSE),IF($D20="Hot & Dry",VLOOKUP($H20,Measures!$C$20:$W$32,19,FALSE),IF($D20="Marine",VLOOKUP($H20,Measures!$C$33:$W$45,19,FALSE),IF($D20="Cold",VLOOKUP($H20,Measures!$C$46:$W$58,19,FALSE),IF($D20="Very Cold",VLOOKUP($H20,Measures!$C$59:$W$72,19,FALSE)," ")))))) -> 14 | P20: 29.354 | Q20: 9686820 | R20: 90.17966051 | S20: =IF(B20=0," ",PRODUCT(O20,'Emission Factors'!$J$36,E20,I20)/1000) -> 245.19264 | T20: 335.3723005 | U20: 1.016279699 | V20: =IF($G20="User-defined Measure",VLOOKUP($H20,Measures!$C$73:$X$77,22,FALSE),IF($D20="Hot & Humid",VLOOKUP($H20,Measures!$C$6:$X$19,22,FALSE),IF($D20="Hot & Dry",VLOOKUP($H20,Measures!$C$20:$X$32,22,FALSE),IF($D20="Marine",VLOOKUP($H20,Measures!$C$33:$X$45,22,FALSE),IF($D20="Cold",VLOOKUP($H20,Measures!$C$46:$X$58,22,FALSE),IF($D20="Very Cold",VLOOKUP($H20,Measures!$C$59:$X$72,22,FALSE)," ")))))) -> 20 | W20: 6707.44601 | X20: =IF($G20="User-defined Measure",VLOOKUP($H20,Measures!$C$73:$W$77,9,FALSE),IF($D20="Hot & Humid",VLOOKUP($H20,Measures!$C$6:$W$19,9,FALSE),IF($D20="Hot & Dry",VLOOKUP($H20,Measures!$C$20:$W$32,9,FALSE),IF($D20="Marine",VLOOKUP($H20,Measures!$C$33:$W$45,9,FALSE),IF($D20="Cold",VLOOKUP($H20,Measures!$C$46:$W$58,9,FALSE),IF($D20="Very Cold",VLOOKUP($H20,Measures!$C$59:$W$72,9,FALSE)," ")))))) -> 2.11 | Y20: 696300 | Z20: =IF($G20="User-defined Measure",VLOOKUP($H20,Measures!$C$73:$W$77,12,FALSE),IF($D20="Hot & Humid",VLOOKUP($H20,Measures!$C$6:$W$19,12,FALSE),IF($D20="Hot & Dry",VLOOKUP($H20,Measures!$C$20:$W$32,12,FALSE),IF($D20="Marine",VLOOKUP($H20,Measures!$C$33:$W$45,12,FALSE),IF($D20="Cold",VLOOKUP($H20,Measures!$C$46:$W$58,12,FALSE),IF($D20="Very Cold",VLOOKUP($H20,Measures!$C$59:$W$72,12,FALSE)," ")))))) -> 0.685 | AA20: 226050 | AB20: 3.080291971 | AC20: 103.8100044 | AD20: 6
B21: Program B | C21: Site 4 | D21: Hot & Humid | E21: 2200000 | F21: FRCC All | G21: Default | H21: Major Renovation (Deep Retrofit) Package | I21: 0.15 | J21: Low | M21: =IF(F21<>0,VLOOKUP(F21,'Emission Factors'!$A$4:$J$31,7,FALSE)," ") -> 0.01779807858 | N21: =IF($G21="User-defined Measure",VLOOKUP($H21,Measures!$C$73:$W$77,16,FALSE),IF($D21="Hot & Humid",VLOOKUP($H21,Measures!$C$6:$W$19,16,FALSE),IF($D21="Hot & Dry",VLOOKUP($H21,Measures!$C$20:$W$32,16,FALSE),IF($D21="Marine",VLOOKUP($H21,Measures!$C$33:$W$45,16,FALSE),IF($D21="Cold",VLOOKUP($H21,Measures!$C$46:$W$58,16,FALSE),IF($D21="Very Cold",VLOOKUP($H21,Measures!$C$59:$W$72,16,FALSE)," ")))))) -> 25.9312 | O21: =IF($G21="User-defined Measure",VLOOKUP($H21,Measures!$C$73:$W$77,19,FALSE),IF($D21="Hot & Humid",VLOOKUP($H21,Measures!$C$6:$W$19,19,FALSE),IF($D21="Hot & Dry",VLOOKUP($H21,Measures!$C$20:$W$32,19,FALSE),IF($D21="Marine",VLOOKUP($H21,Measures!$C$33:$W$45,19,FALSE),IF($D21="Cold",VLOOKUP($H21,Measures!$C$46:$W$58,19,FALSE),IF($D21="Very Cold",VLOOKUP($H21,Measures!$C$59:$W$72,19,FALSE)," ")))))) -> 14 | P21: 39.9312 | Q21: 13177296 | R21: 152.3034266 | S21: =IF(B21=0," ",PRODUCT(O21,'Emission Factors'!$J$36,E21,I21)/1000) -> 245.19264 | T21: 397.4960666 | U21: 1.204533535 | V21: =IF($G21="User-defined Measure",VLOOKUP($H21,Measures!$C$73:$X$77,22,FALSE),IF($D21="Hot & Humid",VLOOKUP($H21,Measures!$C$6:$X$19,22,FALSE),IF($D21="Hot & Dry",VLOOKUP($H21,Measures!$C$20:$X$32,22,FALSE),IF($D21="Marine",VLOOKUP($H21,Measures!$C$33:$X$45,22,FALSE),IF($D21="Cold",VLOOKUP($H21,Measures!$C$46:$X$58,22,FALSE),IF($D21="Very Cold",VLOOKUP($H21,Measures!$C$59:$X$72,22,FALSE)," ")))))) -> 20 | W21: 7949.921333 | X21: =IF($G21="User-defined Measure",VLOOKUP($H21,Measures!$C$73:$W$77,9,FALSE),IF($D21="Hot & Humid",VLOOKUP($H21,Measures!$C$6:$W$19,9,FALSE),IF($D21="Hot & Dry",VLOOKUP($H21,Measures!$C$20:$W$32,9,FALSE),IF($D21="Marine",VLOOKUP($H21,Measures!$C$33:$W$45,9,FALSE),IF($D21="Cold",VLOOKUP($H21,Measures!$C$46:$W$58,9,FALSE),IF($D21="Very Cold",VLOOKUP($H21,Measures!$C$59:$W$72,9,FALSE)," ")))))) -> 3.485 | Y21: 1150050 | Z21: =IF($G21="User-defined Measure",VLOOKUP($H21,Measures!$C$73:$W$77,12,FALSE),IF($D21="Hot & Humid",VLOOKUP($H21,Measures!$C$6:$W$19,12,FALSE),IF($D21="Hot & Dry",VLOOKUP($H21,Measures!$C$20:$W$32,12,FALSE),IF($D21="Marine",VLOOKUP($H21,Measures!$C$33:$W$45,12,FALSE),IF($D21="Cold",VLOOKUP($H21,Measures!$C$46:$W$58,12,FALSE),IF($D21="Very Cold",VLOOKUP($H21,Measures!$C$59:$W$72,12,FALSE)," ")))))) -> 0.585 | AA21: 193050 | AB21: 5.957264957 | AC21: 144.6618088 | AD21: 7
M22: =IF(F22<>0,VLOOKUP(F22,'Emission Factors'!$A$4:$J$31,7,FALSE)," ") ->  | N22: =IF($G22="User-defined Measure",VLOOKUP($H22,Measures!$C$73:$W$77,16,FALSE),IF($D22="Hot & Humid",VLOOKUP($H22,Measures!$C$6:$W$19,16,FALSE),IF($D22="Hot & Dry",VLOOKUP($H22,Measures!$C$20:$W$32,16,FALSE),IF($D22="Marine",VLOOKUP($H22,Measures!$C$33:$W$45,16,FALSE),IF($D22="Cold",VLOOKUP($H22,Measures!$C$46:$W$58,16,FALSE),IF($D22="Very Cold",VLOOKUP($H22,Measures!$C$59:$W$72,16,FALSE)," ")))))) ->  | O22: =IF($G22="User-defined Measure",VLOOKUP($H22,Measures!$C$73:$W$77,19,FALSE),IF($D22="Hot & Humid",VLOOKUP($H22,Measures!$C$6:$W$19,19,FALSE),IF($D22="Hot & Dry",VLOOKUP($H22,Measures!$C$20:$W$32,19,FALSE),IF($D22="Marine",VLOOKUP($H22,Measures!$C$33:$W$45,19,FALSE),IF($D22="Cold",VLOOKUP($H22,Measures!$C$46:$W$58,19,FALSE),IF($D22="Very Cold",VLOOKUP($H22,Measures!$C$59:$W$72,19,FALSE)," ")))))) ->  | S22: =IF(B22=0," ",PRODUCT(O22,'Emission Factors'!$J$36,E22,I22)/1000) ->  | V22: =IF($G22="User-defined Measure",VLOOKUP($H22,Measures!$C$73:$X$77,22,FALSE),IF($D22="Hot & Humid",VLOOKUP($H22,Measures!$C$6:$X$19,22,FALSE),IF($D22="Hot & Dry",VLOOKUP($H22,Measures!$C$20:$X$32,22,FALSE),IF($D22="Marine",VLOOKUP($H22,Measures!$C$33:$X$45,22,FALSE),IF($D22="Cold",VLOOKUP($H22,Measures!$C$46:$X$58,22,FALSE),IF($D22="Very Cold",VLOOKUP($H22,Measures!$C$59:$X$72,22,FALSE)," ")))))) ->  | X22: =IF($G22="User-defined Measure",VLOOKUP($H22,Measures!$C$73:$W$77,9,FALSE),IF($D22="Hot & Humid",VLOOKUP($H22,Measures!$C$6:$W$19,9,FALSE),IF($D22="Hot & Dry",VLOOKUP($H22,Measures!$C$20:$W$32,9,FALSE),IF($D22="Marine",VLOOKUP($H22,Measures!$C$33:$W$45,9,FALSE),IF($D22="Cold",VLOOKUP($H22,Measures!$C$46:$W$58,9,FALSE),IF($D22="Very Cold",VLOOKUP($H22,Measures!$C$59:$W$72,9,FALSE)," ")))))) ->  | Z22: =IF($G22="User-defined Measure",VLOOKUP($H22,Measures!$C$73:$W$77,12,FALSE),IF($D22="Hot & Humid",VLOOKUP($H22,Measures!$C$6:$W$19,12,FALSE),IF($D22="Hot & Dry",VLOOKUP($H22,Measures!$C$20:$W$32,12,FALSE),IF($D22="Marine",VLOOKUP($H22,Measures!$C$33:$W$45,12,FALSE),IF($D22="Cold",VLOOKUP($H22,Measures!$C$46:$W$58,12,FALSE),IF($D22="Very Cold",VLOOKUP($H22,Measures!$C$59:$W$72,12,FALSE)," ")))))) -> 
M23: =IF(F23<>0,VLOOKUP(F23,'Emission Factors'!$A$4:$J$31,7,FALSE)," ") ->  | N23: =IF($G23="User-defined Measure",VLOOKUP($H23,Measures!$C$73:$W$77,16,FALSE),IF($D23="Hot & Humid",VLOOKUP($H23,Measures!$C$6:$W$19,16,FALSE),IF($D23="Hot & Dry",VLOOKUP($H23,Measures!$C$20:$W$32,16,FALSE),IF($D23="Marine",VLOOKUP($H23,Measures!$C$33:$W$45,16,FALSE),IF($D23="Cold",VLOOKUP($H23,Measures!$C$46:$W$58,16,FALSE),IF($D23="Very Cold",VLOOKUP($H23,Measures!$C$59:$W$72,16,FALSE)," ")))))) ->  | O23: =IF($G23="User-defined Measure",VLOOKUP($H23,Measures!$C$73:$W$77,19,FALSE),IF($D23="Hot & Humid",VLOOKUP($H23,Measures!$C$6:$W$19,19,FALSE),IF($D23="Hot & Dry",VLOOKUP($H23,Measures!$C$20:$W$32,19,FALSE),IF($D23="Marine",VLOOKUP($H23,Measures!$C$33:$W$45,19,FALSE),IF($D23="Cold",VLOOKUP($H23,Measures!$C$46:$W$58,19,FALSE),IF($D23="Very Cold",VLOOKUP($H23,Measures!$C$59:$W$72,19,FALSE)," ")))))) ->  | S23: =IF(B23=0," ",PRODUCT(O23,'Emission Factors'!$J$36,E23,I23)/1000) ->  | V23: =IF($G23="User-defined Measure",VLOOKUP($H23,Measures!$C$73:$X$77,22,FALSE),IF($D23="Hot & Humid",VLOOKUP($H23,Measures!$C$6:$X$19,22,FALSE),IF($D23="Hot & Dry",VLOOKUP($H23,Measures!$C$20:$X$32,22,FALSE),IF($D23="Marine",VLOOKUP($H23,Measures!$C$33:$X$45,22,FALSE),IF($D23="Cold",VLOOKUP($H23,Measures!$C$46:$X$58,22,FALSE),IF($D23="Very Cold",VLOOKUP($H23,Measures!$C$59:$X$72,22,FALSE)," ")))))) ->  | X23: =IF($G23="User-defined Measure",VLOOKUP($H23,Measures!$C$73:$W$77,9,FALSE),IF($D23="Hot & Humid",VLOOKUP($H23,Measures!$C$6:$W$19,9,FALSE),IF($D23="Hot & Dry",VLOOKUP($H23,Measures!$C$20:$W$32,9,FALSE),IF($D23="Marine",VLOOKUP($H23,Measures!$C$33:$W$45,9,FALSE),IF($D23="Cold",VLOOKUP($H23,Measures!$C$46:$W$58,9,FALSE),IF($D23="Very Cold",VLOOKUP($H23,Measures!$C$59:$W$72,9,FALSE)," ")))))) ->  | Z23: =IF($G23="User-defined Measure",VLOOKUP($H23,Measures!$C$73:$W$77,12,FALSE),IF($D23="Hot & Humid",VLOOKUP($H23,Measures!$C$6:$W$19,12,FALSE),IF($D23="Hot & Dry",VLOOKUP($H23,Measures!$C$20:$W$32,12,FALSE),IF($D23="Marine",VLOOKUP($H23,Measures!$C$33:$W$45,12,FALSE),IF($D23="Cold",VLOOKUP($H23,Measures!$C$46:$W$58,12,FALSE),IF($D23="Very Cold",VLOOKUP($H23,Measures!$C$59:$W$72,12,FALSE)," ")))))) -> 
M24: =IF(F24<>0,VLOOKUP(F24,'Emission Factors'!$A$4:$J$31,7,FALSE)," ") ->  | N24: =IF($G24="User-defined Measure",VLOOKUP($H24,Measures!$C$73:$W$77,16,FALSE),IF($D24="Hot & Humid",VLOOKUP($H24,Measures!$C$6:$W$19,16,FALSE),IF($D24="Hot & Dry",VLOOKUP($H24,Measures!$C$20:$W$32,16,FALSE),IF($D24="Marine",VLOOKUP($H24,Measures!$C$33:$W$45,16,FALSE),IF($D24="Cold",VLOOKUP($H24,Measures!$C$46:$W$58,16,FALSE),IF($D24="Very Cold",VLOOKUP($H24,Measures!$C$59:$W$72,16,FALSE)," ")))))) ->  | O24: =IF($G24="User-defined Measure",VLOOKUP($H24,Measures!$C$73:$W$77,19,FALSE),IF($D24="Hot & Humid",VLOOKUP($H24,Measures!$C$6:$W$19,19,FALSE),IF($D24="Hot & Dry",VLOOKUP($H24,Measures!$C$20:$W$32,19,FALSE),IF($D24="Marine",VLOOKUP($H24,Measures!$C$33:$W$45,19,FALSE),IF($D24="Cold",VLOOKUP($H24,Measures!$C$46:$W$58,19,FALSE),IF($D24="Very Cold",VLOOKUP($H24,Measures!$C$59:$W$72,19,FALSE)," ")))))) ->  | S24: =IF(B24=0," ",PRODUCT(O24,'Emission Factors'!$J$36,E24,I24)/1000) ->  | V24: =IF($G24="User-defined Measure",VLOOKUP($H24,Measures!$C$73:$X$77,22,FALSE),IF($D24="Hot & Humid",VLOOKUP($H24,Measures!$C$6:$X$19,22,FALSE),IF($D24="Hot & Dry",VLOOKUP($H24,Measures!$C$20:$X$32,22,FALSE),IF($D24="Marine",VLOOKUP($H24,Measures!$C$33:$X$45,22,FALSE),IF($D24="Cold",VLOOKUP($H24,Measures!$C$46:$X$58,22,FALSE),IF($D24="Very Cold",VLOOKUP($H24,Measures!$C$59:$X$72,22,FALSE)," ")))))) ->  | X24: =IF($G24="User-defined Measure",VLOOKUP($H24,Measures!$C$73:$W$77,9,FALSE),IF($D24="Hot & Humid",VLOOKUP($H24,Measures!$C$6:$W$19,9,FALSE),IF($D24="Hot & Dry",VLOOKUP($H24,Measures!$C$20:$W$32,9,FALSE),IF($D24="Marine",VLOOKUP($H24,Measures!$C$33:$W$45,9,FALSE),IF($D24="Cold",VLOOKUP($H24,Measures!$C$46:$W$58,9,FALSE),IF($D24="Very Cold",VLOOKUP($H24,Measures!$C$59:$W$72,9,FALSE)," ")))))) ->  | Z24: =IF($G24="User-defined Measure",VLOOKUP($H24,Measures!$C$73:$W$77,12,FALSE),IF($D24="Hot & Humid",VLOOKUP($H24,Measures!$C$6:$W$19,12,FALSE),IF($D24="Hot & Dry",VLOOKUP($H24,Measures!$C$20:$W$32,12,FALSE),IF($D24="Marine",VLOOKUP($H24,Measures!$C$33:$W$45,12,FALSE),IF($D24="Cold",VLOOKUP($H24,Measures!$C$46:$W$58,12,FALSE),IF($D24="Very Cold",VLOOKUP($H24,Measures!$C$59:$W$72,12,FALSE)," ")))))) -> 
M25: =IF(F25<>0,VLOOKUP(F25,'Emission Factors'!$A$4:$J$31,7,FALSE)," ") ->  | N25: =IF($G25="User-defined Measure",VLOOKUP($H25,Measures!$C$73:$W$77,16,FALSE),IF($D25="Hot & Humid",VLOOKUP($H25,Measures!$C$6:$W$19,16,FALSE),IF($D25="Hot & Dry",VLOOKUP($H25,Measures!$C$20:$W$32,16,FALSE),IF($D25="Marine",VLOOKUP($H25,Measures!$C$33:$W$45,16,FALSE),IF($D25="Cold",VLOOKUP($H25,Measures!$C$46:$W$58,16,FALSE),IF($D25="Very Cold",VLOOKUP($H25,Measures!$C$59:$W$72,16,FALSE)," ")))))) ->  | O25: =IF($G25="User-defined Measure",VLOOKUP($H25,Measures!$C$73:$W$77,19,FALSE),IF($D25="Hot & Humid",VLOOKUP($H25,Measures!$C$6:$W$19,19,FALSE),IF($D25="Hot & Dry",VLOOKUP($H25,Measures!$C$20:$W$32,19,FALSE),IF($D25="Marine",VLOOKUP($H25,Measures!$C$33:$W$45,19,FALSE),IF($D25="Cold",VLOOKUP($H25,Measures!$C$46:$W$58,19,FALSE),IF($D25="Very Cold",VLOOKUP($H25,Measures!$C$59:$W$72,19,FALSE)," ")))))) ->  | S25: =IF(B25=0," ",PRODUCT(O25,'Emission Factors'!$J$36,E25,I25)/1000) ->  | V25: =IF($G25="User-defined Measure",VLOOKUP($H25,Measures!$C$73:$X$77,22,FALSE),IF($D25="Hot & Humid",VLOOKUP($H25,Measures!$C$6:$X$19,22,FALSE),IF($D25="Hot & Dry",VLOOKUP($H25,Measures!$C$20:$X$32,22,FALSE),IF($D25="Marine",VLOOKUP($H25,Measures!$C$33:$X$45,22,FALSE),IF($D25="Cold",VLOOKUP($H25,Measures!$C$46:$X$58,22,FALSE),IF($D25="Very Cold",VLOOKUP($H25,Measures!$C$59:$X$72,22,FALSE)," ")))))) ->  | X25: =IF($G25="User-defined Measure",VLOOKUP($H25,Measures!$C$73:$W$77,9,FALSE),IF($D25="Hot & Humid",VLOOKUP($H25,Measures!$C$6:$W$19,9,FALSE),IF($D25="Hot & Dry",VLOOKUP($H25,Measures!$C$20:$W$32,9,FALSE),IF($D25="Marine",VLOOKUP($H25,Measures!$C$33:$W$45,9,FALSE),IF($D25="Cold",VLOOKUP($H25,Measures!$C$46:$W$58,9,FALSE),IF($D25="Very Cold",VLOOKUP($H25,Measures!$C$59:$W$72,9,FALSE)," ")))))) ->  | Z25: =IF($G25="User-defined Measure",VLOOKUP($H25,Measures!$C$73:$W$77,12,FALSE),IF($D25="Hot & Humid",VLOOKUP($H25,Measures!$C$6:$W$19,12,FALSE),IF($D25="Hot & Dry",VLOOKUP($H25,Measures!$C$20:$W$32,12,FALSE),IF($D25="Marine",VLOOKUP($H25,Measures!$C$33:$W$45,12,FALSE),IF($D25="Cold",VLOOKUP($H25,Measures!$C$46:$W$58,12,FALSE),IF($D25="Very Cold",VLOOKUP($H25,Measures!$C$59:$W$72,12,FALSE)," ")))))) -> 
M26: =IF(F26<>0,VLOOKUP(F26,'Emission Factors'!$A$4:$J$31,7,FALSE)," ") ->  | N26: =IF($G26="User-defined Measure",VLOOKUP($H26,Measures!$C$73:$W$77,16,FALSE),IF($D26="Hot & Humid",VLOOKUP($H26,Measures!$C$6:$W$19,16,FALSE),IF($D26="Hot & Dry",VLOOKUP($H26,Measures!$C$20:$W$32,16,FALSE),IF($D26="Marine",VLOOKUP($H26,Measures!$C$33:$W$45,16,FALSE),IF($D26="Cold",VLOOKUP($H26,Measures!$C$46:$W$58,16,FALSE),IF($D26="Very Cold",VLOOKUP($H26,Measures!$C$59:$W$72,16,FALSE)," ")))))) ->  | O26: =IF($G26="User-defined Measure",VLOOKUP($H26,Measures!$C$73:$W$77,19,FALSE),IF($D26="Hot & Humid",VLOOKUP($H26,Measures!$C$6:$W$19,19,FALSE),IF($D26="Hot & Dry",VLOOKUP($H26,Measures!$C$20:$W$32,19,FALSE),IF($D26="Marine",VLOOKUP($H26,Measures!$C$33:$W$45,19,FALSE),IF($D26="Cold",VLOOKUP($H26,Measures!$C$46:$W$58,19,FALSE),IF($D26="Very Cold",VLOOKUP($H26,Measures!$C$59:$W$72,19,FALSE)," ")))))) ->  | S26: =IF(B26=0," ",PRODUCT(O26,'Emission Factors'!$J$36,E26,I26)/1000) ->  | V26: =IF($G26="User-defined Measure",VLOOKUP($H26,Measures!$C$73:$X$77,22,FALSE),IF($D26="Hot & Humid",VLOOKUP($H26,Measures!$C$6:$X$19,22,FALSE),IF($D26="Hot & Dry",VLOOKUP($H26,Measures!$C$20:$X$32,22,FALSE),IF($D26="Marine",VLOOKUP($H26,Measures!$C$33:$X$45,22,FALSE),IF($D26="Cold",VLOOKUP($H26,Measures!$C$46:$X$58,22,FALSE),IF($D26="Very Cold",VLOOKUP($H26,Measures!$C$59:$X$72,22,FALSE)," ")))))) ->  | X26: =IF($G26="User-defined Measure",VLOOKUP($H26,Measures!$C$73:$W$77,9,FALSE),IF($D26="Hot & Humid",VLOOKUP($H26,Measures!$C$6:$W$19,9,FALSE),IF($D26="Hot & Dry",VLOOKUP($H26,Measures!$C$20:$W$32,9,FALSE),IF($D26="Marine",VLOOKUP($H26,Measures!$C$33:$W$45,9,FALSE),IF($D26="Cold",VLOOKUP($H26,Measures!$C$46:$W$58,9,FALSE),IF($D26="Very Cold",VLOOKUP($H26,Measures!$C$59:$W$72,9,FALSE)," ")))))) ->  | Z26: =IF($G26="User-defined Measure",VLOOKUP($H26,Measures!$C$73:$W$77,12,FALSE),IF($D26="Hot & Humid",VLOOKUP($H26,Measures!$C$6:$W$19,12,FALSE),IF($D26="Hot & Dry",VLOOKUP($H26,Measures!$C$20:$W$32,12,FALSE),IF($D26="Marine",VLOOKUP($H26,Measures!$C$33:$W$45,12,FALSE),IF($D26="Cold",VLOOKUP($H26,Measures!$C$46:$W$58,12,FALSE),IF($D26="Very Cold",VLOOKUP($H26,Measures!$C$59:$W$72,12,FALSE)," ")))))) -> 
M27: =IF(F27<>0,VLOOKUP(F27,'Emission Factors'!$A$4:$J$31,7,FALSE)," ") ->  | N27: =IF($G27="User-defined Measure",VLOOKUP($H27,Measures!$C$73:$W$77,16,FALSE),IF($D27="Hot & Humid",VLOOKUP($H27,Measures!$C$6:$W$19,16,FALSE),IF($D27="Hot & Dry",VLOOKUP($H27,Measures!$C$20:$W$32,16,FALSE),IF($D27="Marine",VLOOKUP($H27,Measures!$C$33:$W$45,16,FALSE),IF($D27="Cold",VLOOKUP($H27,Measures!$C$46:$W$58,16,FALSE),IF($D27="Very Cold",VLOOKUP($H27,Measures!$C$59:$W$72,16,FALSE)," ")))))) ->  | O27: =IF($G27="User-defined Measure",VLOOKUP($H27,Measures!$C$73:$W$77,19,FALSE),IF($D27="Hot & Humid",VLOOKUP($H27,Measures!$C$6:$W$19,19,FALSE),IF($D27="Hot & Dry",VLOOKUP($H27,Measures!$C$20:$W$32,19,FALSE),IF($D27="Marine",VLOOKUP($H27,Measures!$C$33:$W$45,19,FALSE),IF($D27="Cold",VLOOKUP($H27,Measures!$C$46:$W$58,19,FALSE),IF($D27="Very Cold",VLOOKUP($H27,Measures!$C$59:$W$72,19,FALSE)," ")))))) ->  | S27: =IF(B27=0," ",PRODUCT(O27,'Emission Factors'!$J$36,E27,I27)/1000) ->  | V27: =IF($G27="User-defined Measure",VLOOKUP($H27,Measures!$C$73:$X$77,22,FALSE),IF($D27="Hot & Humid",VLOOKUP($H27,Measures!$C$6:$X$19,22,FALSE),IF($D27="Hot & Dry",VLOOKUP($H27,Measures!$C$20:$X$32,22,FALSE),IF($D27="Marine",VLOOKUP($H27,Measures!$C$33:$X$45,22,FALSE),IF($D27="Cold",VLOOKUP($H27,Measures!$C$46:$X$58,22,FALSE),IF($D27="Very Cold",VLOOKUP($H27,Measures!$C$59:$X$72,22,FALSE)," ")))))) ->  | X27: =IF($G27="User-defined Measure",VLOOKUP($H27,Measures!$C$73:$W$77,9,FALSE),IF($D27="Hot & Humid",VLOOKUP($H27,Measures!$C$6:$W$19,9,FALSE),IF($D27="Hot & Dry",VLOOKUP($H27,Measures!$C$20:$W$32,9,FALSE),IF($D27="Marine",VLOOKUP($H27,Measures!$C$33:$W$45,9,FALSE),IF($D27="Cold",VLOOKUP($H27,Measures!$C$46:$W$58,9,FALSE),IF($D27="Very Cold",VLOOKUP($H27,Measures!$C$59:$W$72,9,FALSE)," ")))))) ->  | Z27: =IF($G27="User-defined Measure",VLOOKUP($H27,Measures!$C$73:$W$77,12,FALSE),IF($D27="Hot & Humid",VLOOKUP($H27,Measures!$C$6:$W$19,12,FALSE),IF($D27="Hot & Dry",VLOOKUP($H27,Measures!$C$20:$W$32,12,FALSE),IF($D27="Marine",VLOOKUP($H27,Measures!$C$33:$W$45,12,FALSE),IF($D27="Cold",VLOOKUP($H27,Measures!$C$46:$W$58,12,FALSE),IF($D27="Very Cold",VLOOKUP($H27,Measures!$C$59:$W$72,12,FALSE)," ")))))) -> 
M28: =IF(F28<>0,VLOOKUP(F28,'Emission Factors'!$A$4:$J$31,7,FALSE)," ") ->  | N28: =IF($G28="User-defined Measure",VLOOKUP($H28,Measures!$C$73:$W$77,16,FALSE),IF($D28="Hot & Humid",VLOOKUP($H28,Measures!$C$6:$W$19,16,FALSE),IF($D28="Hot & Dry",VLOOKUP($H28,Measures!$C$20:$W$32,16,FALSE),IF($D28="Marine",VLOOKUP($H28,Measures!$C$33:$W$45,16,FALSE),IF($D28="Cold",VLOOKUP($H28,Measures!$C$46:$W$58,16,FALSE),IF($D28="Very Cold",VLOOKUP($H28,Measures!$C$59:$W$72,16,FALSE)," ")))))) ->  | O28: =IF($G28="User-defined Measure",VLOOKUP($H28,Measures!$C$73:$W$77,19,FALSE),IF($D28="Hot & Humid",VLOOKUP($H28,Measures!$C$6:$W$19,19,FALSE),IF($D28="Hot & Dry",VLOOKUP($H28,Measures!$C$20:$W$32,19,FALSE),IF($D28="Marine",VLOOKUP($H28,Measures!$C$33:$W$45,19,FALSE),IF($D28="Cold",VLOOKUP($H28,Measures!$C$46:$W$58,19,FALSE),IF($D28="Very Cold",VLOOKUP($H28,Measures!$C$59:$W$72,19,FALSE)," ")))))) ->  | S28: =IF(B28=0," ",PRODUCT(O28,'Emission Factors'!$J$36,E28,I28)/1000) ->  | V28: =IF($G28="User-defined Measure",VLOOKUP($H28,Measures!$C$73:$X$77,22,FALSE),IF($D28="Hot & Humid",VLOOKUP($H28,Measures!$C$6:$X$19,22,FALSE),IF($D28="Hot & Dry",VLOOKUP($H28,Measures!$C$20:$X$32,22,FALSE),IF($D28="Marine",VLOOKUP($H28,Measures!$C$33:$X$45,22,FALSE),IF($D28="Cold",VLOOKUP($H28,Measures!$C$46:$X$58,22,FALSE),IF($D28="Very Cold",VLOOKUP($H28,Measures!$C$59:$X$72,22,FALSE)," ")))))) ->  | X28: =IF($G28="User-defined Measure",VLOOKUP($H28,Measures!$C$73:$W$77,9,FALSE),IF($D28="Hot & Humid",VLOOKUP($H28,Measures!$C$6:$W$19,9,FALSE),IF($D28="Hot & Dry",VLOOKUP($H28,Measures!$C$20:$W$32,9,FALSE),IF($D28="Marine",VLOOKUP($H28,Measures!$C$33:$W$45,9,FALSE),IF($D28="Cold",VLOOKUP($H28,Measures!$C$46:$W$58,9,FALSE),IF($D28="Very Cold",VLOOKUP($H28,Measures!$C$59:$W$72,9,FALSE)," ")))))) ->  | Z28: =IF($G28="User-defined Measure",VLOOKUP($H28,Measures!$C$73:$W$77,12,FALSE),IF($D28="Hot & Humid",VLOOKUP($H28,Measures!$C$6:$W$19,12,FALSE),IF($D28="Hot & Dry",VLOOKUP($H28,Measures!$C$20:$W$32,12,FALSE),IF($D28="Marine",VLOOKUP($H28,Measures!$C$33:$W$45,12,FALSE),IF($D28="Cold",VLOOKUP($H28,Measures!$C$46:$W$58,12,FALSE),IF($D28="Very Cold",VLOOKUP($H28,Measures!$C$59:$W$72,12,FALSE)," ")))))) -> 
M29: =IF(F29<>0,VLOOKUP(F29,'Emission Factors'!$A$4:$J$31,7,FALSE)," ") ->  | N29: =IF($G29="User-defined Measure",VLOOKUP($H29,Measures!$C$73:$W$77,16,FALSE),IF($D29="Hot & Humid",VLOOKUP($H29,Measures!$C$6:$W$19,16,FALSE),IF($D29="Hot & Dry",VLOOKUP($H29,Measures!$C$20:$W$32,16,FALSE),IF($D29="Marine",VLOOKUP($H29,Measures!$C$33:$W$45,16,FALSE),IF($D29="Cold",VLOOKUP($H29,Measures!$C$46:$W$58,16,FALSE),IF($D29="Very Cold",VLOOKUP($H29,Measures!$C$59:$W$72,16,FALSE)," ")))))) ->  | O29: =IF($G29="User-defined Measure",VLOOKUP($H29,Measures!$C$73:$W$77,19,FALSE),IF($D29="Hot & Humid",VLOOKUP($H29,Measures!$C$6:$W$19,19,FALSE),IF($D29="Hot & Dry",VLOOKUP($H29,Measures!$C$20:$W$32,19,FALSE),IF($D29="Marine",VLOOKUP($H29,Measures!$C$33:$W$45,19,FALSE),IF($D29="Cold",VLOOKUP($H29,Measures!$C$46:$W$58,19,FALSE),IF($D29="Very Cold",VLOOKUP($H29,Measures!$C$59:$W$72,19,FALSE)," ")))))) ->  | S29: =IF(B29=0," ",PRODUCT(O29,'Emission Factors'!$J$36,E29,I29)/1000) ->  | V29: =IF($G29="User-defined Measure",VLOOKUP($H29,Measures!$C$73:$X$77,22,FALSE),IF($D29="Hot & Humid",VLOOKUP($H29,Measures!$C$6:$X$19,22,FALSE),IF($D29="Hot & Dry",VLOOKUP($H29,Measures!$C$20:$X$32,22,FALSE),IF($D29="Marine",VLOOKUP($H29,Measures!$C$33:$X$45,22,FALSE),IF($D29="Cold",VLOOKUP($H29,Measures!$C$46:$X$58,22,FALSE),IF($D29="Very Cold",VLOOKUP($H29,Measures!$C$59:$X$72,22,FALSE)," ")))))) ->  | X29: =IF($G29="User-defined Measure",VLOOKUP($H29,Measures!$C$73:$W$77,9,FALSE),IF($D29="Hot & Humid",VLOOKUP($H29,Measures!$C$6:$W$19,9,FALSE),IF($D29="Hot & Dry",VLOOKUP($H29,Measures!$C$20:$W$32,9,FALSE),IF($D29="Marine",VLOOKUP($H29,Measures!$C$33:$W$45,9,FALSE),IF($D29="Cold",VLOOKUP($H29,Measures!$C$46:$W$58,9,FALSE),IF($D29="Very Cold",VLOOKUP($H29,Measures!$C$59:$W$72,9,FALSE)," ")))))) ->  | Z29: =IF($G29="User-defined Measure",VLOOKUP($H29,Measures!$C$73:$W$77,12,FALSE),IF($D29="Hot & Humid",VLOOKUP($H29,Measures!$C$6:$W$19,12,FALSE),IF($D29="Hot & Dry",VLOOKUP($H29,Measures!$C$20:$W$32,12,FALSE),IF($D29="Marine",VLOOKUP($H29,Measures!$C$33:$W$45,12,FALSE),IF($D29="Cold",VLOOKUP($H29,Measures!$C$46:$W$58,12,FALSE),IF($D29="Very Cold",VLOOKUP($H29,Measures!$C$59:$W$72,12,FALSE)," ")))))) -> 
M30: =IF(F30<>0,VLOOKUP(F30,'Emission Factors'!$A$4:$J$31,7,FALSE)," ") ->  | N30: =IF($G30="User-defined Measure",VLOOKUP($H30,Measures!$C$73:$W$77,16,FALSE),IF($D30="Hot & Humid",VLOOKUP($H30,Measures!$C$6:$W$19,16,FALSE),IF($D30="Hot & Dry",VLOOKUP($H30,Measures!$C$20:$W$32,16,FALSE),IF($D30="Marine",VLOOKUP($H30,Measures!$C$33:$W$45,16,FALSE),IF($D30="Cold",VLOOKUP($H30,Measures!$C$46:$W$58,16,FALSE),IF($D30="Very Cold",VLOOKUP($H30,Measures!$C$59:$W$72,16,FALSE)," ")))))) ->  | O30: =IF($G30="User-defined Measure",VLOOKUP($H30,Measures!$C$73:$W$77,19,FALSE),IF($D30="Hot & Humid",VLOOKUP($H30,Measures!$C$6:$W$19,19,FALSE),IF($D30="Hot & Dry",VLOOKUP($H30,Measures!$C$20:$W$32,19,FALSE),IF($D30="Marine",VLOOKUP($H30,Measures!$C$33:$W$45,19,FALSE),IF($D30="Cold",VLOOKUP($H30,Measures!$C$46:$W$58,19,FALSE),IF($D30="Very Cold",VLOOKUP($H30,Measures!$C$59:$W$72,19,FALSE)," ")))))) ->  | S30: =IF(B30=0," ",PRODUCT(O30,'Emission Factors'!$J$36,E30,I30)/1000) ->  | V30: =IF($G30="User-defined Measure",VLOOKUP($H30,Measures!$C$73:$X$77,22,FALSE),IF($D30="Hot & Humid",VLOOKUP($H30,Measures!$C$6:$X$19,22,FALSE),IF($D30="Hot & Dry",VLOOKUP($H30,Measures!$C$20:$X$32,22,FALSE),IF($D30="Marine",VLOOKUP($H30,Measures!$C$33:$X$45,22,FALSE),IF($D30="Cold",VLOOKUP($H30,Measures!$C$46:$X$58,22,FALSE),IF($D30="Very Cold",VLOOKUP($H30,Measures!$C$59:$X$72,22,FALSE)," ")))))) ->  | X30: =IF($G30="User-defined Measure",VLOOKUP($H30,Measures!$C$73:$W$77,9,FALSE),IF($D30="Hot & Humid",VLOOKUP($H30,Measures!$C$6:$W$19,9,FALSE),IF($D30="Hot & Dry",VLOOKUP($H30,Measures!$C$20:$W$32,9,FALSE),IF($D30="Marine",VLOOKUP($H30,Measures!$C$33:$W$45,9,FALSE),IF($D30="Cold",VLOOKUP($H30,Measures!$C$46:$W$58,9,FALSE),IF($D30="Very Cold",VLOOKUP($H30,Measures!$C$59:$W$72,9,FALSE)," ")))))) ->  | Z30: =IF($G30="User-defined Measure",VLOOKUP($H30,Measures!$C$73:$W$77,12,FALSE),IF($D30="Hot & Humid",VLOOKUP($H30,Measures!$C$6:$W$19,12,FALSE),IF($D30="Hot & Dry",VLOOKUP($H30,Measures!$C$20:$W$32,12,FALSE),IF($D30="Marine",VLOOKUP($H30,Measures!$C$33:$W$45,12,FALSE),IF($D30="Cold",VLOOKUP($H30,Measures!$C$46:$W$58,12,FALSE),IF($D30="Very Cold",VLOOKUP($H30,Measures!$C$59:$W$72,12,FALSE)," ")))))) -> 
M31: =IF(F31<>0,VLOOKUP(F31,'Emission Factors'!$A$4:$J$31,7,FALSE)," ") ->  | N31: =IF($G31="User-defined Measure",VLOOKUP($H31,Measures!$C$73:$W$77,16,FALSE),IF($D31="Hot & Humid",VLOOKUP($H31,Measures!$C$6:$W$19,16,FALSE),IF($D31="Hot & Dry",VLOOKUP($H31,Measures!$C$20:$W$32,16,FALSE),IF($D31="Marine",VLOOKUP($H31,Measures!$C$33:$W$45,16,FALSE),IF($D31="Cold",VLOOKUP($H31,Measures!$C$46:$W$58,16,FALSE),IF($D31="Very Cold",VLOOKUP($H31,Measures!$C$59:$W$72,16,FALSE)," ")))))) ->  | O31: =IF($G31="User-defined Measure",VLOOKUP($H31,Measures!$C$73:$W$77,19,FALSE),IF($D31="Hot & Humid",VLOOKUP($H31,Measures!$C$6:$W$19,19,FALSE),IF($D31="Hot & Dry",VLOOKUP($H31,Measures!$C$20:$W$32,19,FALSE),IF($D31="Marine",VLOOKUP($H31,Measures!$C$33:$W$45,19,FALSE),IF($D31="Cold",VLOOKUP($H31,Measures!$C$46:$W$58,19,FALSE),IF($D31="Very Cold",VLOOKUP($H31,Measures!$C$59:$W$72,19,FALSE)," ")))))) ->  | S31: =IF(B31=0," ",PRODUCT(O31,'Emission Factors'!$J$36,E31,I31)/1000) ->  | V31: =IF($G31="User-defined Measure",VLOOKUP($H31,Measures!$C$73:$X$77,22,FALSE),IF($D31="Hot & Humid",VLOOKUP($H31,Measures!$C$6:$X$19,22,FALSE),IF($D31="Hot & Dry",VLOOKUP($H31,Measures!$C$20:$X$32,22,FALSE),IF($D31="Marine",VLOOKUP($H31,Measures!$C$33:$X$45,22,FALSE),IF($D31="Cold",VLOOKUP($H31,Measures!$C$46:$X$58,22,FALSE),IF($D31="Very Cold",VLOOKUP($H31,Measures!$C$59:$X$72,22,FALSE)," ")))))) ->  | X31: =IF($G31="User-defined Measure",VLOOKUP($H31,Measures!$C$73:$W$77,9,FALSE),IF($D31="Hot & Humid",VLOOKUP($H31,Measures!$C$6:$W$19,9,FALSE),IF($D31="Hot & Dry",VLOOKUP($H31,Measures!$C$20:$W$32,9,FALSE),IF($D31="Marine",VLOOKUP($H31,Measures!$C$33:$W$45,9,FALSE),IF($D31="Cold",VLOOKUP($H31,Measures!$C$46:$W$58,9,FALSE),IF($D31="Very Cold",VLOOKUP($H31,Measures!$C$59:$W$72,9,FALSE)," ")))))) ->  | Z31: =IF($G31="User-defined Measure",VLOOKUP($H31,Measures!$C$73:$W$77,12,FALSE),IF($D31="Hot & Humid",VLOOKUP($H31,Measures!$C$6:$W$19,12,FALSE),IF($D31="Hot & Dry",VLOOKUP($H31,Measures!$C$20:$W$32,12,FALSE),IF($D31="Marine",VLOOKUP($H31,Measures!$C$33:$W$45,12,FALSE),IF($D31="Cold",VLOOKUP($H31,Measures!$C$46:$W$58,12,FALSE),IF($D31="Very Cold",VLOOKUP($H31,Measures!$C$59:$W$72,12,FALSE)," ")))))) -> 
M32: =IF(F32<>0,VLOOKUP(F32,'Emission Factors'!$A$4:$J$31,7,FALSE)," ") ->  | N32: =IF($G32="User-defined Measure",VLOOKUP($H32,Measures!$C$73:$W$77,16,FALSE),IF($D32="Hot & Humid",VLOOKUP($H32,Measures!$C$6:$W$19,16,FALSE),IF($D32="Hot & Dry",VLOOKUP($H32,Measures!$C$20:$W$32,16,FALSE),IF($D32="Marine",VLOOKUP($H32,Measures!$C$33:$W$45,16,FALSE),IF($D32="Cold",VLOOKUP($H32,Measures!$C$46:$W$58,16,FALSE),IF($D32="Very Cold",VLOOKUP($H32,Measures!$C$59:$W$72,16,FALSE)," ")))))) ->  | O32: =IF($G32="User-defined Measure",VLOOKUP($H32,Measures!$C$73:$W$77,19,FALSE),IF($D32="Hot & Humid",VLOOKUP($H32,Measures!$C$6:$W$19,19,FALSE),IF($D32="Hot & Dry",VLOOKUP($H32,Measures!$C$20:$W$32,19,FALSE),IF($D32="Marine",VLOOKUP($H32,Measures!$C$33:$W$45,19,FALSE),IF($D32="Cold",VLOOKUP($H32,Measures!$C$46:$W$58,19,FALSE),IF($D32="Very Cold",VLOOKUP($H32,Measures!$C$59:$W$72,19,FALSE)," ")))))) ->  | S32: =IF(B32=0," ",PRODUCT(O32,'Emission Factors'!$J$36,E32,I32)/1000) ->  | V32: =IF($G32="User-defined Measure",VLOOKUP($H32,Measures!$C$73:$X$77,22,FALSE),IF($D32="Hot & Humid",VLOOKUP($H32,Measures!$C$6:$X$19,22,FALSE),IF($D32="Hot & Dry",VLOOKUP($H32,Measures!$C$20:$X$32,22,FALSE),IF($D32="Marine",VLOOKUP($H32,Measures!$C$33:$X$45,22,FALSE),IF($D32="Cold",VLOOKUP($H32,Measures!$C$46:$X$58,22,FALSE),IF($D32="Very Cold",VLOOKUP($H32,Measures!$C$59:$X$72,22,FALSE)," ")))))) ->  | X32: =IF($G32="User-defined Measure",VLOOKUP($H32,Measures!$C$73:$W$77,9,FALSE),IF($D32="Hot & Humid",VLOOKUP($H32,Measures!$C$6:$W$19,9,FALSE),IF($D32="Hot & Dry",VLOOKUP($H32,Measures!$C$20:$W$32,9,FALSE),IF($D32="Marine",VLOOKUP($H32,Measures!$C$33:$W$45,9,FALSE),IF($D32="Cold",VLOOKUP($H32,Measures!$C$46:$W$58,9,FALSE),IF($D32="Very Cold",VLOOKUP($H32,Measures!$C$59:$W$72,9,FALSE)," ")))))) ->  | Z32: =IF($G32="User-defined Measure",VLOOKUP($H32,Measures!$C$73:$W$77,12,FALSE),IF($D32="Hot & Humid",VLOOKUP($H32,Measures!$C$6:$W$19,12,FALSE),IF($D32="Hot & Dry",VLOOKUP($H32,Measures!$C$20:$W$32,12,FALSE),IF($D32="Marine",VLOOKUP($H32,Measures!$C$33:$W$45,12,FALSE),IF($D32="Cold",VLOOKUP($H32,Measures!$C$46:$W$58,12,FALSE),IF($D32="Very Cold",VLOOKUP($H32,Measures!$C$59:$W$72,12,FALSE)," ")))))) -> 
M33: =IF(F33<>0,VLOOKUP(F33,'Emission Factors'!$A$4:$J$31,7,FALSE)," ") ->  | N33: =IF($G33="User-defined Measure",VLOOKUP($H33,Measures!$C$73:$W$77,16,FALSE),IF($D33="Hot & Humid",VLOOKUP($H33,Measures!$C$6:$W$19,16,FALSE),IF($D33="Hot & Dry",VLOOKUP($H33,Measures!$C$20:$W$32,16,FALSE),IF($D33="Marine",VLOOKUP($H33,Measures!$C$33:$W$45,16,FALSE),IF($D33="Cold",VLOOKUP($H33,Measures!$C$46:$W$58,16,FALSE),IF($D33="Very Cold",VLOOKUP($H33,Measures!$C$59:$W$72,16,FALSE)," ")))))) ->  | O33: =IF($G33="User-defined Measure",VLOOKUP($H33,Measures!$C$73:$W$77,19,FALSE),IF($D33="Hot & Humid",VLOOKUP($H33,Measures!$C$6:$W$19,19,FALSE),IF($D33="Hot & Dry",VLOOKUP($H33,Measures!$C$20:$W$32,19,FALSE),IF($D33="Marine",VLOOKUP($H33,Measures!$C$33:$W$45,19,FALSE),IF($D33="Cold",VLOOKUP($H33,Measures!$C$46:$W$58,19,FALSE),IF($D33="Very Cold",VLOOKUP($H33,Measures!$C$59:$W$72,19,FALSE)," ")))))) ->  | S33: =IF(B33=0," ",PRODUCT(O33,'Emission Factors'!$J$36,E33,I33)/1000) ->  | V33: =IF($G33="User-defined Measure",VLOOKUP($H33,Measures!$C$73:$X$77,22,FALSE),IF($D33="Hot & Humid",VLOOKUP($H33,Measures!$C$6:$X$19,22,FALSE),IF($D33="Hot & Dry",VLOOKUP($H33,Measures!$C$20:$X$32,22,FALSE),IF($D33="Marine",VLOOKUP($H33,Measures!$C$33:$X$45,22,FALSE),IF($D33="Cold",VLOOKUP($H33,Measures!$C$46:$X$58,22,FALSE),IF($D33="Very Cold",VLOOKUP($H33,Measures!$C$59:$X$72,22,FALSE)," ")))))) ->  | X33: =IF($G33="User-defined Measure",VLOOKUP($H33,Measures!$C$73:$W$77,9,FALSE),IF($D33="Hot & Humid",VLOOKUP($H33,Measures!$C$6:$W$19,9,FALSE),IF($D33="Hot & Dry",VLOOKUP($H33,Measures!$C$20:$W$32,9,FALSE),IF($D33="Marine",VLOOKUP($H33,Measures!$C$33:$W$45,9,FALSE),IF($D33="Cold",VLOOKUP($H33,Measures!$C$46:$W$58,9,FALSE),IF($D33="Very Cold",VLOOKUP($H33,Measures!$C$59:$W$72,9,FALSE)," ")))))) ->  | Z33: =IF($G33="User-defined Measure",VLOOKUP($H33,Measures!$C$73:$W$77,12,FALSE),IF($D33="Hot & Humid",VLOOKUP($H33,Measures!$C$6:$W$19,12,FALSE),IF($D33="Hot & Dry",VLOOKUP($H33,Measures!$C$20:$W$32,12,FALSE),IF($D33="Marine",VLOOKUP($H33,Measures!$C$33:$W$45,12,FALSE),IF($D33="Cold",VLOOKUP($H33,Measures!$C$46:$W$58,12,FALSE),IF($D33="Very Cold",VLOOKUP($H33,Measures!$C$59:$W$72,12,FALSE)," ")))))) -> 
M34: =IF(F34<>0,VLOOKUP(F34,'Emission Factors'!$A$4:$J$31,7,FALSE)," ") ->  | N34: =IF($G34="User-defined Measure",VLOOKUP($H34,Measures!$C$73:$W$77,16,FALSE),IF($D34="Hot & Humid",VLOOKUP($H34,Measures!$C$6:$W$19,16,FALSE),IF($D34="Hot & Dry",VLOOKUP($H34,Measures!$C$20:$W$32,16,FALSE),IF($D34="Marine",VLOOKUP($H34,Measures!$C$33:$W$45,16,FALSE),IF($D34="Cold",VLOOKUP($H34,Measures!$C$46:$W$58,16,FALSE),IF($D34="Very Cold",VLOOKUP($H34,Measures!$C$59:$W$72,16,FALSE)," ")))))) ->  | O34: =IF($G34="User-defined Measure",VLOOKUP($H34,Measures!$C$73:$W$77,19,FALSE),IF($D34="Hot & Humid",VLOOKUP($H34,Measures!$C$6:$W$19,19,FALSE),IF($D34="Hot & Dry",VLOOKUP($H34,Measures!$C$20:$W$32,19,FALSE),IF($D34="Marine",VLOOKUP($H34,Measures!$C$33:$W$45,19,FALSE),IF($D34="Cold",VLOOKUP($H34,Measures!$C$46:$W$58,19,FALSE),IF($D34="Very Cold",VLOOKUP($H34,Measures!$C$59:$W$72,19,FALSE)," ")))))) ->  | S34: =IF(B34=0," ",PRODUCT(O34,'Emission Factors'!$J$36,E34,I34)/1000) ->  | V34: =IF($G34="User-defined Measure",VLOOKUP($H34,Measures!$C$73:$X$77,22,FALSE),IF($D34="Hot & Humid",VLOOKUP($H34,Measures!$C$6:$X$19,22,FALSE),IF($D34="Hot & Dry",VLOOKUP($H34,Measures!$C$20:$X$32,22,FALSE),IF($D34="Marine",VLOOKUP($H34,Measures!$C$33:$X$45,22,FALSE),IF($D34="Cold",VLOOKUP($H34,Measures!$C$46:$X$58,22,FALSE),IF($D34="Very Cold",VLOOKUP($H34,Measures!$C$59:$X$72,22,FALSE)," ")))))) ->  | X34: =IF($G34="User-defined Measure",VLOOKUP($H34,Measures!$C$73:$W$77,9,FALSE),IF($D34="Hot & Humid",VLOOKUP($H34,Measures!$C$6:$W$19,9,FALSE),IF($D34="Hot & Dry",VLOOKUP($H34,Measures!$C$20:$W$32,9,FALSE),IF($D34="Marine",VLOOKUP($H34,Measures!$C$33:$W$45,9,FALSE),IF($D34="Cold",VLOOKUP($H34,Measures!$C$46:$W$58,9,FALSE),IF($D34="Very Cold",VLOOKUP($H34,Measures!$C$59:$W$72,9,FALSE)," ")))))) ->  | Z34: =IF($G34="User-defined Measure",VLOOKUP($H34,Measures!$C$73:$W$77,12,FALSE),IF($D34="Hot & Humid",VLOOKUP($H34,Measures!$C$6:$W$19,12,FALSE),IF($D34="Hot & Dry",VLOOKUP($H34,Measures!$C$20:$W$32,12,FALSE),IF($D34="Marine",VLOOKUP($H34,Measures!$C$33:$W$45,12,FALSE),IF($D34="Cold",VLOOKUP($H34,Measures!$C$46:$W$58,12,FALSE),IF($D34="Very Cold",VLOOKUP($H34,Measures!$C$59:$W$72,12,FALSE)," ")))))) -> 
M35: =IF(F35<>0,VLOOKUP(F35,'Emission Factors'!$A$4:$J$31,7,FALSE)," ") ->  | N35: =IF($G35="User-defined Measure",VLOOKUP($H35,Measures!$C$73:$W$77,16,FALSE),IF($D35="Hot & Humid",VLOOKUP($H35,Measures!$C$6:$W$19,16,FALSE),IF($D35="Hot & Dry",VLOOKUP($H35,Measures!$C$20:$W$32,16,FALSE),IF($D35="Marine",VLOOKUP($H35,Measures!$C$33:$W$45,16,FALSE),IF($D35="Cold",VLOOKUP($H35,Measures!$C$46:$W$58,16,FALSE),IF($D35="Very Cold",VLOOKUP($H35,Measures!$C$59:$W$72,16,FALSE)," ")))))) ->  | O35: =IF($G35="User-defined Measure",VLOOKUP($H35,Measures!$C$73:$W$77,19,FALSE),IF($D35="Hot & Humid",VLOOKUP($H35,Measures!$C$6:$W$19,19,FALSE),IF($D35="Hot & Dry",VLOOKUP($H35,Measures!$C$20:$W$32,19,FALSE),IF($D35="Marine",VLOOKUP($H35,Measures!$C$33:$W$45,19,FALSE),IF($D35="Cold",VLOOKUP($H35,Measures!$C$46:$W$58,19,FALSE),IF($D35="Very Cold",VLOOKUP($H35,Measures!$C$59:$W$72,19,FALSE)," ")))))) ->  | S35: =IF(B35=0," ",PRODUCT(O35,'Emission Factors'!$J$36,E35,I35)/1000) ->  | V35: =IF($G35="User-defined Measure",VLOOKUP($H35,Measures!$C$73:$X$77,22,FALSE),IF($D35="Hot & Humid",VLOOKUP($H35,Measures!$C$6:$X$19,22,FALSE),IF($D35="Hot & Dry",VLOOKUP($H35,Measures!$C$20:$X$32,22,FALSE),IF($D35="Marine",VLOOKUP($H35,Measures!$C$33:$X$45,22,FALSE),IF($D35="Cold",VLOOKUP($H35,Measures!$C$46:$X$58,22,FALSE),IF($D35="Very Cold",VLOOKUP($H35,Measures!$C$59:$X$72,22,FALSE)," ")))))) ->  | X35: =IF($G35="User-defined Measure",VLOOKUP($H35,Measures!$C$73:$W$77,9,FALSE),IF($D35="Hot & Humid",VLOOKUP($H35,Measures!$C$6:$W$19,9,FALSE),IF($D35="Hot & Dry",VLOOKUP($H35,Measures!$C$20:$W$32,9,FALSE),IF($D35="Marine",VLOOKUP($H35,Measures!$C$33:$W$45,9,FALSE),IF($D35="Cold",VLOOKUP($H35,Measures!$C$46:$W$58,9,FALSE),IF($D35="Very Cold",VLOOKUP($H35,Measures!$C$59:$W$72,9,FALSE)," ")))))) ->  | Z35: =IF($G35="User-defined Measure",VLOOKUP($H35,Measures!$C$73:$W$77,12,FALSE),IF($D35="Hot & Humid",VLOOKUP($H35,Measures!$C$6:$W$19,12,FALSE),IF($D35="Hot & Dry",VLOOKUP($H35,Measures!$C$20:$W$32,12,FALSE),IF($D35="Marine",VLOOKUP($H35,Measures!$C$33:$W$45,12,FALSE),IF($D35="Cold",VLOOKUP($H35,Measures!$C$46:$W$58,12,FALSE),IF($D35="Very Cold",VLOOKUP($H35,Measures!$C$59:$W$72,12,FALSE)," ")))))) -> 
M36: =IF(F36<>0,VLOOKUP(F36,'Emission Factors'!$A$4:$J$31,7,FALSE)," ") ->  | N36: =IF($G36="User-defined Measure",VLOOKUP($H36,Measures!$C$73:$W$77,16,FALSE),IF($D36="Hot & Humid",VLOOKUP($H36,Measures!$C$6:$W$19,16,FALSE),IF($D36="Hot & Dry",VLOOKUP($H36,Measures!$C$20:$W$32,16,FALSE),IF($D36="Marine",VLOOKUP($H36,Measures!$C$33:$W$45,16,FALSE),IF($D36="Cold",VLOOKUP($H36,Measures!$C$46:$W$58,16,FALSE),IF($D36="Very Cold",VLOOKUP($H36,Measures!$C$59:$W$72,16,FALSE)," ")))))) ->  | O36: =IF($G36="User-defined Measure",VLOOKUP($H36,Measures!$C$73:$W$77,19,FALSE),IF($D36="Hot & Humid",VLOOKUP($H36,Measures!$C$6:$W$19,19,FALSE),IF($D36="Hot & Dry",VLOOKUP($H36,Measures!$C$20:$W$32,19,FALSE),IF($D36="Marine",VLOOKUP($H36,Measures!$C$33:$W$45,19,FALSE),IF($D36="Cold",VLOOKUP($H36,Measures!$C$46:$W$58,19,FALSE),IF($D36="Very Cold",VLOOKUP($H36,Measures!$C$59:$W$72,19,FALSE)," ")))))) ->  | S36: =IF(B36=0," ",PRODUCT(O36,'Emission Factors'!$J$36,E36,I36)/1000) ->  | V36: =IF($G36="User-defined Measure",VLOOKUP($H36,Measures!$C$73:$X$77,22,FALSE),IF($D36="Hot & Humid",VLOOKUP($H36,Measures!$C$6:$X$19,22,FALSE),IF($D36="Hot & Dry",VLOOKUP($H36,Measures!$C$20:$X$32,22,FALSE),IF($D36="Marine",VLOOKUP($H36,Measures!$C$33:$X$45,22,FALSE),IF($D36="Cold",VLOOKUP($H36,Measures!$C$46:$X$58,22,FALSE),IF($D36="Very Cold",VLOOKUP($H36,Measures!$C$59:$X$72,22,FALSE)," ")))))) ->  | X36: =IF($G36="User-defined Measure",VLOOKUP($H36,Measures!$C$73:$W$77,9,FALSE),IF($D36="Hot & Humid",VLOOKUP($H36,Measures!$C$6:$W$19,9,FALSE),IF($D36="Hot & Dry",VLOOKUP($H36,Measures!$C$20:$W$32,9,FALSE),IF($D36="Marine",VLOOKUP($H36,Measures!$C$33:$W$45,9,FALSE),IF($D36="Cold",VLOOKUP($H36,Measures!$C$46:$W$58,9,FALSE),IF($D36="Very Cold",VLOOKUP($H36,Measures!$C$59:$W$72,9,FALSE)," ")))))) ->  | Z36: =IF($G36="User-defined Measure",VLOOKUP($H36,Measures!$C$73:$W$77,12,FALSE),IF($D36="Hot & Humid",VLOOKUP($H36,Measures!$C$6:$W$19,12,FALSE),IF($D36="Hot & Dry",VLOOKUP($H36,Measures!$C$20:$W$32,12,FALSE),IF($D36="Marine",VLOOKUP($H36,Measures!$C$33:$W$45,12,FALSE),IF($D36="Cold",VLOOKUP($H36,Measures!$C$46:$W$58,12,FALSE),IF($D36="Very Cold",VLOOKUP($H36,Measures!$C$59:$W$72,12,FALSE)," ")))))) -> 
M37: =IF(F37<>0,VLOOKUP(F37,'Emission Factors'!$A$4:$J$31,7,FALSE)," ") ->  | N37: =IF($G37="User-defined Measure",VLOOKUP($H37,Measures!$C$73:$W$77,16,FALSE),IF($D37="Hot & Humid",VLOOKUP($H37,Measures!$C$6:$W$19,16,FALSE),IF($D37="Hot & Dry",VLOOKUP($H37,Measures!$C$20:$W$32,16,FALSE),IF($D37="Marine",VLOOKUP($H37,Measures!$C$33:$W$45,16,FALSE),IF($D37="Cold",VLOOKUP($H37,Measures!$C$46:$W$58,16,FALSE),IF($D37="Very Cold",VLOOKUP($H37,Measures!$C$59:$W$72,16,FALSE)," ")))))) ->  | O37: =IF($G37="User-defined Measure",VLOOKUP($H37,Measures!$C$73:$W$77,19,FALSE),IF($D37="Hot & Humid",VLOOKUP($H37,Measures!$C$6:$W$19,19,FALSE),IF($D37="Hot & Dry",VLOOKUP($H37,Measures!$C$20:$W$32,19,FALSE),IF($D37="Marine",VLOOKUP($H37,Measures!$C$33:$W$45,19,FALSE),IF($D37="Cold",VLOOKUP($H37,Measures!$C$46:$W$58,19,FALSE),IF($D37="Very Cold",VLOOKUP($H37,Measures!$C$59:$W$72,19,FALSE)," ")))))) ->  | S37: =IF(B37=0," ",PRODUCT(O37,'Emission Factors'!$J$36,E37,I37)/1000) ->  | V37: =IF($G37="User-defined Measure",VLOOKUP($H37,Measures!$C$73:$X$77,22,FALSE),IF($D37="Hot & Humid",VLOOKUP($H37,Measures!$C$6:$X$19,22,FALSE),IF($D37="Hot & Dry",VLOOKUP($H37,Measures!$C$20:$X$32,22,FALSE),IF($D37="Marine",VLOOKUP($H37,Measures!$C$33:$X$45,22,FALSE),IF($D37="Cold",VLOOKUP($H37,Measures!$C$46:$X$58,22,FALSE),IF($D37="Very Cold",VLOOKUP($H37,Measures!$C$59:$X$72,22,FALSE)," ")))))) ->  | X37: =IF($G37="User-defined Measure",VLOOKUP($H37,Measures!$C$73:$W$77,9,FALSE),IF($D37="Hot & Humid",VLOOKUP($H37,Measures!$C$6:$W$19,9,FALSE),IF($D37="Hot & Dry",VLOOKUP($H37,Measures!$C$20:$W$32,9,FALSE),IF($D37="Marine",VLOOKUP($H37,Measures!$C$33:$W$45,9,FALSE),IF($D37="Cold",VLOOKUP($H37,Measures!$C$46:$W$58,9,FALSE),IF($D37="Very Cold",VLOOKUP($H37,Measures!$C$59:$W$72,9,FALSE)," ")))))) ->  | Z37: =IF($G37="User-defined Measure",VLOOKUP($H37,Measures!$C$73:$W$77,12,FALSE),IF($D37="Hot & Humid",VLOOKUP($H37,Measures!$C$6:$W$19,12,FALSE),IF($D37="Hot & Dry",VLOOKUP($H37,Measures!$C$20:$W$32,12,FALSE),IF($D37="Marine",VLOOKUP($H37,Measures!$C$33:$W$45,12,FALSE),IF($D37="Cold",VLOOKUP($H37,Measures!$C$46:$W$58,12,FALSE),IF($D37="Very Cold",VLOOKUP($H37,Measures!$C$59:$W$72,12,FALSE)," ")))))) -> 
M38: =IF(F38<>0,VLOOKUP(F38,'Emission Factors'!$A$4:$J$31,7,FALSE)," ") ->  | N38: =IF($G38="User-defined Measure",VLOOKUP($H38,Measures!$C$73:$W$77,16,FALSE),IF($D38="Hot & Humid",VLOOKUP($H38,Measures!$C$6:$W$19,16,FALSE),IF($D38="Hot & Dry",VLOOKUP($H38,Measures!$C$20:$W$32,16,FALSE),IF($D38="Marine",VLOOKUP($H38,Measures!$C$33:$W$45,16,FALSE),IF($D38="Cold",VLOOKUP($H38,Measures!$C$46:$W$58,16,FALSE),IF($D38="Very Cold",VLOOKUP($H38,Measures!$C$59:$W$72,16,FALSE)," ")))))) ->  | O38: =IF($G38="User-defined Measure",VLOOKUP($H38,Measures!$C$73:$W$77,19,FALSE),IF($D38="Hot & Humid",VLOOKUP($H38,Measures!$C$6:$W$19,19,FALSE),IF($D38="Hot & Dry",VLOOKUP($H38,Measures!$C$20:$W$32,19,FALSE),IF($D38="Marine",VLOOKUP($H38,Measures!$C$33:$W$45,19,FALSE),IF($D38="Cold",VLOOKUP($H38,Measures!$C$46:$W$58,19,FALSE),IF($D38="Very Cold",VLOOKUP($H38,Measures!$C$59:$W$72,19,FALSE)," ")))))) ->  | S38: =IF(B38=0," ",PRODUCT(O38,'Emission Factors'!$J$36,E38,I38)/1000) ->  | V38: =IF($G38="User-defined Measure",VLOOKUP($H38,Measures!$C$73:$X$77,22,FALSE),IF($D38="Hot & Humid",VLOOKUP($H38,Measures!$C$6:$X$19,22,FALSE),IF($D38="Hot & Dry",VLOOKUP($H38,Measures!$C$20:$X$32,22,FALSE),IF($D38="Marine",VLOOKUP($H38,Measures!$C$33:$X$45,22,FALSE),IF($D38="Cold",VLOOKUP($H38,Measures!$C$46:$X$58,22,FALSE),IF($D38="Very Cold",VLOOKUP($H38,Measures!$C$59:$X$72,22,FALSE)," ")))))) ->  | X38: =IF($G38="User-defined Measure",VLOOKUP($H38,Measures!$C$73:$W$77,9,FALSE),IF($D38="Hot & Humid",VLOOKUP($H38,Measures!$C$6:$W$19,9,FALSE),IF($D38="Hot & Dry",VLOOKUP($H38,Measures!$C$20:$W$32,9,FALSE),IF($D38="Marine",VLOOKUP($H38,Measures!$C$33:$W$45,9,FALSE),IF($D38="Cold",VLOOKUP($H38,Measures!$C$46:$W$58,9,FALSE),IF($D38="Very Cold",VLOOKUP($H38,Measures!$C$59:$W$72,9,FALSE)," ")))))) ->  | Z38: =IF($G38="User-defined Measure",VLOOKUP($H38,Measures!$C$73:$W$77,12,FALSE),IF($D38="Hot & Humid",VLOOKUP($H38,Measures!$C$6:$W$19,12,FALSE),IF($D38="Hot & Dry",VLOOKUP($H38,Measures!$C$20:$W$32,12,FALSE),IF($D38="Marine",VLOOKUP($H38,Measures!$C$33:$W$45,12,FALSE),IF($D38="Cold",VLOOKUP($H38,Measures!$C$46:$W$58,12,FALSE),IF($D38="Very Cold",VLOOKUP($H38,Measures!$C$59:$W$72,12,FALSE)," ")))))) -> 
M39: =IF(F39<>0,VLOOKUP(F39,'Emission Factors'!$A$4:$J$31,7,FALSE)," ") ->  | N39: =IF($G39="User-defined Measure",VLOOKUP($H39,Measures!$C$73:$W$77,16,FALSE),IF($D39="Hot & Humid",VLOOKUP($H39,Measures!$C$6:$W$19,16,FALSE),IF($D39="Hot & Dry",VLOOKUP($H39,Measures!$C$20:$W$32,16,FALSE),IF($D39="Marine",VLOOKUP($H39,Measures!$C$33:$W$45,16,FALSE),IF($D39="Cold",VLOOKUP($H39,Measures!$C$46:$W$58,16,FALSE),IF($D39="Very Cold",VLOOKUP($H39,Measures!$C$59:$W$72,16,FALSE)," ")))))) ->  | O39: =IF($G39="User-defined Measure",VLOOKUP($H39,Measures!$C$73:$W$77,19,FALSE),IF($D39="Hot & Humid",VLOOKUP($H39,Measures!$C$6:$W$19,19,FALSE),IF($D39="Hot & Dry",VLOOKUP($H39,Measures!$C$20:$W$32,19,FALSE),IF($D39="Marine",VLOOKUP($H39,Measures!$C$33:$W$45,19,FALSE),IF($D39="Cold",VLOOKUP($H39,Measures!$C$46:$W$58,19,FALSE),IF($D39="Very Cold",VLOOKUP($H39,Measures!$C$59:$W$72,19,FALSE)," ")))))) ->  | S39: =IF(B39=0," ",PRODUCT(O39,'Emission Factors'!$J$36,E39,I39)/1000) ->  | V39: =IF($G39="User-defined Measure",VLOOKUP($H39,Measures!$C$73:$X$77,22,FALSE),IF($D39="Hot & Humid",VLOOKUP($H39,Measures!$C$6:$X$19,22,FALSE),IF($D39="Hot & Dry",VLOOKUP($H39,Measures!$C$20:$X$32,22,FALSE),IF($D39="Marine",VLOOKUP($H39,Measures!$C$33:$X$45,22,FALSE),IF($D39="Cold",VLOOKUP($H39,Measures!$C$46:$X$58,22,FALSE),IF($D39="Very Cold",VLOOKUP($H39,Measures!$C$59:$X$72,22,FALSE)," ")))))) ->  | X39: =IF($G39="User-defined Measure",VLOOKUP($H39,Measures!$C$73:$W$77,9,FALSE),IF($D39="Hot & Humid",VLOOKUP($H39,Measures!$C$6:$W$19,9,FALSE),IF($D39="Hot & Dry",VLOOKUP($H39,Measures!$C$20:$W$32,9,FALSE),IF($D39="Marine",VLOOKUP($H39,Measures!$C$33:$W$45,9,FALSE),IF($D39="Cold",VLOOKUP($H39,Measures!$C$46:$W$58,9,FALSE),IF($D39="Very Cold",VLOOKUP($H39,Measures!$C$59:$W$72,9,FALSE)," ")))))) ->  | Z39: =IF($G39="User-defined Measure",VLOOKUP($H39,Measures!$C$73:$W$77,12,FALSE),IF($D39="Hot & Humid",VLOOKUP($H39,Measures!$C$6:$W$19,12,FALSE),IF($D39="Hot & Dry",VLOOKUP($H39,Measures!$C$20:$W$32,12,FALSE),IF($D39="Marine",VLOOKUP($H39,Measures!$C$33:$W$45,12,FALSE),IF($D39="Cold",VLOOKUP($H39,Measures!$C$46:$W$58,12,FALSE),IF($D39="Very Cold",VLOOKUP($H39,Measures!$C$59:$W$72,12,FALSE)," ")))))) -> 
M40: =IF(F40<>0,VLOOKUP(F40,'Emission Factors'!$A$4:$J$31,7,FALSE)," ") ->  | N40: =IF($G40="User-defined Measure",VLOOKUP($H40,Measures!$C$73:$W$77,16,FALSE),IF($D40="Hot & Humid",VLOOKUP($H40,Measures!$C$6:$W$19,16,FALSE),IF($D40="Hot & Dry",VLOOKUP($H40,Measures!$C$20:$W$32,16,FALSE),IF($D40="Marine",VLOOKUP($H40,Measures!$C$33:$W$45,16,FALSE),IF($D40="Cold",VLOOKUP($H40,Measures!$C$46:$W$58,16,FALSE),IF($D40="Very Cold",VLOOKUP($H40,Measures!$C$59:$W$72,16,FALSE)," ")))))) ->  | O40: =IF($G40="User-defined Measure",VLOOKUP($H40,Measures!$C$73:$W$77,19,FALSE),IF($D40="Hot & Humid",VLOOKUP($H40,Measures!$C$6:$W$19,19,FALSE),IF($D40="Hot & Dry",VLOOKUP($H40,Measures!$C$20:$W$32,19,FALSE),IF($D40="Marine",VLOOKUP($H40,Measures!$C$33:$W$45,19,FALSE),IF($D40="Cold",VLOOKUP($H40,Measures!$C$46:$W$58,19,FALSE),IF($D40="Very Cold",VLOOKUP($H40,Measures!$C$59:$W$72,19,FALSE)," ")))))) ->  | S40: =IF(B40=0," ",PRODUCT(O40,'Emission Factors'!$J$36,E40,I40)/1000) ->  | V40: =IF($G40="User-defined Measure",VLOOKUP($H40,Measures!$C$73:$X$77,22,FALSE),IF($D40="Hot & Humid",VLOOKUP($H40,Measures!$C$6:$X$19,22,FALSE),IF($D40="Hot & Dry",VLOOKUP($H40,Measures!$C$20:$X$32,22,FALSE),IF($D40="Marine",VLOOKUP($H40,Measures!$C$33:$X$45,22,FALSE),IF($D40="Cold",VLOOKUP($H40,Measures!$C$46:$X$58,22,FALSE),IF($D40="Very Cold",VLOOKUP($H40,Measures!$C$59:$X$72,22,FALSE)," ")))))) ->  | X40: =IF($G40="User-defined Measure",VLOOKUP($H40,Measures!$C$73:$W$77,9,FALSE),IF($D40="Hot & Humid",VLOOKUP($H40,Measures!$C$6:$W$19,9,FALSE),IF($D40="Hot & Dry",VLOOKUP($H40,Measures!$C$20:$W$32,9,FALSE),IF($D40="Marine",VLOOKUP($H40,Measures!$C$33:$W$45,9,FALSE),IF($D40="Cold",VLOOKUP($H40,Measures!$C$46:$W$58,9,FALSE),IF($D40="Very Cold",VLOOKUP($H40,Measures!$C$59:$W$72,9,FALSE)," ")))))) ->  | Z40: =IF($G40="User-defined Measure",VLOOKUP($H40,Measures!$C$73:$W$77,12,FALSE),IF($D40="Hot & Humid",VLOOKUP($H40,Measures!$C$6:$W$19,12,FALSE),IF($D40="Hot & Dry",VLOOKUP($H40,Measures!$C$20:$W$32,12,FALSE),IF($D40="Marine",VLOOKUP($H40,Measures!$C$33:$W$45,12,FALSE),IF($D40="Cold",VLOOKUP($H40,Measures!$C$46:$W$58,12,FALSE),IF($D40="Very Cold",VLOOKUP($H40,Measures!$C$59:$W$72,12,FALSE)," ")))))) -> 
M41: =IF(F41<>0,VLOOKUP(F41,'Emission Factors'!$A$4:$J$31,7,FALSE)," ") ->  | N41: =IF($G41="User-defined Measure",VLOOKUP($H41,Measures!$C$73:$W$77,16,FALSE),IF($D41="Hot & Humid",VLOOKUP($H41,Measures!$C$6:$W$19,16,FALSE),IF($D41="Hot & Dry",VLOOKUP($H41,Measures!$C$20:$W$32,16,FALSE),IF($D41="Marine",VLOOKUP($H41,Measures!$C$33:$W$45,16,FALSE),IF($D41="Cold",VLOOKUP($H41,Measures!$C$46:$W$58,16,FALSE),IF($D41="Very Cold",VLOOKUP($H41,Measures!$C$59:$W$72,16,FALSE)," ")))))) ->  | O41: =IF($G41="User-defined Measure",VLOOKUP($H41,Measures!$C$73:$W$77,19,FALSE),IF($D41="Hot & Humid",VLOOKUP($H41,Measures!$C$6:$W$19,19,FALSE),IF($D41="Hot & Dry",VLOOKUP($H41,Measures!$C$20:$W$32,19,FALSE),IF($D41="Marine",VLOOKUP($H41,Measures!$C$33:$W$45,19,FALSE),IF($D41="Cold",VLOOKUP($H41,Measures!$C$46:$W$58,19,FALSE),IF($D41="Very Cold",VLOOKUP($H41,Measures!$C$59:$W$72,19,FALSE)," ")))))) ->  | S41: =IF(B41=0," ",PRODUCT(O41,'Emission Factors'!$J$36,E41,I41)/1000) ->  | V41: =IF($G41="User-defined Measure",VLOOKUP($H41,Measures!$C$73:$X$77,22,FALSE),IF($D41="Hot & Humid",VLOOKUP($H41,Measures!$C$6:$X$19,22,FALSE),IF($D41="Hot & Dry",VLOOKUP($H41,Measures!$C$20:$X$32,22,FALSE),IF($D41="Marine",VLOOKUP($H41,Measures!$C$33:$X$45,22,FALSE),IF($D41="Cold",VLOOKUP($H41,Measures!$C$46:$X$58,22,FALSE),IF($D41="Very Cold",VLOOKUP($H41,Measures!$C$59:$X$72,22,FALSE)," ")))))) ->  | X41: =IF($G41="User-defined Measure",VLOOKUP($H41,Measures!$C$73:$W$77,9,FALSE),IF($D41="Hot & Humid",VLOOKUP($H41,Measures!$C$6:$W$19,9,FALSE),IF($D41="Hot & Dry",VLOOKUP($H41,Measures!$C$20:$W$32,9,FALSE),IF($D41="Marine",VLOOKUP($H41,Measures!$C$33:$W$45,9,FALSE),IF($D41="Cold",VLOOKUP($H41,Measures!$C$46:$W$58,9,FALSE),IF($D41="Very Cold",VLOOKUP($H41,Measures!$C$59:$W$72,9,FALSE)," ")))))) ->  | Z41: =IF($G41="User-defined Measure",VLOOKUP($H41,Measures!$C$73:$W$77,12,FALSE),IF($D41="Hot & Humid",VLOOKUP($H41,Measures!$C$6:$W$19,12,FALSE),IF($D41="Hot & Dry",VLOOKUP($H41,Measures!$C$20:$W$32,12,FALSE),IF($D41="Marine",VLOOKUP($H41,Measures!$C$33:$W$45,12,FALSE),IF($D41="Cold",VLOOKUP($H41,Measures!$C$46:$W$58,12,FALSE),IF($D41="Very Cold",VLOOKUP($H41,Measures!$C$59:$W$72,12,FALSE)," ")))))) -> 
M42: =IF(F42<>0,VLOOKUP(F42,'Emission Factors'!$A$4:$J$31,7,FALSE)," ") ->  | N42: =IF($G42="User-defined Measure",VLOOKUP($H42,Measures!$C$73:$W$77,16,FALSE),IF($D42="Hot & Humid",VLOOKUP($H42,Measures!$C$6:$W$19,16,FALSE),IF($D42="Hot & Dry",VLOOKUP($H42,Measures!$C$20:$W$32,16,FALSE),IF($D42="Marine",VLOOKUP($H42,Measures!$C$33:$W$45,16,FALSE),IF($D42="Cold",VLOOKUP($H42,Measures!$C$46:$W$58,16,FALSE),IF($D42="Very Cold",VLOOKUP($H42,Measures!$C$59:$W$72,16,FALSE)," ")))))) ->  | O42: =IF($G42="User-defined Measure",VLOOKUP($H42,Measures!$C$73:$W$77,19,FALSE),IF($D42="Hot & Humid",VLOOKUP($H42,Measures!$C$6:$W$19,19,FALSE),IF($D42="Hot & Dry",VLOOKUP($H42,Measures!$C$20:$W$32,19,FALSE),IF($D42="Marine",VLOOKUP($H42,Measures!$C$33:$W$45,19,FALSE),IF($D42="Cold",VLOOKUP($H42,Measures!$C$46:$W$58,19,FALSE),IF($D42="Very Cold",VLOOKUP($H42,Measures!$C$59:$W$72,19,FALSE)," ")))))) ->  | S42: =IF(B42=0," ",PRODUCT(O42,'Emission Factors'!$J$36,E42,I42)/1000) ->  | V42: =IF($G42="User-defined Measure",VLOOKUP($H42,Measures!$C$73:$X$77,22,FALSE),IF($D42="Hot & Humid",VLOOKUP($H42,Measures!$C$6:$X$19,22,FALSE),IF($D42="Hot & Dry",VLOOKUP($H42,Measures!$C$20:$X$32,22,FALSE),IF($D42="Marine",VLOOKUP($H42,Measures!$C$33:$X$45,22,FALSE),IF($D42="Cold",VLOOKUP($H42,Measures!$C$46:$X$58,22,FALSE),IF($D42="Very Cold",VLOOKUP($H42,Measures!$C$59:$X$72,22,FALSE)," ")))))) ->  | X42: =IF($G42="User-defined Measure",VLOOKUP($H42,Measures!$C$73:$W$77,9,FALSE),IF($D42="Hot & Humid",VLOOKUP($H42,Measures!$C$6:$W$19,9,FALSE),IF($D42="Hot & Dry",VLOOKUP($H42,Measures!$C$20:$W$32,9,FALSE),IF($D42="Marine",VLOOKUP($H42,Measures!$C$33:$W$45,9,FALSE),IF($D42="Cold",VLOOKUP($H42,Measures!$C$46:$W$58,9,FALSE),IF($D42="Very Cold",VLOOKUP($H42,Measures!$C$59:$W$72,9,FALSE)," ")))))) ->  | Z42: =IF($G42="User-defined Measure",VLOOKUP($H42,Measures!$C$73:$W$77,12,FALSE),IF($D42="Hot & Humid",VLOOKUP($H42,Measures!$C$6:$W$19,12,FALSE),IF($D42="Hot & Dry",VLOOKUP($H42,Measures!$C$20:$W$32,12,FALSE),IF($D42="Marine",VLOOKUP($H42,Measures!$C$33:$W$45,12,FALSE),IF($D42="Cold",VLOOKUP($H42,Measures!$C$46:$W$58,12,FALSE),IF($D42="Very Cold",VLOOKUP($H42,Measures!$C$59:$W$72,12,FALSE)," ")))))) -> 
M43: =IF(F43<>0,VLOOKUP(F43,'Emission Factors'!$A$4:$J$31,7,FALSE)," ") ->  | N43: =IF($G43="User-defined Measure",VLOOKUP($H43,Measures!$C$73:$W$77,16,FALSE),IF($D43="Hot & Humid",VLOOKUP($H43,Measures!$C$6:$W$19,16,FALSE),IF($D43="Hot & Dry",VLOOKUP($H43,Measures!$C$20:$W$32,16,FALSE),IF($D43="Marine",VLOOKUP($H43,Measures!$C$33:$W$45,16,FALSE),IF($D43="Cold",VLOOKUP($H43,Measures!$C$46:$W$58,16,FALSE),IF($D43="Very Cold",VLOOKUP($H43,Measures!$C$59:$W$72,16,FALSE)," ")))))) ->  | O43: =IF($G43="User-defined Measure",VLOOKUP($H43,Measures!$C$73:$W$77,19,FALSE),IF($D43="Hot & Humid",VLOOKUP($H43,Measures!$C$6:$W$19,19,FALSE),IF($D43="Hot & Dry",VLOOKUP($H43,Measures!$C$20:$W$32,19,FALSE),IF($D43="Marine",VLOOKUP($H43,Measures!$C$33:$W$45,19,FALSE),IF($D43="Cold",VLOOKUP($H43,Measures!$C$46:$W$58,19,FALSE),IF($D43="Very Cold",VLOOKUP($H43,Measures!$C$59:$W$72,19,FALSE)," ")))))) ->  | S43: =IF(B43=0," ",PRODUCT(O43,'Emission Factors'!$J$36,E43,I43)/1000) ->  | V43: =IF($G43="User-defined Measure",VLOOKUP($H43,Measures!$C$73:$X$77,22,FALSE),IF($D43="Hot & Humid",VLOOKUP($H43,Measures!$C$6:$X$19,22,FALSE),IF($D43="Hot & Dry",VLOOKUP($H43,Measures!$C$20:$X$32,22,FALSE),IF($D43="Marine",VLOOKUP($H43,Measures!$C$33:$X$45,22,FALSE),IF($D43="Cold",VLOOKUP($H43,Measures!$C$46:$X$58,22,FALSE),IF($D43="Very Cold",VLOOKUP($H43,Measures!$C$59:$X$72,22,FALSE)," ")))))) ->  | X43: =IF($G43="User-defined Measure",VLOOKUP($H43,Measures!$C$73:$W$77,9,FALSE),IF($D43="Hot & Humid",VLOOKUP($H43,Measures!$C$6:$W$19,9,FALSE),IF($D43="Hot & Dry",VLOOKUP($H43,Measures!$C$20:$W$32,9,FALSE),IF($D43="Marine",VLOOKUP($H43,Measures!$C$33:$W$45,9,FALSE),IF($D43="Cold",VLOOKUP($H43,Measures!$C$46:$W$58,9,FALSE),IF($D43="Very Cold",VLOOKUP($H43,Measures!$C$59:$W$72,9,FALSE)," ")))))) ->  | Z43: =IF($G43="User-defined Measure",VLOOKUP($H43,Measures!$C$73:$W$77,12,FALSE),IF($D43="Hot & Humid",VLOOKUP($H43,Measures!$C$6:$W$19,12,FALSE),IF($D43="Hot & Dry",VLOOKUP($H43,Measures!$C$20:$W$32,12,FALSE),IF($D43="Marine",VLOOKUP($H43,Measures!$C$33:$W$45,12,FALSE),IF($D43="Cold",VLOOKUP($H43,Measures!$C$46:$W$58,12,FALSE),IF($D43="Very Cold",VLOOKUP($H43,Measures!$C$59:$W$72,12,FALSE)," ")))))) -> 
M44: =IF(F44<>0,VLOOKUP(F44,'Emission Factors'!$A$4:$J$31,7,FALSE)," ") ->  | N44: =IF($G44="User-defined Measure",VLOOKUP($H44,Measures!$C$73:$W$77,16,FALSE),IF($D44="Hot & Humid",VLOOKUP($H44,Measures!$C$6:$W$19,16,FALSE),IF($D44="Hot & Dry",VLOOKUP($H44,Measures!$C$20:$W$32,16,FALSE),IF($D44="Marine",VLOOKUP($H44,Measures!$C$33:$W$45,16,FALSE),IF($D44="Cold",VLOOKUP($H44,Measures!$C$46:$W$58,16,FALSE),IF($D44="Very Cold",VLOOKUP($H44,Measures!$C$59:$W$72,16,FALSE)," ")))))) ->  | O44: =IF($G44="User-defined Measure",VLOOKUP($H44,Measures!$C$73:$W$77,19,FALSE),IF($D44="Hot & Humid",VLOOKUP($H44,Measures!$C$6:$W$19,19,FALSE),IF($D44="Hot & Dry",VLOOKUP($H44,Measures!$C$20:$W$32,19,FALSE),IF($D44="Marine",VLOOKUP($H44,Measures!$C$33:$W$45,19,FALSE),IF($D44="Cold",VLOOKUP($H44,Measures!$C$46:$W$58,19,FALSE),IF($D44="Very Cold",VLOOKUP($H44,Measures!$C$59:$W$72,19,FALSE)," ")))))) ->  | S44: =IF(B44=0," ",PRODUCT(O44,'Emission Factors'!$J$36,E44,I44)/1000) ->  | V44: =IF($G44="User-defined Measure",VLOOKUP($H44,Measures!$C$73:$X$77,22,FALSE),IF($D44="Hot & Humid",VLOOKUP($H44,Measures!$C$6:$X$19,22,FALSE),IF($D44="Hot & Dry",VLOOKUP($H44,Measures!$C$20:$X$32,22,FALSE),IF($D44="Marine",VLOOKUP($H44,Measures!$C$33:$X$45,22,FALSE),IF($D44="Cold",VLOOKUP($H44,Measures!$C$46:$X$58,22,FALSE),IF($D44="Very Cold",VLOOKUP($H44,Measures!$C$59:$X$72,22,FALSE)," ")))))) ->  | X44: =IF($G44="User-defined Measure",VLOOKUP($H44,Measures!$C$73:$W$77,9,FALSE),IF($D44="Hot & Humid",VLOOKUP($H44,Measures!$C$6:$W$19,9,FALSE),IF($D44="Hot & Dry",VLOOKUP($H44,Measures!$C$20:$W$32,9,FALSE),IF($D44="Marine",VLOOKUP($H44,Measures!$C$33:$W$45,9,FALSE),IF($D44="Cold",VLOOKUP($H44,Measures!$C$46:$W$58,9,FALSE),IF($D44="Very Cold",VLOOKUP($H44,Measures!$C$59:$W$72,9,FALSE)," ")))))) ->  | Z44: =IF($G44="User-defined Measure",VLOOKUP($H44,Measures!$C$73:$W$77,12,FALSE),IF($D44="Hot & Humid",VLOOKUP($H44,Measures!$C$6:$W$19,12,FALSE),IF($D44="Hot & Dry",VLOOKUP($H44,Measures!$C$20:$W$32,12,FALSE),IF($D44="Marine",VLOOKUP($H44,Measures!$C$33:$W$45,12,FALSE),IF($D44="Cold",VLOOKUP($H44,Measures!$C$46:$W$58,12,FALSE),IF($D44="Very Cold",VLOOKUP($H44,Measures!$C$59:$W$72,12,FALSE)," ")))))) -> 
M45: =IF(F45<>0,VLOOKUP(F45,'Emission Factors'!$A$4:$J$31,7,FALSE)," ") ->  | N45: =IF($G45="User-defined Measure",VLOOKUP($H45,Measures!$C$73:$W$77,16,FALSE),IF($D45="Hot & Humid",VLOOKUP($H45,Measures!$C$6:$W$19,16,FALSE),IF($D45="Hot & Dry",VLOOKUP($H45,Measures!$C$20:$W$32,16,FALSE),IF($D45="Marine",VLOOKUP($H45,Measures!$C$33:$W$45,16,FALSE),IF($D45="Cold",VLOOKUP($H45,Measures!$C$46:$W$58,16,FALSE),IF($D45="Very Cold",VLOOKUP($H45,Measures!$C$59:$W$72,16,FALSE)," ")))))) ->  | O45: =IF($G45="User-defined Measure",VLOOKUP($H45,Measures!$C$73:$W$77,19,FALSE),IF($D45="Hot & Humid",VLOOKUP($H45,Measures!$C$6:$W$19,19,FALSE),IF($D45="Hot & Dry",VLOOKUP($H45,Measures!$C$20:$W$32,19,FALSE),IF($D45="Marine",VLOOKUP($H45,Measures!$C$33:$W$45,19,FALSE),IF($D45="Cold",VLOOKUP($H45,Measures!$C$46:$W$58,19,FALSE),IF($D45="Very Cold",VLOOKUP($H45,Measures!$C$59:$W$72,19,FALSE)," ")))))) ->  | P45: =IF(B45=0," ",SUM(N45,O45)) ->  | Q45: =IF(B45=0," ",SUM(N45,O45)*E45*I45) ->  | R45: =IF(B45=0," ",PRODUCT(M45,N45,E45,I45)/1000) ->  | S45: =IF(B45=0," ",PRODUCT(O45,'Emission Factors'!$J$36,E45,I45)/1000) ->  | T45: =IF(B45=0," ",R45+S45) ->  | V45: =IF($G45="User-defined Measure",VLOOKUP($H45,Measures!$C$73:$X$77,22,FALSE),IF($D45="Hot & Humid",VLOOKUP($H45,Measures!$C$6:$X$19,22,FALSE),IF($D45="Hot & Dry",VLOOKUP($H45,Measures!$C$20:$X$32,22,FALSE),IF($D45="Marine",VLOOKUP($H45,Measures!$C$33:$X$45,22,FALSE),IF($D45="Cold",VLOOKUP($H45,Measures!$C$46:$X$58,22,FALSE),IF($D45="Very Cold",VLOOKUP($H45,Measures!$C$59:$X$72,22,FALSE)," ")))))) ->  | X45: =IF($G45="User-defined Measure",VLOOKUP($H45,Measures!$C$73:$W$77,9,FALSE),IF($D45="Hot & Humid",VLOOKUP($H45,Measures!$C$6:$W$19,9,FALSE),IF($D45="Hot & Dry",VLOOKUP($H45,Measures!$C$20:$W$32,9,FALSE),IF($D45="Marine",VLOOKUP($H45,Measures!$C$33:$W$45,9,FALSE),IF($D45="Cold",VLOOKUP($H45,Measures!$C$46:$W$58,9,FALSE),IF($D45="Very Cold",VLOOKUP($H45,Measures!$C$59:$W$72,9,FALSE)," ")))))) ->  | Y45: =IF(B45=0," ",PRODUCT(X45,E45,I45)) ->  | Z45: =IF($G45="User-defined Measure",VLOOKUP($H45,Measures!$C$73:$W$77,12,FALSE),IF($D45="Hot & Humid",VLOOKUP($H45,Measures!$C$6:$W$19,12,FALSE),IF($D45="Hot & Dry",VLOOKUP($H45,Measures!$C$20:$W$32,12,FALSE),IF($D45="Marine",VLOOKUP($H45,Measures!$C$33:$W$45,12,FALSE),IF($D45="Cold",VLOOKUP($H45,Measures!$C$46:$W$58,12,FALSE),IF($D45="Very Cold",VLOOKUP($H45,Measures!$C$59:$W$72,12,FALSE)," ")))))) ->  | AA45: =IF(B45=0," ",PRODUCT(Z45,E45,I45)) ->  | AB45: =IF(B45=0," ",Y45/AA45) ->  | AD45: =IF(B45=0," ",RANK(AC45,AC$13:AC$68,1)) -> 
M46: =IF(F46<>0,VLOOKUP(F46,'Emission Factors'!$A$4:$J$31,7,FALSE)," ") ->  | N46: =IF($G46="User-defined Measure",VLOOKUP($H46,Measures!$C$73:$W$77,16,FALSE),IF($D46="Hot & Humid",VLOOKUP($H46,Measures!$C$6:$W$19,16,FALSE),IF($D46="Hot & Dry",VLOOKUP($H46,Measures!$C$20:$W$32,16,FALSE),IF($D46="Marine",VLOOKUP($H46,Measures!$C$33:$W$45,16,FALSE),IF($D46="Cold",VLOOKUP($H46,Measures!$C$46:$W$58,16,FALSE),IF($D46="Very Cold",VLOOKUP($H46,Measures!$C$59:$W$72,16,FALSE)," ")))))) ->  | O46: =IF($G46="User-defined Measure",VLOOKUP($H46,Measures!$C$73:$W$77,19,FALSE),IF($D46="Hot & Humid",VLOOKUP($H46,Measures!$C$6:$W$19,19,FALSE),IF($D46="Hot & Dry",VLOOKUP($H46,Measures!$C$20:$W$32,19,FALSE),IF($D46="Marine",VLOOKUP($H46,Measures!$C$33:$W$45,19,FALSE),IF($D46="Cold",VLOOKUP($H46,Measures!$C$46:$W$58,19,FALSE),IF($D46="Very Cold",VLOOKUP($H46,Measures!$C$59:$W$72,19,FALSE)," ")))))) ->  | S46: =IF(B46=0," ",PRODUCT(O46,'Emission Factors'!$J$36,E46,I46)/1000) ->  | V46: =IF($G46="User-defined Measure",VLOOKUP($H46,Measures!$C$73:$X$77,22,FALSE),IF($D46="Hot & Humid",VLOOKUP($H46,Measures!$C$6:$X$19,22,FALSE),IF($D46="Hot & Dry",VLOOKUP($H46,Measures!$C$20:$X$32,22,FALSE),IF($D46="Marine",VLOOKUP($H46,Measures!$C$33:$X$45,22,FALSE),IF($D46="Cold",VLOOKUP($H46,Measures!$C$46:$X$58,22,FALSE),IF($D46="Very Cold",VLOOKUP($H46,Measures!$C$59:$X$72,22,FALSE)," ")))))) ->  | X46: =IF($G46="User-defined Measure",VLOOKUP($H46,Measures!$C$73:$W$77,9,FALSE),IF($D46="Hot & Humid",VLOOKUP($H46,Measures!$C$6:$W$19,9,FALSE),IF($D46="Hot & Dry",VLOOKUP($H46,Measures!$C$20:$W$32,9,FALSE),IF($D46="Marine",VLOOKUP($H46,Measures!$C$33:$W$45,9,FALSE),IF($D46="Cold",VLOOKUP($H46,Measures!$C$46:$W$58,9,FALSE),IF($D46="Very Cold",VLOOKUP($H46,Measures!$C$59:$W$72,9,FALSE)," ")))))) ->  | Z46: =IF($G46="User-defined Measure",VLOOKUP($H46,Measures!$C$73:$W$77,12,FALSE),IF($D46="Hot & Humid",VLOOKUP($H46,Measures!$C$6:$W$19,12,FALSE),IF($D46="Hot & Dry",VLOOKUP($H46,Measures!$C$20:$W$32,12,FALSE),IF($D46="Marine",VLOOKUP($H46,Measures!$C$33:$W$45,12,FALSE),IF($D46="Cold",VLOOKUP($H46,Measures!$C$46:$W$58,12,FALSE),IF($D46="Very Cold",VLOOKUP($H46,Measures!$C$59:$W$72,12,FALSE)," ")))))) -> 
M47: =IF(F47<>0,VLOOKUP(F47,'Emission Factors'!$A$4:$J$31,7,FALSE)," ") ->  | N47: =IF($G47="User-defined Measure",VLOOKUP($H47,Measures!$C$73:$W$77,16,FALSE),IF($D47="Hot & Humid",VLOOKUP($H47,Measures!$C$6:$W$19,16,FALSE),IF($D47="Hot & Dry",VLOOKUP($H47,Measures!$C$20:$W$32,16,FALSE),IF($D47="Marine",VLOOKUP($H47,Measures!$C$33:$W$45,16,FALSE),IF($D47="Cold",VLOOKUP($H47,Measures!$C$46:$W$58,16,FALSE),IF($D47="Very Cold",VLOOKUP($H47,Measures!$C$59:$W$72,16,FALSE)," ")))))) ->  | O47: =IF($G47="User-defined Measure",VLOOKUP($H47,Measures!$C$73:$W$77,19,FALSE),IF($D47="Hot & Humid",VLOOKUP($H47,Measures!$C$6:$W$19,19,FALSE),IF($D47="Hot & Dry",VLOOKUP($H47,Measures!$C$20:$W$32,19,FALSE),IF($D47="Marine",VLOOKUP($H47,Measures!$C$33:$W$45,19,FALSE),IF($D47="Cold",VLOOKUP($H47,Measures!$C$46:$W$58,19,FALSE),IF($D47="Very Cold",VLOOKUP($H47,Measures!$C$59:$W$72,19,FALSE)," ")))))) ->  | S47: =IF(B47=0," ",PRODUCT(O47,'Emission Factors'!$J$36,E47,I47)/1000) ->  | V47: =IF($G47="User-defined Measure",VLOOKUP($H47,Measures!$C$73:$X$77,22,FALSE),IF($D47="Hot & Humid",VLOOKUP($H47,Measures!$C$6:$X$19,22,FALSE),IF($D47="Hot & Dry",VLOOKUP($H47,Measures!$C$20:$X$32,22,FALSE),IF($D47="Marine",VLOOKUP($H47,Measures!$C$33:$X$45,22,FALSE),IF($D47="Cold",VLOOKUP($H47,Measures!$C$46:$X$58,22,FALSE),IF($D47="Very Cold",VLOOKUP($H47,Measures!$C$59:$X$72,22,FALSE)," ")))))) ->  | X47: =IF($G47="User-defined Measure",VLOOKUP($H47,Measures!$C$73:$W$77,9,FALSE),IF($D47="Hot & Humid",VLOOKUP($H47,Measures!$C$6:$W$19,9,FALSE),IF($D47="Hot & Dry",VLOOKUP($H47,Measures!$C$20:$W$32,9,FALSE),IF($D47="Marine",VLOOKUP($H47,Measures!$C$33:$W$45,9,FALSE),IF($D47="Cold",VLOOKUP($H47,Measures!$C$46:$W$58,9,FALSE),IF($D47="Very Cold",VLOOKUP($H47,Measures!$C$59:$W$72,9,FALSE)," ")))))) ->  | Z47: =IF($G47="User-defined Measure",VLOOKUP($H47,Measures!$C$73:$W$77,12,FALSE),IF($D47="Hot & Humid",VLOOKUP($H47,Measures!$C$6:$W$19,12,FALSE),IF($D47="Hot & Dry",VLOOKUP($H47,Measures!$C$20:$W$32,12,FALSE),IF($D47="Marine",VLOOKUP($H47,Measures!$C$33:$W$45,12,FALSE),IF($D47="Cold",VLOOKUP($H47,Measures!$C$46:$W$58,12,FALSE),IF($D47="Very Cold",VLOOKUP($H47,Measures!$C$59:$W$72,12,FALSE)," ")))))) -> 
M48: =IF(F48<>0,VLOOKUP(F48,'Emission Factors'!$A$4:$J$31,7,FALSE)," ") ->  | N48: =IF($G48="User-defined Measure",VLOOKUP($H48,Measures!$C$73:$W$77,16,FALSE),IF($D48="Hot & Humid",VLOOKUP($H48,Measures!$C$6:$W$19,16,FALSE),IF($D48="Hot & Dry",VLOOKUP($H48,Measures!$C$20:$W$32,16,FALSE),IF($D48="Marine",VLOOKUP($H48,Measures!$C$33:$W$45,16,FALSE),IF($D48="Cold",VLOOKUP($H48,Measures!$C$46:$W$58,16,FALSE),IF($D48="Very Cold",VLOOKUP($H48,Measures!$C$59:$W$72,16,FALSE)," ")))))) ->  | O48: =IF($G48="User-defined Measure",VLOOKUP($H48,Measures!$C$73:$W$77,19,FALSE),IF($D48="Hot & Humid",VLOOKUP($H48,Measures!$C$6:$W$19,19,FALSE),IF($D48="Hot & Dry",VLOOKUP($H48,Measures!$C$20:$W$32,19,FALSE),IF($D48="Marine",VLOOKUP($H48,Measures!$C$33:$W$45,19,FALSE),IF($D48="Cold",VLOOKUP($H48,Measures!$C$46:$W$58,19,FALSE),IF($D48="Very Cold",VLOOKUP($H48,Measures!$C$59:$W$72,19,FALSE)," ")))))) ->  | S48: =IF(B48=0," ",PRODUCT(O48,'Emission Factors'!$J$36,E48,I48)/1000) ->  | V48: =IF($G48="User-defined Measure",VLOOKUP($H48,Measures!$C$73:$X$77,22,FALSE),IF($D48="Hot & Humid",VLOOKUP($H48,Measures!$C$6:$X$19,22,FALSE),IF($D48="Hot & Dry",VLOOKUP($H48,Measures!$C$20:$X$32,22,FALSE),IF($D48="Marine",VLOOKUP($H48,Measures!$C$33:$X$45,22,FALSE),IF($D48="Cold",VLOOKUP($H48,Measures!$C$46:$X$58,22,FALSE),IF($D48="Very Cold",VLOOKUP($H48,Measures!$C$59:$X$72,22,FALSE)," ")))))) ->  | X48: =IF($G48="User-defined Measure",VLOOKUP($H48,Measures!$C$73:$W$77,9,FALSE),IF($D48="Hot & Humid",VLOOKUP($H48,Measures!$C$6:$W$19,9,FALSE),IF($D48="Hot & Dry",VLOOKUP($H48,Measures!$C$20:$W$32,9,FALSE),IF($D48="Marine",VLOOKUP($H48,Measures!$C$33:$W$45,9,FALSE),IF($D48="Cold",VLOOKUP($H48,Measures!$C$46:$W$58,9,FALSE),IF($D48="Very Cold",VLOOKUP($H48,Measures!$C$59:$W$72,9,FALSE)," ")))))) ->  | Z48: =IF($G48="User-defined Measure",VLOOKUP($H48,Measures!$C$73:$W$77,12,FALSE),IF($D48="Hot & Humid",VLOOKUP($H48,Measures!$C$6:$W$19,12,FALSE),IF($D48="Hot & Dry",VLOOKUP($H48,Measures!$C$20:$W$32,12,FALSE),IF($D48="Marine",VLOOKUP($H48,Measures!$C$33:$W$45,12,FALSE),IF($D48="Cold",VLOOKUP($H48,Measures!$C$46:$W$58,12,FALSE),IF($D48="Very Cold",VLOOKUP($H48,Measures!$C$59:$W$72,12,FALSE)," ")))))) -> 
M49: =IF(F49<>0,VLOOKUP(F49,'Emission Factors'!$A$4:$J$31,7,FALSE)," ") ->  | N49: =IF($G49="User-defined Measure",VLOOKUP($H49,Measures!$C$73:$W$77,16,FALSE),IF($D49="Hot & Humid",VLOOKUP($H49,Measures!$C$6:$W$19,16,FALSE),IF($D49="Hot & Dry",VLOOKUP($H49,Measures!$C$20:$W$32,16,FALSE),IF($D49="Marine",VLOOKUP($H49,Measures!$C$33:$W$45,16,FALSE),IF($D49="Cold",VLOOKUP($H49,Measures!$C$46:$W$58,16,FALSE),IF($D49="Very Cold",VLOOKUP($H49,Measures!$C$59:$W$72,16,FALSE)," ")))))) ->  | O49: =IF($G49="User-defined Measure",VLOOKUP($H49,Measures!$C$73:$W$77,19,FALSE),IF($D49="Hot & Humid",VLOOKUP($H49,Measures!$C$6:$W$19,19,FALSE),IF($D49="Hot & Dry",VLOOKUP($H49,Measures!$C$20:$W$32,19,FALSE),IF($D49="Marine",VLOOKUP($H49,Measures!$C$33:$W$45,19,FALSE),IF($D49="Cold",VLOOKUP($H49,Measures!$C$46:$W$58,19,FALSE),IF($D49="Very Cold",VLOOKUP($H49,Measures!$C$59:$W$72,19,FALSE)," ")))))) ->  | S49: =IF(B49=0," ",PRODUCT(O49,'Emission Factors'!$J$36,E49,I49)/1000) ->  | V49: =IF($G49="User-defined Measure",VLOOKUP($H49,Measures!$C$73:$X$77,22,FALSE),IF($D49="Hot & Humid",VLOOKUP($H49,Measures!$C$6:$X$19,22,FALSE),IF($D49="Hot & Dry",VLOOKUP($H49,Measures!$C$20:$X$32,22,FALSE),IF($D49="Marine",VLOOKUP($H49,Measures!$C$33:$X$45,22,FALSE),IF($D49="Cold",VLOOKUP($H49,Measures!$C$46:$X$58,22,FALSE),IF($D49="Very Cold",VLOOKUP($H49,Measures!$C$59:$X$72,22,FALSE)," ")))))) ->  | X49: =IF($G49="User-defined Measure",VLOOKUP($H49,Measures!$C$73:$W$77,9,FALSE),IF($D49="Hot & Humid",VLOOKUP($H49,Measures!$C$6:$W$19,9,FALSE),IF($D49="Hot & Dry",VLOOKUP($H49,Measures!$C$20:$W$32,9,FALSE),IF($D49="Marine",VLOOKUP($H49,Measures!$C$33:$W$45,9,FALSE),IF($D49="Cold",VLOOKUP($H49,Measures!$C$46:$W$58,9,FALSE),IF($D49="Very Cold",VLOOKUP($H49,Measures!$C$59:$W$72,9,FALSE)," ")))))) ->  | Z49: =IF($G49="User-defined Measure",VLOOKUP($H49,Measures!$C$73:$W$77,12,FALSE),IF($D49="Hot & Humid",VLOOKUP($H49,Measures!$C$6:$W$19,12,FALSE),IF($D49="Hot & Dry",VLOOKUP($H49,Measures!$C$20:$W$32,12,FALSE),IF($D49="Marine",VLOOKUP($H49,Measures!$C$33:$W$45,12,FALSE),IF($D49="Cold",VLOOKUP($H49,Measures!$C$46:$W$58,12,FALSE),IF($D49="Very Cold",VLOOKUP($H49,Measures!$C$59:$W$72,12,FALSE)," ")))))) -> 
M50: =IF(F50<>0,VLOOKUP(F50,'Emission Factors'!$A$4:$J$31,7,FALSE)," ") ->  | N50: =IF($G50="User-defined Measure",VLOOKUP($H50,Measures!$C$73:$W$77,16,FALSE),IF($D50="Hot & Humid",VLOOKUP($H50,Measures!$C$6:$W$19,16,FALSE),IF($D50="Hot & Dry",VLOOKUP($H50,Measures!$C$20:$W$32,16,FALSE),IF($D50="Marine",VLOOKUP($H50,Measures!$C$33:$W$45,16,FALSE),IF($D50="Cold",VLOOKUP($H50,Measures!$C$46:$W$58,16,FALSE),IF($D50="Very Cold",VLOOKUP($H50,Measures!$C$59:$W$72,16,FALSE)," ")))))) ->  | O50: =IF($G50="User-defined Measure",VLOOKUP($H50,Measures!$C$73:$W$77,19,FALSE),IF($D50="Hot & Humid",VLOOKUP($H50,Measures!$C$6:$W$19,19,FALSE),IF($D50="Hot & Dry",VLOOKUP($H50,Measures!$C$20:$W$32,19,FALSE),IF($D50="Marine",VLOOKUP($H50,Measures!$C$33:$W$45,19,FALSE),IF($D50="Cold",VLOOKUP($H50,Measures!$C$46:$W$58,19,FALSE),IF($D50="Very Cold",VLOOKUP($H50,Measures!$C$59:$W$72,19,FALSE)," ")))))) ->  | S50: =IF(B50=0," ",PRODUCT(O50,'Emission Factors'!$J$36,E50,I50)/1000) ->  | V50: =IF($G50="User-defined Measure",VLOOKUP($H50,Measures!$C$73:$X$77,22,FALSE),IF($D50="Hot & Humid",VLOOKUP($H50,Measures!$C$6:$X$19,22,FALSE),IF($D50="Hot & Dry",VLOOKUP($H50,Measures!$C$20:$X$32,22,FALSE),IF($D50="Marine",VLOOKUP($H50,Measures!$C$33:$X$45,22,FALSE),IF($D50="Cold",VLOOKUP($H50,Measures!$C$46:$X$58,22,FALSE),IF($D50="Very Cold",VLOOKUP($H50,Measures!$C$59:$X$72,22,FALSE)," ")))))) ->  | X50: =IF($G50="User-defined Measure",VLOOKUP($H50,Measures!$C$73:$W$77,9,FALSE),IF($D50="Hot & Humid",VLOOKUP($H50,Measures!$C$6:$W$19,9,FALSE),IF($D50="Hot & Dry",VLOOKUP($H50,Measures!$C$20:$W$32,9,FALSE),IF($D50="Marine",VLOOKUP($H50,Measures!$C$33:$W$45,9,FALSE),IF($D50="Cold",VLOOKUP($H50,Measures!$C$46:$W$58,9,FALSE),IF($D50="Very Cold",VLOOKUP($H50,Measures!$C$59:$W$72,9,FALSE)," ")))))) ->  | Z50: =IF($G50="User-defined Measure",VLOOKUP($H50,Measures!$C$73:$W$77,12,FALSE),IF($D50="Hot & Humid",VLOOKUP($H50,Measures!$C$6:$W$19,12,FALSE),IF($D50="Hot & Dry",VLOOKUP($H50,Measures!$C$20:$W$32,12,FALSE),IF($D50="Marine",VLOOKUP($H50,Measures!$C$33:$W$45,12,FALSE),IF($D50="Cold",VLOOKUP($H50,Measures!$C$46:$W$58,12,FALSE),IF($D50="Very Cold",VLOOKUP($H50,Measures!$C$59:$W$72,12,FALSE)," ")))))) -> 
M51: =IF(F51<>0,VLOOKUP(F51,'Emission Factors'!$A$4:$J$31,7,FALSE)," ") ->  | N51: =IF($G51="User-defined Measure",VLOOKUP($H51,Measures!$C$73:$W$77,16,FALSE),IF($D51="Hot & Humid",VLOOKUP($H51,Measures!$C$6:$W$19,16,FALSE),IF($D51="Hot & Dry",VLOOKUP($H51,Measures!$C$20:$W$32,16,FALSE),IF($D51="Marine",VLOOKUP($H51,Measures!$C$33:$W$45,16,FALSE),IF($D51="Cold",VLOOKUP($H51,Measures!$C$46:$W$58,16,FALSE),IF($D51="Very Cold",VLOOKUP($H51,Measures!$C$59:$W$72,16,FALSE)," ")))))) ->  | O51: =IF($G51="User-defined Measure",VLOOKUP($H51,Measures!$C$73:$W$77,19,FALSE),IF($D51="Hot & Humid",VLOOKUP($H51,Measures!$C$6:$W$19,19,FALSE),IF($D51="Hot & Dry",VLOOKUP($H51,Measures!$C$20:$W$32,19,FALSE),IF($D51="Marine",VLOOKUP($H51,Measures!$C$33:$W$45,19,FALSE),IF($D51="Cold",VLOOKUP($H51,Measures!$C$46:$W$58,19,FALSE),IF($D51="Very Cold",VLOOKUP($H51,Measures!$C$59:$W$72,19,FALSE)," ")))))) ->  | S51: =IF(B51=0," ",PRODUCT(O51,'Emission Factors'!$J$36,E51,I51)/1000) ->  | U51: =IF(E51=0,"",PRODUCT(1000,(T51/PRODUCT(E51,I51)))) ->  | V51: =IF($G51="User-defined Measure",VLOOKUP($H51,Measures!$C$73:$X$77,22,FALSE),IF($D51="Hot & Humid",VLOOKUP($H51,Measures!$C$6:$X$19,22,FALSE),IF($D51="Hot & Dry",VLOOKUP($H51,Measures!$C$20:$X$32,22,FALSE),IF($D51="Marine",VLOOKUP($H51,Measures!$C$33:$X$45,22,FALSE),IF($D51="Cold",VLOOKUP($H51,Measures!$C$46:$X$58,22,FALSE),IF($D51="Very Cold",VLOOKUP($H51,Measures!$C$59:$X$72,22,FALSE)," ")))))) ->  | X51: =IF($G51="User-defined Measure",VLOOKUP($H51,Measures!$C$73:$W$77,9,FALSE),IF($D51="Hot & Humid",VLOOKUP($H51,Measures!$C$6:$W$19,9,FALSE),IF($D51="Hot & Dry",VLOOKUP($H51,Measures!$C$20:$W$32,9,FALSE),IF($D51="Marine",VLOOKUP($H51,Measures!$C$33:$W$45,9,FALSE),IF($D51="Cold",VLOOKUP($H51,Measures!$C$46:$W$58,9,FALSE),IF($D51="Very Cold",VLOOKUP($H51,Measures!$C$59:$W$72,9,FALSE)," ")))))) ->  | Z51: =IF($G51="User-defined Measure",VLOOKUP($H51,Measures!$C$73:$W$77,12,FALSE),IF($D51="Hot & Humid",VLOOKUP($H51,Measures!$C$6:$W$19,12,FALSE),IF($D51="Hot & Dry",VLOOKUP($H51,Measures!$C$20:$W$32,12,FALSE),IF($D51="Marine",VLOOKUP($H51,Measures!$C$33:$W$45,12,FALSE),IF($D51="Cold",VLOOKUP($H51,Measures!$C$46:$W$58,12,FALSE),IF($D51="Very Cold",VLOOKUP($H51,Measures!$C$59:$W$72,12,FALSE)," ")))))) -> 
M52: =IF(F52<>0,VLOOKUP(F52,'Emission Factors'!$A$4:$J$31,7,FALSE)," ") ->  | N52: =IF($G52="User-defined Measure",VLOOKUP($H52,Measures!$C$73:$W$77,16,FALSE),IF($D52="Hot & Humid",VLOOKUP($H52,Measures!$C$6:$W$19,16,FALSE),IF($D52="Hot & Dry",VLOOKUP($H52,Measures!$C$20:$W$32,16,FALSE),IF($D52="Marine",VLOOKUP($H52,Measures!$C$33:$W$45,16,FALSE),IF($D52="Cold",VLOOKUP($H52,Measures!$C$46:$W$58,16,FALSE),IF($D52="Very Cold",VLOOKUP($H52,Measures!$C$59:$W$72,16,FALSE)," ")))))) ->  | O52: =IF($G52="User-defined Measure",VLOOKUP($H52,Measures!$C$73:$W$77,19,FALSE),IF($D52="Hot & Humid",VLOOKUP($H52,Measures!$C$6:$W$19,19,FALSE),IF($D52="Hot & Dry",VLOOKUP($H52,Measures!$C$20:$W$32,19,FALSE),IF($D52="Marine",VLOOKUP($H52,Measures!$C$33:$W$45,19,FALSE),IF($D52="Cold",VLOOKUP($H52,Measures!$C$46:$W$58,19,FALSE),IF($D52="Very Cold",VLOOKUP($H52,Measures!$C$59:$W$72,19,FALSE)," ")))))) ->  | S52: =IF(B52=0," ",PRODUCT(O52,'Emission Factors'!$J$36,E52,I52)/1000) ->  | V52: =IF($G52="User-defined Measure",VLOOKUP($H52,Measures!$C$73:$X$77,22,FALSE),IF($D52="Hot & Humid",VLOOKUP($H52,Measures!$C$6:$X$19,22,FALSE),IF($D52="Hot & Dry",VLOOKUP($H52,Measures!$C$20:$X$32,22,FALSE),IF($D52="Marine",VLOOKUP($H52,Measures!$C$33:$X$45,22,FALSE),IF($D52="Cold",VLOOKUP($H52,Measures!$C$46:$X$58,22,FALSE),IF($D52="Very Cold",VLOOKUP($H52,Measures!$C$59:$X$72,22,FALSE)," ")))))) ->  | X52: =IF($G52="User-defined Measure",VLOOKUP($H52,Measures!$C$73:$W$77,9,FALSE),IF($D52="Hot & Humid",VLOOKUP($H52,Measures!$C$6:$W$19,9,FALSE),IF($D52="Hot & Dry",VLOOKUP($H52,Measures!$C$20:$W$32,9,FALSE),IF($D52="Marine",VLOOKUP($H52,Measures!$C$33:$W$45,9,FALSE),IF($D52="Cold",VLOOKUP($H52,Measures!$C$46:$W$58,9,FALSE),IF($D52="Very Cold",VLOOKUP($H52,Measures!$C$59:$W$72,9,FALSE)," ")))))) ->  | Z52: =IF($G52="User-defined Measure",VLOOKUP($H52,Measures!$C$73:$W$77,12,FALSE),IF($D52="Hot & Humid",VLOOKUP($H52,Measures!$C$6:$W$19,12,FALSE),IF($D52="Hot & Dry",VLOOKUP($H52,Measures!$C$20:$W$32,12,FALSE),IF($D52="Marine",VLOOKUP($H52,Measures!$C$33:$W$45,12,FALSE),IF($D52="Cold",VLOOKUP($H52,Measures!$C$46:$W$58,12,FALSE),IF($D52="Very Cold",VLOOKUP($H52,Measures!$C$59:$W$72,12,FALSE)," ")))))) -> 
M53: =IF(F53<>0,VLOOKUP(F53,'Emission Factors'!$A$4:$J$31,7,FALSE)," ") ->  | N53: =IF($G53="User-defined Measure",VLOOKUP($H53,Measures!$C$73:$W$77,16,FALSE),IF($D53="Hot & Humid",VLOOKUP($H53,Measures!$C$6:$W$19,16,FALSE),IF($D53="Hot & Dry",VLOOKUP($H53,Measures!$C$20:$W$32,16,FALSE),IF($D53="Marine",VLOOKUP($H53,Measures!$C$33:$W$45,16,FALSE),IF($D53="Cold",VLOOKUP($H53,Measures!$C$46:$W$58,16,FALSE),IF($D53="Very Cold",VLOOKUP($H53,Measures!$C$59:$W$72,16,FALSE)," ")))))) ->  | O53: =IF($G53="User-defined Measure",VLOOKUP($H53,Measures!$C$73:$W$77,19,FALSE),IF($D53="Hot & Humid",VLOOKUP($H53,Measures!$C$6:$W$19,19,FALSE),IF($D53="Hot & Dry",VLOOKUP($H53,Measures!$C$20:$W$32,19,FALSE),IF($D53="Marine",VLOOKUP($H53,Measures!$C$33:$W$45,19,FALSE),IF($D53="Cold",VLOOKUP($H53,Measures!$C$46:$W$58,19,FALSE),IF($D53="Very Cold",VLOOKUP($H53,Measures!$C$59:$W$72,19,FALSE)," ")))))) ->  | S53: =IF(B53=0," ",PRODUCT(O53,'Emission Factors'!$J$36,E53,I53)/1000) ->  | V53: =IF($G53="User-defined Measure",VLOOKUP($H53,Measures!$C$73:$X$77,22,FALSE),IF($D53="Hot & Humid",VLOOKUP($H53,Measures!$C$6:$X$19,22,FALSE),IF($D53="Hot & Dry",VLOOKUP($H53,Measures!$C$20:$X$32,22,FALSE),IF($D53="Marine",VLOOKUP($H53,Measures!$C$33:$X$45,22,FALSE),IF($D53="Cold",VLOOKUP($H53,Measures!$C$46:$X$58,22,FALSE),IF($D53="Very Cold",VLOOKUP($H53,Measures!$C$59:$X$72,22,FALSE)," ")))))) ->  | X53: =IF($G53="User-defined Measure",VLOOKUP($H53,Measures!$C$73:$W$77,9,FALSE),IF($D53="Hot & Humid",VLOOKUP($H53,Measures!$C$6:$W$19,9,FALSE),IF($D53="Hot & Dry",VLOOKUP($H53,Measures!$C$20:$W$32,9,FALSE),IF($D53="Marine",VLOOKUP($H53,Measures!$C$33:$W$45,9,FALSE),IF($D53="Cold",VLOOKUP($H53,Measures!$C$46:$W$58,9,FALSE),IF($D53="Very Cold",VLOOKUP($H53,Measures!$C$59:$W$72,9,FALSE)," ")))))) ->  | Z53: =IF($G53="User-defined Measure",VLOOKUP($H53,Measures!$C$73:$W$77,12,FALSE),IF($D53="Hot & Humid",VLOOKUP($H53,Measures!$C$6:$W$19,12,FALSE),IF($D53="Hot & Dry",VLOOKUP($H53,Measures!$C$20:$W$32,12,FALSE),IF($D53="Marine",VLOOKUP($H53,Measures!$C$33:$W$45,12,FALSE),IF($D53="Cold",VLOOKUP($H53,Measures!$C$46:$W$58,12,FALSE),IF($D53="Very Cold",VLOOKUP($H53,Measures!$C$59:$W$72,12,FALSE)," ")))))) -> 
M54: =IF(F54<>0,VLOOKUP(F54,'Emission Factors'!$A$4:$J$31,7,FALSE)," ") ->  | N54: =IF($G54="User-defined Measure",VLOOKUP($H54,Measures!$C$73:$W$77,16,FALSE),IF($D54="Hot & Humid",VLOOKUP($H54,Measures!$C$6:$W$19,16,FALSE),IF($D54="Hot & Dry",VLOOKUP($H54,Measures!$C$20:$W$32,16,FALSE),IF($D54="Marine",VLOOKUP($H54,Measures!$C$33:$W$45,16,FALSE),IF($D54="Cold",VLOOKUP($H54,Measures!$C$46:$W$58,16,FALSE),IF($D54="Very Cold",VLOOKUP($H54,Measures!$C$59:$W$72,16,FALSE)," ")))))) ->  | O54: =IF($G54="User-defined Measure",VLOOKUP($H54,Measures!$C$73:$W$77,19,FALSE),IF($D54="Hot & Humid",VLOOKUP($H54,Measures!$C$6:$W$19,19,FALSE),IF($D54="Hot & Dry",VLOOKUP($H54,Measures!$C$20:$W$32,19,FALSE),IF($D54="Marine",VLOOKUP($H54,Measures!$C$33:$W$45,19,FALSE),IF($D54="Cold",VLOOKUP($H54,Measures!$C$46:$W$58,19,FALSE),IF($D54="Very Cold",VLOOKUP($H54,Measures!$C$59:$W$72,19,FALSE)," ")))))) ->  | S54: =IF(B54=0," ",PRODUCT(O54,'Emission Factors'!$J$36,E54,I54)/1000) ->  | V54: =IF($G54="User-defined Measure",VLOOKUP($H54,Measures!$C$73:$X$77,22,FALSE),IF($D54="Hot & Humid",VLOOKUP($H54,Measures!$C$6:$X$19,22,FALSE),IF($D54="Hot & Dry",VLOOKUP($H54,Measures!$C$20:$X$32,22,FALSE),IF($D54="Marine",VLOOKUP($H54,Measures!$C$33:$X$45,22,FALSE),IF($D54="Cold",VLOOKUP($H54,Measures!$C$46:$X$58,22,FALSE),IF($D54="Very Cold",VLOOKUP($H54,Measures!$C$59:$X$72,22,FALSE)," ")))))) ->  | X54: =IF($G54="User-defined Measure",VLOOKUP($H54,Measures!$C$73:$W$77,9,FALSE),IF($D54="Hot & Humid",VLOOKUP($H54,Measures!$C$6:$W$19,9,FALSE),IF($D54="Hot & Dry",VLOOKUP($H54,Measures!$C$20:$W$32,9,FALSE),IF($D54="Marine",VLOOKUP($H54,Measures!$C$33:$W$45,9,FALSE),IF($D54="Cold",VLOOKUP($H54,Measures!$C$46:$W$58,9,FALSE),IF($D54="Very Cold",VLOOKUP($H54,Measures!$C$59:$W$72,9,FALSE)," ")))))) ->  | Z54: =IF($G54="User-defined Measure",VLOOKUP($H54,Measures!$C$73:$W$77,12,FALSE),IF($D54="Hot & Humid",VLOOKUP($H54,Measures!$C$6:$W$19,12,FALSE),IF($D54="Hot & Dry",VLOOKUP($H54,Measures!$C$20:$W$32,12,FALSE),IF($D54="Marine",VLOOKUP($H54,Measures!$C$33:$W$45,12,FALSE),IF($D54="Cold",VLOOKUP($H54,Measures!$C$46:$W$58,12,FALSE),IF($D54="Very Cold",VLOOKUP($H54,Measures!$C$59:$W$72,12,FALSE)," ")))))) -> 
M55: =IF(F55<>0,VLOOKUP(F55,'Emission Factors'!$A$4:$J$31,7,FALSE)," ") ->  | N55: =IF($G55="User-defined Measure",VLOOKUP($H55,Measures!$C$73:$W$77,16,FALSE),IF($D55="Hot & Humid",VLOOKUP($H55,Measures!$C$6:$W$19,16,FALSE),IF($D55="Hot & Dry",VLOOKUP($H55,Measures!$C$20:$W$32,16,FALSE),IF($D55="Marine",VLOOKUP($H55,Measures!$C$33:$W$45,16,FALSE),IF($D55="Cold",VLOOKUP($H55,Measures!$C$46:$W$58,16,FALSE),IF($D55="Very Cold",VLOOKUP($H55,Measures!$C$59:$W$72,16,FALSE)," ")))))) ->  | O55: =IF($G55="User-defined Measure",VLOOKUP($H55,Measures!$C$73:$W$77,19,FALSE),IF($D55="Hot & Humid",VLOOKUP($H55,Measures!$C$6:$W$19,19,FALSE),IF($D55="Hot & Dry",VLOOKUP($H55,Measures!$C$20:$W$32,19,FALSE),IF($D55="Marine",VLOOKUP($H55,Measures!$C$33:$W$45,19,FALSE),IF($D55="Cold",VLOOKUP($H55,Measures!$C$46:$W$58,19,FALSE),IF($D55="Very Cold",VLOOKUP($H55,Measures!$C$59:$W$72,19,FALSE)," ")))))) ->  | S55: =IF(B55=0," ",PRODUCT(O55,'Emission Factors'!$J$36,E55,I55)/1000) ->  | V55: =IF($G55="User-defined Measure",VLOOKUP($H55,Measures!$C$73:$X$77,22,FALSE),IF($D55="Hot & Humid",VLOOKUP($H55,Measures!$C$6:$X$19,22,FALSE),IF($D55="Hot & Dry",VLOOKUP($H55,Measures!$C$20:$X$32,22,FALSE),IF($D55="Marine",VLOOKUP($H55,Measures!$C$33:$X$45,22,FALSE),IF($D55="Cold",VLOOKUP($H55,Measures!$C$46:$X$58,22,FALSE),IF($D55="Very Cold",VLOOKUP($H55,Measures!$C$59:$X$72,22,FALSE)," ")))))) ->  | X55: =IF($G55="User-defined Measure",VLOOKUP($H55,Measures!$C$73:$W$77,9,FALSE),IF($D55="Hot & Humid",VLOOKUP($H55,Measures!$C$6:$W$19,9,FALSE),IF($D55="Hot & Dry",VLOOKUP($H55,Measures!$C$20:$W$32,9,FALSE),IF($D55="Marine",VLOOKUP($H55,Measures!$C$33:$W$45,9,FALSE),IF($D55="Cold",VLOOKUP($H55,Measures!$C$46:$W$58,9,FALSE),IF($D55="Very Cold",VLOOKUP($H55,Measures!$C$59:$W$72,9,FALSE)," ")))))) ->  | Z55: =IF($G55="User-defined Measure",VLOOKUP($H55,Measures!$C$73:$W$77,12,FALSE),IF($D55="Hot & Humid",VLOOKUP($H55,Measures!$C$6:$W$19,12,FALSE),IF($D55="Hot & Dry",VLOOKUP($H55,Measures!$C$20:$W$32,12,FALSE),IF($D55="Marine",VLOOKUP($H55,Measures!$C$33:$W$45,12,FALSE),IF($D55="Cold",VLOOKUP($H55,Measures!$C$46:$W$58,12,FALSE),IF($D55="Very Cold",VLOOKUP($H55,Measures!$C$59:$W$72,12,FALSE)," ")))))) -> 
M56: =IF(F56<>0,VLOOKUP(F56,'Emission Factors'!$A$4:$J$31,7,FALSE)," ") ->  | N56: =IF($G56="User-defined Measure",VLOOKUP($H56,Measures!$C$73:$W$77,16,FALSE),IF($D56="Hot & Humid",VLOOKUP($H56,Measures!$C$6:$W$19,16,FALSE),IF($D56="Hot & Dry",VLOOKUP($H56,Measures!$C$20:$W$32,16,FALSE),IF($D56="Marine",VLOOKUP($H56,Measures!$C$33:$W$45,16,FALSE),IF($D56="Cold",VLOOKUP($H56,Measures!$C$46:$W$58,16,FALSE),IF($D56="Very Cold",VLOOKUP($H56,Measures!$C$59:$W$72,16,FALSE)," ")))))) ->  | O56: =IF($G56="User-defined Measure",VLOOKUP($H56,Measures!$C$73:$W$77,19,FALSE),IF($D56="Hot & Humid",VLOOKUP($H56,Measures!$C$6:$W$19,19,FALSE),IF($D56="Hot & Dry",VLOOKUP($H56,Measures!$C$20:$W$32,19,FALSE),IF($D56="Marine",VLOOKUP($H56,Measures!$C$33:$W$45,19,FALSE),IF($D56="Cold",VLOOKUP($H56,Measures!$C$46:$W$58,19,FALSE),IF($D56="Very Cold",VLOOKUP($H56,Measures!$C$59:$W$72,19,FALSE)," ")))))) ->  | S56: =IF(B56=0," ",PRODUCT(O56,'Emission Factors'!$J$36,E56,I56)/1000) ->  | V56: =IF($G56="User-defined Measure",VLOOKUP($H56,Measures!$C$73:$X$77,22,FALSE),IF($D56="Hot & Humid",VLOOKUP($H56,Measures!$C$6:$X$19,22,FALSE),IF($D56="Hot & Dry",VLOOKUP($H56,Measures!$C$20:$X$32,22,FALSE),IF($D56="Marine",VLOOKUP($H56,Measures!$C$33:$X$45,22,FALSE),IF($D56="Cold",VLOOKUP($H56,Measures!$C$46:$X$58,22,FALSE),IF($D56="Very Cold",VLOOKUP($H56,Measures!$C$59:$X$72,22,FALSE)," ")))))) ->  | X56: =IF($G56="User-defined Measure",VLOOKUP($H56,Measures!$C$73:$W$77,9,FALSE),IF($D56="Hot & Humid",VLOOKUP($H56,Measures!$C$6:$W$19,9,FALSE),IF($D56="Hot & Dry",VLOOKUP($H56,Measures!$C$20:$W$32,9,FALSE),IF($D56="Marine",VLOOKUP($H56,Measures!$C$33:$W$45,9,FALSE),IF($D56="Cold",VLOOKUP($H56,Measures!$C$46:$W$58,9,FALSE),IF($D56="Very Cold",VLOOKUP($H56,Measures!$C$59:$W$72,9,FALSE)," ")))))) ->  | Z56: =IF($G56="User-defined Measure",VLOOKUP($H56,Measures!$C$73:$W$77,12,FALSE),IF($D56="Hot & Humid",VLOOKUP($H56,Measures!$C$6:$W$19,12,FALSE),IF($D56="Hot & Dry",VLOOKUP($H56,Measures!$C$20:$W$32,12,FALSE),IF($D56="Marine",VLOOKUP($H56,Measures!$C$33:$W$45,12,FALSE),IF($D56="Cold",VLOOKUP($H56,Measures!$C$46:$W$58,12,FALSE),IF($D56="Very Cold",VLOOKUP($H56,Measures!$C$59:$W$72,12,FALSE)," ")))))) -> 
M57: =IF(F57<>0,VLOOKUP(F57,'Emission Factors'!$A$4:$J$31,7,FALSE)," ") ->  | N57: =IF($G57="User-defined Measure",VLOOKUP($H57,Measures!$C$73:$W$77,16,FALSE),IF($D57="Hot & Humid",VLOOKUP($H57,Measures!$C$6:$W$19,16,FALSE),IF($D57="Hot & Dry",VLOOKUP($H57,Measures!$C$20:$W$32,16,FALSE),IF($D57="Marine",VLOOKUP($H57,Measures!$C$33:$W$45,16,FALSE),IF($D57="Cold",VLOOKUP($H57,Measures!$C$46:$W$58,16,FALSE),IF($D57="Very Cold",VLOOKUP($H57,Measures!$C$59:$W$72,16,FALSE)," ")))))) ->  | O57: =IF($G57="User-defined Measure",VLOOKUP($H57,Measures!$C$73:$W$77,19,FALSE),IF($D57="Hot & Humid",VLOOKUP($H57,Measures!$C$6:$W$19,19,FALSE),IF($D57="Hot & Dry",VLOOKUP($H57,Measures!$C$20:$W$32,19,FALSE),IF($D57="Marine",VLOOKUP($H57,Measures!$C$33:$W$45,19,FALSE),IF($D57="Cold",VLOOKUP($H57,Measures!$C$46:$W$58,19,FALSE),IF($D57="Very Cold",VLOOKUP($H57,Measures!$C$59:$W$72,19,FALSE)," ")))))) ->  | S57: =IF(B57=0," ",PRODUCT(O57,'Emission Factors'!$J$36,E57,I57)/1000) ->  | V57: =IF($G57="User-defined Measure",VLOOKUP($H57,Measures!$C$73:$X$77,22,FALSE),IF($D57="Hot & Humid",VLOOKUP($H57,Measures!$C$6:$X$19,22,FALSE),IF($D57="Hot & Dry",VLOOKUP($H57,Measures!$C$20:$X$32,22,FALSE),IF($D57="Marine",VLOOKUP($H57,Measures!$C$33:$X$45,22,FALSE),IF($D57="Cold",VLOOKUP($H57,Measures!$C$46:$X$58,22,FALSE),IF($D57="Very Cold",VLOOKUP($H57,Measures!$C$59:$X$72,22,FALSE)," ")))))) ->  | X57: =IF($G57="User-defined Measure",VLOOKUP($H57,Measures!$C$73:$W$77,9,FALSE),IF($D57="Hot & Humid",VLOOKUP($H57,Measures!$C$6:$W$19,9,FALSE),IF($D57="Hot & Dry",VLOOKUP($H57,Measures!$C$20:$W$32,9,FALSE),IF($D57="Marine",VLOOKUP($H57,Measures!$C$33:$W$45,9,FALSE),IF($D57="Cold",VLOOKUP($H57,Measures!$C$46:$W$58,9,FALSE),IF($D57="Very Cold",VLOOKUP($H57,Measures!$C$59:$W$72,9,FALSE)," ")))))) ->  | Z57: =IF($G57="User-defined Measure",VLOOKUP($H57,Measures!$C$73:$W$77,12,FALSE),IF($D57="Hot & Humid",VLOOKUP($H57,Measures!$C$6:$W$19,12,FALSE),IF($D57="Hot & Dry",VLOOKUP($H57,Measures!$C$20:$W$32,12,FALSE),IF($D57="Marine",VLOOKUP($H57,Measures!$C$33:$W$45,12,FALSE),IF($D57="Cold",VLOOKUP($H57,Measures!$C$46:$W$58,12,FALSE),IF($D57="Very Cold",VLOOKUP($H57,Measures!$C$59:$W$72,12,FALSE)," ")))))) -> 
M58: =IF(F58<>0,VLOOKUP(F58,'Emission Factors'!$A$4:$J$31,7,FALSE)," ") ->  | N58: =IF($G58="User-defined Measure",VLOOKUP($H58,Measures!$C$73:$W$77,16,FALSE),IF($D58="Hot & Humid",VLOOKUP($H58,Measures!$C$6:$W$19,16,FALSE),IF($D58="Hot & Dry",VLOOKUP($H58,Measures!$C$20:$W$32,16,FALSE),IF($D58="Marine",VLOOKUP($H58,Measures!$C$33:$W$45,16,FALSE),IF($D58="Cold",VLOOKUP($H58,Measures!$C$46:$W$58,16,FALSE),IF($D58="Very Cold",VLOOKUP($H58,Measures!$C$59:$W$72,16,FALSE)," ")))))) ->  | O58: =IF($G58="User-defined Measure",VLOOKUP($H58,Measures!$C$73:$W$77,19,FALSE),IF($D58="Hot & Humid",VLOOKUP($H58,Measures!$C$6:$W$19,19,FALSE),IF($D58="Hot & Dry",VLOOKUP($H58,Measures!$C$20:$W$32,19,FALSE),IF($D58="Marine",VLOOKUP($H58,Measures!$C$33:$W$45,19,FALSE),IF($D58="Cold",VLOOKUP($H58,Measures!$C$46:$W$58,19,FALSE),IF($D58="Very Cold",VLOOKUP($H58,Measures!$C$59:$W$72,19,FALSE)," ")))))) ->  | S58: =IF(B58=0," ",PRODUCT(O58,'Emission Factors'!$J$36,E58,I58)/1000) ->  | V58: =IF($G58="User-defined Measure",VLOOKUP($H58,Measures!$C$73:$X$77,22,FALSE),IF($D58="Hot & Humid",VLOOKUP($H58,Measures!$C$6:$X$19,22,FALSE),IF($D58="Hot & Dry",VLOOKUP($H58,Measures!$C$20:$X$32,22,FALSE),IF($D58="Marine",VLOOKUP($H58,Measures!$C$33:$X$45,22,FALSE),IF($D58="Cold",VLOOKUP($H58,Measures!$C$46:$X$58,22,FALSE),IF($D58="Very Cold",VLOOKUP($H58,Measures!$C$59:$X$72,22,FALSE)," ")))))) ->  | X58: =IF($G58="User-defined Measure",VLOOKUP($H58,Measures!$C$73:$W$77,9,FALSE),IF($D58="Hot & Humid",VLOOKUP($H58,Measures!$C$6:$W$19,9,FALSE),IF($D58="Hot & Dry",VLOOKUP($H58,Measures!$C$20:$W$32,9,FALSE),IF($D58="Marine",VLOOKUP($H58,Measures!$C$33:$W$45,9,FALSE),IF($D58="Cold",VLOOKUP($H58,Measures!$C$46:$W$58,9,FALSE),IF($D58="Very Cold",VLOOKUP($H58,Measures!$C$59:$W$72,9,FALSE)," ")))))) ->  | Z58: =IF($G58="User-defined Measure",VLOOKUP($H58,Measures!$C$73:$W$77,12,FALSE),IF($D58="Hot & Humid",VLOOKUP($H58,Measures!$C$6:$W$19,12,FALSE),IF($D58="Hot & Dry",VLOOKUP($H58,Measures!$C$20:$W$32,12,FALSE),IF($D58="Marine",VLOOKUP($H58,Measures!$C$33:$W$45,12,FALSE),IF($D58="Cold",VLOOKUP($H58,Measures!$C$46:$W$58,12,FALSE),IF($D58="Very Cold",VLOOKUP($H58,Measures!$C$59:$W$72,12,FALSE)," ")))))) -> 
M59: =IF(F59<>0,VLOOKUP(F59,'Emission Factors'!$A$4:$J$31,7,FALSE)," ") ->  | N59: =IF($G59="User-defined Measure",VLOOKUP($H59,Measures!$C$73:$W$77,16,FALSE),IF($D59="Hot & Humid",VLOOKUP($H59,Measures!$C$6:$W$19,16,FALSE),IF($D59="Hot & Dry",VLOOKUP($H59,Measures!$C$20:$W$32,16,FALSE),IF($D59="Marine",VLOOKUP($H59,Measures!$C$33:$W$45,16,FALSE),IF($D59="Cold",VLOOKUP($H59,Measures!$C$46:$W$58,16,FALSE),IF($D59="Very Cold",VLOOKUP($H59,Measures!$C$59:$W$72,16,FALSE)," ")))))) ->  | O59: =IF($G59="User-defined Measure",VLOOKUP($H59,Measures!$C$73:$W$77,19,FALSE),IF($D59="Hot & Humid",VLOOKUP($H59,Measures!$C$6:$W$19,19,FALSE),IF($D59="Hot & Dry",VLOOKUP($H59,Measures!$C$20:$W$32,19,FALSE),IF($D59="Marine",VLOOKUP($H59,Measures!$C$33:$W$45,19,FALSE),IF($D59="Cold",VLOOKUP($H59,Measures!$C$46:$W$58,19,FALSE),IF($D59="Very Cold",VLOOKUP($H59,Measures!$C$59:$W$72,19,FALSE)," ")))))) ->  | S59: =IF(B59=0," ",PRODUCT(O59,'Emission Factors'!$J$36,E59,I59)/1000) ->  | V59: =IF($G59="User-defined Measure",VLOOKUP($H59,Measures!$C$73:$X$77,22,FALSE),IF($D59="Hot & Humid",VLOOKUP($H59,Measures!$C$6:$X$19,22,FALSE),IF($D59="Hot & Dry",VLOOKUP($H59,Measures!$C$20:$X$32,22,FALSE),IF($D59="Marine",VLOOKUP($H59,Measures!$C$33:$X$45,22,FALSE),IF($D59="Cold",VLOOKUP($H59,Measures!$C$46:$X$58,22,FALSE),IF($D59="Very Cold",VLOOKUP($H59,Measures!$C$59:$X$72,22,FALSE)," ")))))) ->  | X59: =IF($G59="User-defined Measure",VLOOKUP($H59,Measures!$C$73:$W$77,9,FALSE),IF($D59="Hot & Humid",VLOOKUP($H59,Measures!$C$6:$W$19,9,FALSE),IF($D59="Hot & Dry",VLOOKUP($H59,Measures!$C$20:$W$32,9,FALSE),IF($D59="Marine",VLOOKUP($H59,Measures!$C$33:$W$45,9,FALSE),IF($D59="Cold",VLOOKUP($H59,Measures!$C$46:$W$58,9,FALSE),IF($D59="Very Cold",VLOOKUP($H59,Measures!$C$59:$W$72,9,FALSE)," ")))))) ->  | Z59: =IF($G59="User-defined Measure",VLOOKUP($H59,Measures!$C$73:$W$77,12,FALSE),IF($D59="Hot & Humid",VLOOKUP($H59,Measures!$C$6:$W$19,12,FALSE),IF($D59="Hot & Dry",VLOOKUP($H59,Measures!$C$20:$W$32,12,FALSE),IF($D59="Marine",VLOOKUP($H59,Measures!$C$33:$W$45,12,FALSE),IF($D59="Cold",VLOOKUP($H59,Measures!$C$46:$W$58,12,FALSE),IF($D59="Very Cold",VLOOKUP($H59,Measures!$C$59:$W$72,12,FALSE)," ")))))) -> 
M60: =IF(F60<>0,VLOOKUP(F60,'Emission Factors'!$A$4:$J$31,7,FALSE)," ") ->  | N60: =IF($G60="User-defined Measure",VLOOKUP($H60,Measures!$C$73:$W$77,16,FALSE),IF($D60="Hot & Humid",VLOOKUP($H60,Measures!$C$6:$W$19,16,FALSE),IF($D60="Hot & Dry",VLOOKUP($H60,Measures!$C$20:$W$32,16,FALSE),IF($D60="Marine",VLOOKUP($H60,Measures!$C$33:$W$45,16,FALSE),IF($D60="Cold",VLOOKUP($H60,Measures!$C$46:$W$58,16,FALSE),IF($D60="Very Cold",VLOOKUP($H60,Measures!$C$59:$W$72,16,FALSE)," ")))))) ->  | O60: =IF($G60="User-defined Measure",VLOOKUP($H60,Measures!$C$73:$W$77,19,FALSE),IF($D60="Hot & Humid",VLOOKUP($H60,Measures!$C$6:$W$19,19,FALSE),IF($D60="Hot & Dry",VLOOKUP($H60,Measures!$C$20:$W$32,19,FALSE),IF($D60="Marine",VLOOKUP($H60,Measures!$C$33:$W$45,19,FALSE),IF($D60="Cold",VLOOKUP($H60,Measures!$C$46:$W$58,19,FALSE),IF($D60="Very Cold",VLOOKUP($H60,Measures!$C$59:$W$72,19,FALSE)," ")))))) ->  | S60: =IF(B60=0," ",PRODUCT(O60,'Emission Factors'!$J$36,E60,I60)/1000) ->  | V60: =IF($G60="User-defined Measure",VLOOKUP($H60,Measures!$C$73:$X$77,22,FALSE),IF($D60="Hot & Humid",VLOOKUP($H60,Measures!$C$6:$X$19,22,FALSE),IF($D60="Hot & Dry",VLOOKUP($H60,Measures!$C$20:$X$32,22,FALSE),IF($D60="Marine",VLOOKUP($H60,Measures!$C$33:$X$45,22,FALSE),IF($D60="Cold",VLOOKUP($H60,Measures!$C$46:$X$58,22,FALSE),IF($D60="Very Cold",VLOOKUP($H60,Measures!$C$59:$X$72,22,FALSE)," ")))))) ->  | X60: =IF($G60="User-defined Measure",VLOOKUP($H60,Measures!$C$73:$W$77,9,FALSE),IF($D60="Hot & Humid",VLOOKUP($H60,Measures!$C$6:$W$19,9,FALSE),IF($D60="Hot & Dry",VLOOKUP($H60,Measures!$C$20:$W$32,9,FALSE),IF($D60="Marine",VLOOKUP($H60,Measures!$C$33:$W$45,9,FALSE),IF($D60="Cold",VLOOKUP($H60,Measures!$C$46:$W$58,9,FALSE),IF($D60="Very Cold",VLOOKUP($H60,Measures!$C$59:$W$72,9,FALSE)," ")))))) ->  | Z60: =IF($G60="User-defined Measure",VLOOKUP($H60,Measures!$C$73:$W$77,12,FALSE),IF($D60="Hot & Humid",VLOOKUP($H60,Measures!$C$6:$W$19,12,FALSE),IF($D60="Hot & Dry",VLOOKUP($H60,Measures!$C$20:$W$32,12,FALSE),IF($D60="Marine",VLOOKUP($H60,Measures!$C$33:$W$45,12,FALSE),IF($D60="Cold",VLOOKUP($H60,Measures!$C$46:$W$58,12,FALSE),IF($D60="Very Cold",VLOOKUP($H60,Measures!$C$59:$W$72,12,FALSE)," ")))))) -> 
M61: =IF(F61<>0,VLOOKUP(F61,'Emission Factors'!$A$4:$J$31,7,FALSE)," ") ->  | N61: =IF($G61="User-defined Measure",VLOOKUP($H61,Measures!$C$73:$W$77,16,FALSE),IF($D61="Hot & Humid",VLOOKUP($H61,Measures!$C$6:$W$19,16,FALSE),IF($D61="Hot & Dry",VLOOKUP($H61,Measures!$C$20:$W$32,16,FALSE),IF($D61="Marine",VLOOKUP($H61,Measures!$C$33:$W$45,16,FALSE),IF($D61="Cold",VLOOKUP($H61,Measures!$C$46:$W$58,16,FALSE),IF($D61="Very Cold",VLOOKUP($H61,Measures!$C$59:$W$72,16,FALSE)," ")))))) ->  | O61: =IF($G61="User-defined Measure",VLOOKUP($H61,Measures!$C$73:$W$77,19,FALSE),IF($D61="Hot & Humid",VLOOKUP($H61,Measures!$C$6:$W$19,19,FALSE),IF($D61="Hot & Dry",VLOOKUP($H61,Measures!$C$20:$W$32,19,FALSE),IF($D61="Marine",VLOOKUP($H61,Measures!$C$33:$W$45,19,FALSE),IF($D61="Cold",VLOOKUP($H61,Measures!$C$46:$W$58,19,FALSE),IF($D61="Very Cold",VLOOKUP($H61,Measures!$C$59:$W$72,19,FALSE)," ")))))) ->  | S61: =IF(B61=0," ",PRODUCT(O61,'Emission Factors'!$J$36,E61,I61)/1000) ->  | V61: =IF($G61="User-defined Measure",VLOOKUP($H61,Measures!$C$73:$X$77,22,FALSE),IF($D61="Hot & Humid",VLOOKUP($H61,Measures!$C$6:$X$19,22,FALSE),IF($D61="Hot & Dry",VLOOKUP($H61,Measures!$C$20:$X$32,22,FALSE),IF($D61="Marine",VLOOKUP($H61,Measures!$C$33:$X$45,22,FALSE),IF($D61="Cold",VLOOKUP($H61,Measures!$C$46:$X$58,22,FALSE),IF($D61="Very Cold",VLOOKUP($H61,Measures!$C$59:$X$72,22,FALSE)," ")))))) ->  | X61: =IF($G61="User-defined Measure",VLOOKUP($H61,Measures!$C$73:$W$77,9,FALSE),IF($D61="Hot & Humid",VLOOKUP($H61,Measures!$C$6:$W$19,9,FALSE),IF($D61="Hot & Dry",VLOOKUP($H61,Measures!$C$20:$W$32,9,FALSE),IF($D61="Marine",VLOOKUP($H61,Measures!$C$33:$W$45,9,FALSE),IF($D61="Cold",VLOOKUP($H61,Measures!$C$46:$W$58,9,FALSE),IF($D61="Very Cold",VLOOKUP($H61,Measures!$C$59:$W$72,9,FALSE)," ")))))) ->  | Z61: =IF($G61="User-defined Measure",VLOOKUP($H61,Measures!$C$73:$W$77,12,FALSE),IF($D61="Hot & Humid",VLOOKUP($H61,Measures!$C$6:$W$19,12,FALSE),IF($D61="Hot & Dry",VLOOKUP($H61,Measures!$C$20:$W$32,12,FALSE),IF($D61="Marine",VLOOKUP($H61,Measures!$C$33:$W$45,12,FALSE),IF($D61="Cold",VLOOKUP($H61,Measures!$C$46:$W$58,12,FALSE),IF($D61="Very Cold",VLOOKUP($H61,Measures!$C$59:$W$72,12,FALSE)," ")))))) -> 
M62: =IF(F62<>0,VLOOKUP(F62,'Emission Factors'!$A$4:$J$31,7,FALSE)," ") ->  | N62: =IF($G62="User-defined Measure",VLOOKUP($H62,Measures!$C$73:$W$77,16,FALSE),IF($D62="Hot & Humid",VLOOKUP($H62,Measures!$C$6:$W$19,16,FALSE),IF($D62="Hot & Dry",VLOOKUP($H62,Measures!$C$20:$W$32,16,FALSE),IF($D62="Marine",VLOOKUP($H62,Measures!$C$33:$W$45,16,FALSE),IF($D62="Cold",VLOOKUP($H62,Measures!$C$46:$W$58,16,FALSE),IF($D62="Very Cold",VLOOKUP($H62,Measures!$C$59:$W$72,16,FALSE)," ")))))) ->  | O62: =IF($G62="User-defined Measure",VLOOKUP($H62,Measures!$C$73:$W$77,19,FALSE),IF($D62="Hot & Humid",VLOOKUP($H62,Measures!$C$6:$W$19,19,FALSE),IF($D62="Hot & Dry",VLOOKUP($H62,Measures!$C$20:$W$32,19,FALSE),IF($D62="Marine",VLOOKUP($H62,Measures!$C$33:$W$45,19,FALSE),IF($D62="Cold",VLOOKUP($H62,Measures!$C$46:$W$58,19,FALSE),IF($D62="Very Cold",VLOOKUP($H62,Measures!$C$59:$W$72,19,FALSE)," ")))))) ->  | S62: =IF(B62=0," ",PRODUCT(O62,'Emission Factors'!$J$36,E62,I62)/1000) ->  | V62: =IF($G62="User-defined Measure",VLOOKUP($H62,Measures!$C$73:$X$77,22,FALSE),IF($D62="Hot & Humid",VLOOKUP($H62,Measures!$C$6:$X$19,22,FALSE),IF($D62="Hot & Dry",VLOOKUP($H62,Measures!$C$20:$X$32,22,FALSE),IF($D62="Marine",VLOOKUP($H62,Measures!$C$33:$X$45,22,FALSE),IF($D62="Cold",VLOOKUP($H62,Measures!$C$46:$X$58,22,FALSE),IF($D62="Very Cold",VLOOKUP($H62,Measures!$C$59:$X$72,22,FALSE)," ")))))) ->  | X62: =IF($G62="User-defined Measure",VLOOKUP($H62,Measures!$C$73:$W$77,9,FALSE),IF($D62="Hot & Humid",VLOOKUP($H62,Measures!$C$6:$W$19,9,FALSE),IF($D62="Hot & Dry",VLOOKUP($H62,Measures!$C$20:$W$32,9,FALSE),IF($D62="Marine",VLOOKUP($H62,Measures!$C$33:$W$45,9,FALSE),IF($D62="Cold",VLOOKUP($H62,Measures!$C$46:$W$58,9,FALSE),IF($D62="Very Cold",VLOOKUP($H62,Measures!$C$59:$W$72,9,FALSE)," ")))))) ->  | Z62: =IF($G62="User-defined Measure",VLOOKUP($H62,Measures!$C$73:$W$77,12,FALSE),IF($D62="Hot & Humid",VLOOKUP($H62,Measures!$C$6:$W$19,12,FALSE),IF($D62="Hot & Dry",VLOOKUP($H62,Measures!$C$20:$W$32,12,FALSE),IF($D62="Marine",VLOOKUP($H62,Measures!$C$33:$W$45,12,FALSE),IF($D62="Cold",VLOOKUP($H62,Measures!$C$46:$W$58,12,FALSE),IF($D62="Very Cold",VLOOKUP($H62,Measures!$C$59:$W$72,12,FALSE)," ")))))) -> 
M63: =IF(F63<>0,VLOOKUP(F63,'Emission Factors'!$A$4:$J$31,7,FALSE)," ") ->  | N63: =IF($G63="User-defined Measure",VLOOKUP($H63,Measures!$C$73:$W$77,16,FALSE),IF($D63="Hot & Humid",VLOOKUP($H63,Measures!$C$6:$W$19,16,FALSE),IF($D63="Hot & Dry",VLOOKUP($H63,Measures!$C$20:$W$32,16,FALSE),IF($D63="Marine",VLOOKUP($H63,Measures!$C$33:$W$45,16,FALSE),IF($D63="Cold",VLOOKUP($H63,Measures!$C$46:$W$58,16,FALSE),IF($D63="Very Cold",VLOOKUP($H63,Measures!$C$59:$W$72,16,FALSE)," ")))))) ->  | O63: =IF($G63="User-defined Measure",VLOOKUP($H63,Measures!$C$73:$W$77,19,FALSE),IF($D63="Hot & Humid",VLOOKUP($H63,Measures!$C$6:$W$19,19,FALSE),IF($D63="Hot & Dry",VLOOKUP($H63,Measures!$C$20:$W$32,19,FALSE),IF($D63="Marine",VLOOKUP($H63,Measures!$C$33:$W$45,19,FALSE),IF($D63="Cold",VLOOKUP($H63,Measures!$C$46:$W$58,19,FALSE),IF($D63="Very Cold",VLOOKUP($H63,Measures!$C$59:$W$72,19,FALSE)," ")))))) ->  | S63: =IF(B63=0," ",PRODUCT(O63,'Emission Factors'!$J$36,E63,I63)/1000) ->  | V63: =IF($G63="User-defined Measure",VLOOKUP($H63,Measures!$C$73:$X$77,22,FALSE),IF($D63="Hot & Humid",VLOOKUP($H63,Measures!$C$6:$X$19,22,FALSE),IF($D63="Hot & Dry",VLOOKUP($H63,Measures!$C$20:$X$32,22,FALSE),IF($D63="Marine",VLOOKUP($H63,Measures!$C$33:$X$45,22,FALSE),IF($D63="Cold",VLOOKUP($H63,Measures!$C$46:$X$58,22,FALSE),IF($D63="Very Cold",VLOOKUP($H63,Measures!$C$59:$X$72,22,FALSE)," ")))))) ->  | X63: =IF($G63="User-defined Measure",VLOOKUP($H63,Measures!$C$73:$W$77,9,FALSE),IF($D63="Hot & Humid",VLOOKUP($H63,Measures!$C$6:$W$19,9,FALSE),IF($D63="Hot & Dry",VLOOKUP($H63,Measures!$C$20:$W$32,9,FALSE),IF($D63="Marine",VLOOKUP($H63,Measures!$C$33:$W$45,9,FALSE),IF($D63="Cold",VLOOKUP($H63,Measures!$C$46:$W$58,9,FALSE),IF($D63="Very Cold",VLOOKUP($H63,Measures!$C$59:$W$72,9,FALSE)," ")))))) ->  | Z63: =IF($G63="User-defined Measure",VLOOKUP($H63,Measures!$C$73:$W$77,12,FALSE),IF($D63="Hot & Humid",VLOOKUP($H63,Measures!$C$6:$W$19,12,FALSE),IF($D63="Hot & Dry",VLOOKUP($H63,Measures!$C$20:$W$32,12,FALSE),IF($D63="Marine",VLOOKUP($H63,Measures!$C$33:$W$45,12,FALSE),IF($D63="Cold",VLOOKUP($H63,Measures!$C$46:$W$58,12,FALSE),IF($D63="Very Cold",VLOOKUP($H63,Measures!$C$59:$W$72,12,FALSE)," ")))))) -> 
M64: =IF(F64<>0,VLOOKUP(F64,'Emission Factors'!$A$4:$J$31,7,FALSE)," ") ->  | N64: =IF($G64="User-defined Measure",VLOOKUP($H64,Measures!$C$73:$W$77,16,FALSE),IF($D64="Hot & Humid",VLOOKUP($H64,Measures!$C$6:$W$19,16,FALSE),IF($D64="Hot & Dry",VLOOKUP($H64,Measures!$C$20:$W$32,16,FALSE),IF($D64="Marine",VLOOKUP($H64,Measures!$C$33:$W$45,16,FALSE),IF($D64="Cold",VLOOKUP($H64,Measures!$C$46:$W$58,16,FALSE),IF($D64="Very Cold",VLOOKUP($H64,Measures!$C$59:$W$72,16,FALSE)," ")))))) ->  | O64: =IF($G64="User-defined Measure",VLOOKUP($H64,Measures!$C$73:$W$77,19,FALSE),IF($D64="Hot & Humid",VLOOKUP($H64,Measures!$C$6:$W$19,19,FALSE),IF($D64="Hot & Dry",VLOOKUP($H64,Measures!$C$20:$W$32,19,FALSE),IF($D64="Marine",VLOOKUP($H64,Measures!$C$33:$W$45,19,FALSE),IF($D64="Cold",VLOOKUP($H64,Measures!$C$46:$W$58,19,FALSE),IF($D64="Very Cold",VLOOKUP($H64,Measures!$C$59:$W$72,19,FALSE)," ")))))) ->  | S64: =IF(B64=0," ",PRODUCT(O64,'Emission Factors'!$J$36,E64,I64)/1000) ->  | V64: =IF($G64="User-defined Measure",VLOOKUP($H64,Measures!$C$73:$X$77,22,FALSE),IF($D64="Hot & Humid",VLOOKUP($H64,Measures!$C$6:$X$19,22,FALSE),IF($D64="Hot & Dry",VLOOKUP($H64,Measures!$C$20:$X$32,22,FALSE),IF($D64="Marine",VLOOKUP($H64,Measures!$C$33:$X$45,22,FALSE),IF($D64="Cold",VLOOKUP($H64,Measures!$C$46:$X$58,22,FALSE),IF($D64="Very Cold",VLOOKUP($H64,Measures!$C$59:$X$72,22,FALSE)," ")))))) ->  | X64: =IF($G64="User-defined Measure",VLOOKUP($H64,Measures!$C$73:$W$77,9,FALSE),IF($D64="Hot & Humid",VLOOKUP($H64,Measures!$C$6:$W$19,9,FALSE),IF($D64="Hot & Dry",VLOOKUP($H64,Measures!$C$20:$W$32,9,FALSE),IF($D64="Marine",VLOOKUP($H64,Measures!$C$33:$W$45,9,FALSE),IF($D64="Cold",VLOOKUP($H64,Measures!$C$46:$W$58,9,FALSE),IF($D64="Very Cold",VLOOKUP($H64,Measures!$C$59:$W$72,9,FALSE)," ")))))) ->  | Z64: =IF($G64="User-defined Measure",VLOOKUP($H64,Measures!$C$73:$W$77,12,FALSE),IF($D64="Hot & Humid",VLOOKUP($H64,Measures!$C$6:$W$19,12,FALSE),IF($D64="Hot & Dry",VLOOKUP($H64,Measures!$C$20:$W$32,12,FALSE),IF($D64="Marine",VLOOKUP($H64,Measures!$C$33:$W$45,12,FALSE),IF($D64="Cold",VLOOKUP($H64,Measures!$C$46:$W$58,12,FALSE),IF($D64="Very Cold",VLOOKUP($H64,Measures!$C$59:$W$72,12,FALSE)," ")))))) -> 
M65: =IF(F65<>0,VLOOKUP(F65,'Emission Factors'!$A$4:$J$31,7,FALSE)," ") ->  | N65: =IF($G65="User-defined Measure",VLOOKUP($H65,Measures!$C$73:$W$77,16,FALSE),IF($D65="Hot & Humid",VLOOKUP($H65,Measures!$C$6:$W$19,16,FALSE),IF($D65="Hot & Dry",VLOOKUP($H65,Measures!$C$20:$W$32,16,FALSE),IF($D65="Marine",VLOOKUP($H65,Measures!$C$33:$W$45,16,FALSE),IF($D65="Cold",VLOOKUP($H65,Measures!$C$46:$W$58,16,FALSE),IF($D65="Very Cold",VLOOKUP($H65,Measures!$C$59:$W$72,16,FALSE)," ")))))) ->  | O65: =IF($G65="User-defined Measure",VLOOKUP($H65,Measures!$C$73:$W$77,19,FALSE),IF($D65="Hot & Humid",VLOOKUP($H65,Measures!$C$6:$W$19,19,FALSE),IF($D65="Hot & Dry",VLOOKUP($H65,Measures!$C$20:$W$32,19,FALSE),IF($D65="Marine",VLOOKUP($H65,Measures!$C$33:$W$45,19,FALSE),IF($D65="Cold",VLOOKUP($H65,Measures!$C$46:$W$58,19,FALSE),IF($D65="Very Cold",VLOOKUP($H65,Measures!$C$59:$W$72,19,FALSE)," ")))))) ->  | S65: =IF(B65=0," ",PRODUCT(O65,'Emission Factors'!$J$36,E65,I65)/1000) ->  | V65: =IF($G65="User-defined Measure",VLOOKUP($H65,Measures!$C$73:$X$77,22,FALSE),IF($D65="Hot & Humid",VLOOKUP($H65,Measures!$C$6:$X$19,22,FALSE),IF($D65="Hot & Dry",VLOOKUP($H65,Measures!$C$20:$X$32,22,FALSE),IF($D65="Marine",VLOOKUP($H65,Measures!$C$33:$X$45,22,FALSE),IF($D65="Cold",VLOOKUP($H65,Measures!$C$46:$X$58,22,FALSE),IF($D65="Very Cold",VLOOKUP($H65,Measures!$C$59:$X$72,22,FALSE)," ")))))) ->  | X65: =IF($G65="User-defined Measure",VLOOKUP($H65,Measures!$C$73:$W$77,9,FALSE),IF($D65="Hot & Humid",VLOOKUP($H65,Measures!$C$6:$W$19,9,FALSE),IF($D65="Hot & Dry",VLOOKUP($H65,Measures!$C$20:$W$32,9,FALSE),IF($D65="Marine",VLOOKUP($H65,Measures!$C$33:$W$45,9,FALSE),IF($D65="Cold",VLOOKUP($H65,Measures!$C$46:$W$58,9,FALSE),IF($D65="Very Cold",VLOOKUP($H65,Measures!$C$59:$W$72,9,FALSE)," ")))))) ->  | Z65: =IF($G65="User-defined Measure",VLOOKUP($H65,Measures!$C$73:$W$77,12,FALSE),IF($D65="Hot & Humid",VLOOKUP($H65,Measures!$C$6:$W$19,12,FALSE),IF($D65="Hot & Dry",VLOOKUP($H65,Measures!$C$20:$W$32,12,FALSE),IF($D65="Marine",VLOOKUP($H65,Measures!$C$33:$W$45,12,FALSE),IF($D65="Cold",VLOOKUP($H65,Measures!$C$46:$W$58,12,FALSE),IF($D65="Very Cold",VLOOKUP($H65,Measures!$C$59:$W$72,12,FALSE)," ")))))) -> 
M66: =IF(F66<>0,VLOOKUP(F66,'Emission Factors'!$A$4:$J$31,7,FALSE)," ") ->  | N66: =IF($G66="User-defined Measure",VLOOKUP($H66,Measures!$C$73:$W$77,16,FALSE),IF($D66="Hot & Humid",VLOOKUP($H66,Measures!$C$6:$W$19,16,FALSE),IF($D66="Hot & Dry",VLOOKUP($H66,Measures!$C$20:$W$32,16,FALSE),IF($D66="Marine",VLOOKUP($H66,Measures!$C$33:$W$45,16,FALSE),IF($D66="Cold",VLOOKUP($H66,Measures!$C$46:$W$58,16,FALSE),IF($D66="Very Cold",VLOOKUP($H66,Measures!$C$59:$W$72,16,FALSE)," ")))))) ->  | O66: =IF($G66="User-defined Measure",VLOOKUP($H66,Measures!$C$73:$W$77,19,FALSE),IF($D66="Hot & Humid",VLOOKUP($H66,Measures!$C$6:$W$19,19,FALSE),IF($D66="Hot & Dry",VLOOKUP($H66,Measures!$C$20:$W$32,19,FALSE),IF($D66="Marine",VLOOKUP($H66,Measures!$C$33:$W$45,19,FALSE),IF($D66="Cold",VLOOKUP($H66,Measures!$C$46:$W$58,19,FALSE),IF($D66="Very Cold",VLOOKUP($H66,Measures!$C$59:$W$72,19,FALSE)," ")))))) ->  | S66: =IF(B66=0," ",PRODUCT(O66,'Emission Factors'!$J$36,E66,I66)/1000) ->  | V66: =IF($G66="User-defined Measure",VLOOKUP($H66,Measures!$C$73:$X$77,22,FALSE),IF($D66="Hot & Humid",VLOOKUP($H66,Measures!$C$6:$X$19,22,FALSE),IF($D66="Hot & Dry",VLOOKUP($H66,Measures!$C$20:$X$32,22,FALSE),IF($D66="Marine",VLOOKUP($H66,Measures!$C$33:$X$45,22,FALSE),IF($D66="Cold",VLOOKUP($H66,Measures!$C$46:$X$58,22,FALSE),IF($D66="Very Cold",VLOOKUP($H66,Measures!$C$59:$X$72,22,FALSE)," ")))))) ->  | X66: =IF($G66="User-defined Measure",VLOOKUP($H66,Measures!$C$73:$W$77,9,FALSE),IF($D66="Hot & Humid",VLOOKUP($H66,Measures!$C$6:$W$19,9,FALSE),IF($D66="Hot & Dry",VLOOKUP($H66,Measures!$C$20:$W$32,9,FALSE),IF($D66="Marine",VLOOKUP($H66,Measures!$C$33:$W$45,9,FALSE),IF($D66="Cold",VLOOKUP($H66,Measures!$C$46:$W$58,9,FALSE),IF($D66="Very Cold",VLOOKUP($H66,Measures!$C$59:$W$72,9,FALSE)," ")))))) ->  | Z66: =IF($G66="User-defined Measure",VLOOKUP($H66,Measures!$C$73:$W$77,12,FALSE),IF($D66="Hot & Humid",VLOOKUP($H66,Measures!$C$6:$W$19,12,FALSE),IF($D66="Hot & Dry",VLOOKUP($H66,Measures!$C$20:$W$32,12,FALSE),IF($D66="Marine",VLOOKUP($H66,Measures!$C$33:$W$45,12,FALSE),IF($D66="Cold",VLOOKUP($H66,Measures!$C$46:$W$58,12,FALSE),IF($D66="Very Cold",VLOOKUP($H66,Measures!$C$59:$W$72,12,FALSE)," ")))))) -> 
M67: =IF(F67<>0,VLOOKUP(F67,'Emission Factors'!$A$4:$J$31,7,FALSE)," ") ->  | N67: =IF($G67="User-defined Measure",VLOOKUP($H67,Measures!$C$73:$W$77,16,FALSE),IF($D67="Hot & Humid",VLOOKUP($H67,Measures!$C$6:$W$19,16,FALSE),IF($D67="Hot & Dry",VLOOKUP($H67,Measures!$C$20:$W$32,16,FALSE),IF($D67="Marine",VLOOKUP($H67,Measures!$C$33:$W$45,16,FALSE),IF($D67="Cold",VLOOKUP($H67,Measures!$C$46:$W$58,16,FALSE),IF($D67="Very Cold",VLOOKUP($H67,Measures!$C$59:$W$72,16,FALSE)," ")))))) ->  | O67: =IF($G67="User-defined Measure",VLOOKUP($H67,Measures!$C$73:$W$77,19,FALSE),IF($D67="Hot & Humid",VLOOKUP($H67,Measures!$C$6:$W$19,19,FALSE),IF($D67="Hot & Dry",VLOOKUP($H67,Measures!$C$20:$W$32,19,FALSE),IF($D67="Marine",VLOOKUP($H67,Measures!$C$33:$W$45,19,FALSE),IF($D67="Cold",VLOOKUP($H67,Measures!$C$46:$W$58,19,FALSE),IF($D67="Very Cold",VLOOKUP($H67,Measures!$C$59:$W$72,19,FALSE)," ")))))) ->  | S67: =IF(B67=0," ",PRODUCT(O67,'Emission Factors'!$J$36,E67,I67)/1000) ->  | V67: =IF($G67="User-defined Measure",VLOOKUP($H67,Measures!$C$73:$X$77,22,FALSE),IF($D67="Hot & Humid",VLOOKUP($H67,Measures!$C$6:$X$19,22,FALSE),IF($D67="Hot & Dry",VLOOKUP($H67,Measures!$C$20:$X$32,22,FALSE),IF($D67="Marine",VLOOKUP($H67,Measures!$C$33:$X$45,22,FALSE),IF($D67="Cold",VLOOKUP($H67,Measures!$C$46:$X$58,22,FALSE),IF($D67="Very Cold",VLOOKUP($H67,Measures!$C$59:$X$72,22,FALSE)," ")))))) ->  | X67: =IF($G67="User-defined Measure",VLOOKUP($H67,Measures!$C$73:$W$77,9,FALSE),IF($D67="Hot & Humid",VLOOKUP($H67,Measures!$C$6:$W$19,9,FALSE),IF($D67="Hot & Dry",VLOOKUP($H67,Measures!$C$20:$W$32,9,FALSE),IF($D67="Marine",VLOOKUP($H67,Measures!$C$33:$W$45,9,FALSE),IF($D67="Cold",VLOOKUP($H67,Measures!$C$46:$W$58,9,FALSE),IF($D67="Very Cold",VLOOKUP($H67,Measures!$C$59:$W$72,9,FALSE)," ")))))) ->  | Z67: =IF($G67="User-defined Measure",VLOOKUP($H67,Measures!$C$73:$W$77,12,FALSE),IF($D67="Hot & Humid",VLOOKUP($H67,Measures!$C$6:$W$19,12,FALSE),IF($D67="Hot & Dry",VLOOKUP($H67,Measures!$C$20:$W$32,12,FALSE),IF($D67="Marine",VLOOKUP($H67,Measures!$C$33:$W$45,12,FALSE),IF($D67="Cold",VLOOKUP($H67,Measures!$C$46:$W$58,12,FALSE),IF($D67="Very Cold",VLOOKUP($H67,Measures!$C$59:$W$72,12,FALSE)," ")))))) -> 
M68: =IF(F68<>0,VLOOKUP(F68,'Emission Factors'!$A$4:$J$31,7,FALSE)," ") ->  | N68: =IF($G68="User-defined Measure",VLOOKUP($H68,Measures!$C$73:$W$77,16,FALSE),IF($D68="Hot & Humid",VLOOKUP($H68,Measures!$C$6:$W$19,16,FALSE),IF($D68="Hot & Dry",VLOOKUP($H68,Measures!$C$20:$W$32,16,FALSE),IF($D68="Marine",VLOOKUP($H68,Measures!$C$33:$W$45,16,FALSE),IF($D68="Cold",VLOOKUP($H68,Measures!$C$46:$W$58,16,FALSE),IF($D68="Very Cold",VLOOKUP($H68,Measures!$C$59:$W$72,16,FALSE)," ")))))) ->  | O68: =IF($G68="User-defined Measure",VLOOKUP($H68,Measures!$C$73:$W$77,19,FALSE),IF($D68="Hot & Humid",VLOOKUP($H68,Measures!$C$6:$W$19,19,FALSE),IF($D68="Hot & Dry",VLOOKUP($H68,Measures!$C$20:$W$32,19,FALSE),IF($D68="Marine",VLOOKUP($H68,Measures!$C$33:$W$45,19,FALSE),IF($D68="Cold",VLOOKUP($H68,Measures!$C$46:$W$58,19,FALSE),IF($D68="Very Cold",VLOOKUP($H68,Measures!$C$59:$W$72,19,FALSE)," ")))))) ->  | S68: =IF(B68=0," ",PRODUCT(O68,'Emission Factors'!$J$36,E68,I68)/1000) ->  | V68: =IF($G68="User-defined Measure",VLOOKUP($H68,Measures!$C$73:$X$77,22,FALSE),IF($D68="Hot & Humid",VLOOKUP($H68,Measures!$C$6:$X$19,22,FALSE),IF($D68="Hot & Dry",VLOOKUP($H68,Measures!$C$20:$X$32,22,FALSE),IF($D68="Marine",VLOOKUP($H68,Measures!$C$33:$X$45,22,FALSE),IF($D68="Cold",VLOOKUP($H68,Measures!$C$46:$X$58,22,FALSE),IF($D68="Very Cold",VLOOKUP($H68,Measures!$C$59:$X$72,22,FALSE)," ")))))) ->  | X68: =IF($G68="User-defined Measure",VLOOKUP($H68,Measures!$C$73:$W$77,9,FALSE),IF($D68="Hot & Humid",VLOOKUP($H68,Measures!$C$6:$W$19,9,FALSE),IF($D68="Hot & Dry",VLOOKUP($H68,Measures!$C$20:$W$32,9,FALSE),IF($D68="Marine",VLOOKUP($H68,Measures!$C$33:$W$45,9,FALSE),IF($D68="Cold",VLOOKUP($H68,Measures!$C$46:$W$58,9,FALSE),IF($D68="Very Cold",VLOOKUP($H68,Measures!$C$59:$W$72,9,FALSE)," ")))))) ->  | Z68: =IF($G68="User-defined Measure",VLOOKUP($H68,Measures!$C$73:$W$77,12,FALSE),IF($D68="Hot & Humid",VLOOKUP($H68,Measures!$C$6:$W$19,12,FALSE),IF($D68="Hot & Dry",VLOOKUP($H68,Measures!$C$20:$W$32,12,FALSE),IF($D68="Marine",VLOOKUP($H68,Measures!$C$33:$W$45,12,FALSE),IF($D68="Cold",VLOOKUP($H68,Measures!$C$46:$W$58,12,FALSE),IF($D68="Very Cold",VLOOKUP($H68,Measures!$C$59:$W$72,12,FALSE)," ")))))) -> 
B70: NOTES:
B71: 1Climate types defined in the Advanced Energy Retrofit Guides. Corresponds with climate zones defined by Commercial Buildings Energy Consumption Survey (CBECS) at http://www.eia.gov/emeu/cbecs/climate_zones.html. Map included on the "References" tab of this worksheet.
B72: 2eGRID region defined by the EPA at http://www.epa.gov/cleanenergy/energy-resources/egrid/index.html. eGRID data are upgraded periodically; data corresponds with eGRID 2012 (2009 year data). Map included on the "References" tab of this worksheet.
B73: 3RCx corresponds with EBCx in the Advanced Energy Retrofit Guides. Major Renovations corresponds with Deep Retrofit.

Sheet Summary
B1: Summary of Building Emissions: Reduction Opportunities
B2: Agency: | F2: =Input!H3 -> ABC
B3: Baseline Scope 1 & 2 Emissions: | F3: =Input!H4 -> 40305755
B6: Agency Totals
B8: Agency Name | C8: Annual GHG Reduction Potential (MTCO2e/year) | D8: Cumulative GHG Reduction Potential (MTCO2e) | F8: Capital Cost ($) | G8: Annual Cost Savings ($/year) | H8: Simple Payback (years) | J8: Cost Effectiveness ($/MTCO2e) | L8: GHG Percent Reduction from Baseline (%)
B9: =F2 -> ABC | C9: =Input!T10 -> 4183.709206 | D9: =Input!W10 -> 83378.41796 | F9: =Input!Y10 -> 5766675.4 | G9: =Input!AA10 -> 2160640 | H9: =F9/G9 -> 2.668966325 | J9: =F9/D9 -> 69.16268671 | L9: =C9/F3 -> 0.0001037993013
B11: Program Totals
B12: Up to 10 programs can be summarized in the following table. If more programs are desired, insert additional rows, and copy and paste the formulas into the new rows.
B13: Program Name | C13: Annual GHG Reduction Potential (MTCO2e/year) | D13: Cumulative GHG Reduction Potential (MTCO2e) | E13: Rank (on GHG Reduction Potential) | F13: Capital Cost ($) | G13: Annual Cost Savings ($/year) | H13: Simple Payback (years) | I13: Rank (on Simple Payback) | J13: Cost Effectiveness ($/MTCO2e) | K13: Rank (on Cost Effectiveness) | L13: GHG Percent Reduction from Baseline (%)
B14: =IF(OR('Pivot Tables'!A3=0,'Pivot Tables'!A3="(blank)",'Pivot Tables'!A3="Grand Total"), " ",'Pivot Tables'!A3) -> Program B | C14: =IF($B14=" "," ",'Pivot Tables'!B3) -> 4183.709206 | D14: =IF($B14=" "," ",'Pivot Tables'!E3) -> 83378.41796 | E14: =IF(B14=" "," ",RANK(C14,C$14:C$23,1)) -> 1 | F14: =IF(B14=" "," ",'Pivot Tables'!C3) -> 5766675.4 | G14: =IF(B14=" "," ",'Pivot Tables'!D3) -> 2160640 | H14: =IF(C14=" "," ",F14/G14) -> 2.668966325 | I14: =IF(B14=" "," ",RANK(H14,H$14:H$23,1)) -> 1 | J14: =IF(B14=" "," ",F14/D14) -> 69.16268671 | K14: =IF(B14=" "," ",RANK(J14,J$14:J$23,1)) -> 1 | L14: =IF(C14=" "," ",C14/F$3) -> 0.0001037993013
B15: =IF(OR('Pivot Tables'!A4=0,'Pivot Tables'!A4="(blank)",'Pivot Tables'!A4="Grand Total"), " ",'Pivot Tables'!A4) ->  | C15: =IF(B15=" "," ",'Pivot Tables'!B4) ->  | D15: =IF($B15=" "," ",'Pivot Tables'!E4) ->  | E15: =IF(B15=" "," ",RANK(C15,C$14:C$23,1)) ->  | F15: =IF(B15=" "," ",'Pivot Tables'!C4) ->  | G15: =IF(B15=" "," ",'Pivot Tables'!D4) ->  | J15: =IF(B15=" "," ",F15/D15) ->  | K15: =IF(B15=" "," ",RANK(J15,J$14:J$23,1)) -> 
B16: =IF(OR('Pivot Tables'!A5=0,'Pivot Tables'!A5="(blank)",'Pivot Tables'!A5="Grand Total"), " ",'Pivot Tables'!A5) ->  | C16: =IF(B16=" "," ",'Pivot Tables'!B5) ->  | D16: =IF($B16=" "," ",'Pivot Tables'!E5) ->  | F16: =IF(B16=" "," ",'Pivot Tables'!C5) ->  | G16: =IF(B16=" "," ",'Pivot Tables'!D5) -> 
B17: =IF(OR('Pivot Tables'!A6=0,'Pivot Tables'!A6="(blank)",'Pivot Tables'!A6="Grand Total"), " ",'Pivot Tables'!A6) ->  | C17: =IF(B17=" "," ",'Pivot Tables'!B6) ->  | D17: =IF($B17=" "," ",'Pivot Tables'!E6) ->  | F17: =IF(B17=" "," ",'Pivot Tables'!C6) ->  | G17: =IF(B17=" "," ",'Pivot Tables'!D6) -> 
B18: =IF(OR('Pivot Tables'!A7=0,'Pivot Tables'!A7="(blank)",'Pivot Tables'!A7="Grand Total"), " ",'Pivot Tables'!A7) ->  | C18: =IF(B18=" "," ",'Pivot Tables'!B7) ->  | D18: =IF($B18=" "," ",'Pivot Tables'!E7) ->  | F18: =IF(B18=" "," ",'Pivot Tables'!C7) ->  | G18: =IF(B18=" "," ",'Pivot Tables'!D7) -> 
B19: =IF(OR('Pivot Tables'!A8=0,'Pivot Tables'!A8="(blank)",'Pivot Tables'!A8="Grand Total"), " ",'Pivot Tables'!A8) ->  | C19: =IF(B19=" "," ",'Pivot Tables'!B8) ->  | D19: =IF($B19=" "," ",'Pivot Tables'!E8) ->  | F19: =IF(B19=" "," ",'Pivot Tables'!C8) ->  | G19: =IF(B19=" "," ",'Pivot Tables'!D8) -> 
B20: =IF(OR('Pivot Tables'!A9=0,'Pivot Tables'!A9="(blank)",'Pivot Tables'!A9="Grand Total"), " ",'Pivot Tables'!A9) ->  | C20: =IF(B20=" "," ",'Pivot Tables'!B9) ->  | D20: =IF($B20=" "," ",'Pivot Tables'!E9) ->  | F20: =IF(B20=" "," ",'Pivot Tables'!C9) ->  | G20: =IF(B20=" "," ",'Pivot Tables'!D9) -> 
B21: =IF(OR('Pivot Tables'!A20=0,'Pivot Tables'!A20="(blank)",'Pivot Tables'!A20="Grand Total"), " ",'Pivot Tables'!A20) ->  | C21: =IF(B21=" "," ",'Pivot Tables'!B20) ->  | D21: =IF($B21=" "," ",'Pivot Tables'!E10) ->  | F21: =IF(B21=" "," ",'Pivot Tables'!C10) ->  | G21: =IF(B21=" "," ",'Pivot Tables'!D10) -> 
B22: =IF(OR('Pivot Tables'!A20=0,'Pivot Tables'!A20="(blank)",'Pivot Tables'!A20="Grand Total"), " ",'Pivot Tables'!A20) ->  | C22: =IF(B22=" "," ",'Pivot Tables'!B21) ->  | D22: =IF($B22=" "," ",'Pivot Tables'!E11) ->  | F22: =IF(B22=" "," ",'Pivot Tables'!C11) ->  | G22: =IF(B22=" "," ",'Pivot Tables'!D11) -> 
B23: =IF(OR('Pivot Tables'!A21=0,'Pivot Tables'!A21="(blank)",'Pivot Tables'!A21="Grand Total"), " ",'Pivot Tables'!A21) ->  | C23: =IF(B23=" "," ",'Pivot Tables'!B23) ->  | D23: =IF($B23=" "," ",'Pivot Tables'!E12) ->  | F23: =IF(B23=" "," ",'Pivot Tables'!C12) ->  | G23: =IF(B23=" "," ",'Pivot Tables'!D12) -> 
B25: Site Totals
B26: Up to 15 sites can be summarized in the following table. If more sites are desired, insert additional rows, and copy and paste the formulas into the new rows.
B27: Site Name | C27: GHG Reduction Potential (MTCO2e/year) | D27: Cumulative GHG Reduction Potential (MTCO2e) | E27: Rank (on GHG Reduction Potential) | F27: Capital Cost ($) | G27: Annual Cost Savings ($/year) | H27: Simple Payback (years) | I27: Rank (on Simple Payback) | J27: Cost Effectiveness ($/MTCO2e) | K27: Rank (on Cost Effectiveness) | L27: GHG Percent Reduction from Baseline (%)
B28: =IF(OR('Pivot Tables'!A26=0,'Pivot Tables'!A26="(blank)",'Pivot Tables'!A26="Grand Total"), " ",'Pivot Tables'!A26) -> Site 2 | C28: =IF($B28=" "," ",'Pivot Tables'!B26) -> 2073.187275 | D28: =IF($B28=" "," ",'Pivot Tables'!E26) -> 41198.14881 | E28: =IF(B28=" "," ",(RANK(C28,C$28:C$42,0))) -> 1 | F28: =IF(E28=" "," ",'Pivot Tables'!C26) -> 1420175 | G28: =IF(B28=" "," ",'Pivot Tables'!D26) -> 939750 | H28: =IF(B28=" "," ",F28/G28) -> 1.51122639 | I28: =IF(B28=" "," ",RANK(H28,H$28:H$42,1)) -> 1 | J28: =IF(B28=" "," ",F28/D28) -> 34.47181587 | K28: =IF(B28=" "," ",RANK(J28,J$28:J$42,1)) -> 1 | L28: =IF(B28=" "," ",C28/$F$3) -> 5.143650763e-05
B29: =IF(OR('Pivot Tables'!A27=0,'Pivot Tables'!A27="(blank)",'Pivot Tables'!A27="Grand Total"), " ",'Pivot Tables'!A27) -> Site 3 | C29: =IF(B29=" "," ",'Pivot Tables'!B27) -> 804.0743652 | D29: =IF($B29=" "," ",'Pivot Tables'!E27) -> 16051.31783 | E29: 3 | F29: =IF(E29=" "," ",'Pivot Tables'!C27) -> 2164100.4 | G29: =IF(B29=" "," ",'Pivot Tables'!D27) -> 602140 | H29: 3.594015345 | I29: 3 | J29: =IF(B29=" "," ",F29/D29) -> 134.8238458 | K29: =IF(B29=" "," ",RANK(J29,J$28:J$42,1)) -> 3 | L29: 1.994936865e-05
B30: =IF(OR('Pivot Tables'!A28=0,'Pivot Tables'!A28="(blank)",'Pivot Tables'!A28="Grand Total"), " ",'Pivot Tables'!A28) -> Site 4 | C30: =IF(B30=" "," ",'Pivot Tables'!B28) -> 1306.447566 | D30: =IF($B30=" "," ",'Pivot Tables'!E28) -> 26128.95132 | E30: 2 | F30: =IF(E30=" "," ",'Pivot Tables'!C28) -> 2182400 | G30: =IF(B30=" "," ",'Pivot Tables'!D28) -> 618750 | H30: 3.527111111 | I30: 2 | J30: 83.52420934 | K30: 2 | L30: 3.241342498e-05
B31: =IF(OR('Pivot Tables'!A29=0,'Pivot Tables'!A29="(blank)",'Pivot Tables'!A29="Grand Total"), " ",'Pivot Tables'!A29) ->  | C31: =IF(B31=" "," ",'Pivot Tables'!B29) ->  | D31: =IF($B31=" "," ",'Pivot Tables'!E29) ->  | F31: =IF(E31=" "," ",'Pivot Tables'!C29) ->  | G31: =IF(B31=" "," ",'Pivot Tables'!D29) -> 
B32: =IF(OR('Pivot Tables'!A30=0,'Pivot Tables'!A30="(blank)",'Pivot Tables'!A30="Grand Total"), " ",'Pivot Tables'!A30) ->  | C32: =IF(B32=" "," ",'Pivot Tables'!B30) ->  | D32: =IF($B32=" "," ",'Pivot Tables'!E30) ->  | F32: =IF(E32=" "," ",'Pivot Tables'!C30) ->  | G32: =IF(B32=" "," ",'Pivot Tables'!D30) -> 
B33: =IF(OR('Pivot Tables'!A31=0,'Pivot Tables'!A31="(blank)",'Pivot Tables'!A31="Grand Total"), " ",'Pivot Tables'!A31) ->  | C33: =IF(B33=" "," ",'Pivot Tables'!B31) ->  | D33: =IF($B33=" "," ",'Pivot Tables'!E31) ->  | F33: =IF(E33=" "," ",'Pivot Tables'!C31) ->  | G33: =IF(B33=" "," ",'Pivot Tables'!D31) -> 
B34: =IF(OR('Pivot Tables'!A32=0,'Pivot Tables'!A32="(blank)",'Pivot Tables'!A32="Grand Total"), " ",'Pivot Tables'!A32) ->  | C34: =IF(B34=" "," ",'Pivot Tables'!B32) ->  | D34: =IF($B34=" "," ",'Pivot Tables'!E32) ->  | E34: =IF(B34=" "," ",(RANK(C34,C$28:C$42,0))) ->  | F34: =IF(E34=" "," ",'Pivot Tables'!C32) ->  | G34: =IF(B34=" "," ",'Pivot Tables'!D32) -> 
B35: =IF(OR('Pivot Tables'!A33=0,'Pivot Tables'!A33="(blank)",'Pivot Tables'!A33="Grand Total"), " ",'Pivot Tables'!A33) ->  | C35: =IF(B35=" "," ",'Pivot Tables'!B33) ->  | D35: =IF($B35=" "," ",'Pivot Tables'!E33) ->  | F35: =IF(E35=" "," ",'Pivot Tables'!C33) ->  | G35: =IF(B35=" "," ",'Pivot Tables'!D33) -> 
B36: =IF(OR('Pivot Tables'!A34=0,'Pivot Tables'!A34="(blank)",'Pivot Tables'!A34="Grand Total"), " ",'Pivot Tables'!A34) ->  | C36: =IF(B36=" "," ",'Pivot Tables'!B34) ->  | D36: =IF($B36=" "," ",'Pivot Tables'!E34) ->  | F36: =IF(E36=" "," ",'Pivot Tables'!C34) ->  | G36: =IF(B36=" "," ",'Pivot Tables'!D34) -> 
B37: =IF(OR('Pivot Tables'!A35=0,'Pivot Tables'!A35="(blank)",'Pivot Tables'!A35="Grand Total"), " ",'Pivot Tables'!A35) ->  | C37: =IF(B37=" "," ",'Pivot Tables'!B35) ->  | D37: =IF($B37=" "," ",'Pivot Tables'!E35) ->  | F37: =IF(E37=" "," ",'Pivot Tables'!C35) ->  | G37: =IF(B37=" "," ",'Pivot Tables'!D35) -> 
B38: =IF(OR('Pivot Tables'!A57=0,'Pivot Tables'!A57="(blank)",'Pivot Tables'!A57="Grand Total"), " ",'Pivot Tables'!A57) ->  | C38: =IF(B38=" "," ",'Pivot Tables'!B57) ->  | D38: =IF($B38=" "," ",'Pivot Tables'!E36) ->  | F38: =IF(E38=" "," ",'Pivot Tables'!C36) ->  | G38: =IF(B38=" "," ",'Pivot Tables'!D36) -> 
B39: =IF(OR('Pivot Tables'!A58=0,'Pivot Tables'!A58="(blank)",'Pivot Tables'!A58="Grand Total"), " ",'Pivot Tables'!A58) ->  | C39: =IF(B39=" "," ",'Pivot Tables'!B58) ->  | D39: =IF($B39=" "," ",'Pivot Tables'!E37) ->  | F39: =IF(E39=" "," ",'Pivot Tables'!C37) ->  | G39: =IF(B39=" "," ",'Pivot Tables'!D37) -> 
B40: =IF(OR('Pivot Tables'!A59=0,'Pivot Tables'!A59="(blank)",'Pivot Tables'!A59="Grand Total"), " ",'Pivot Tables'!A59) ->  | C40: =IF(B40=" "," ",'Pivot Tables'!B59) ->  | D40: =IF($B40=" "," ",'Pivot Tables'!E38) ->  | F40: =IF(E40=" "," ",'Pivot Tables'!C38) ->  | G40: =IF(B40=" "," ",'Pivot Tables'!D38) -> 
B41: =IF(OR('Pivot Tables'!A60=0,'Pivot Tables'!A60="(blank)",'Pivot Tables'!A60="Grand Total"), " ",'Pivot Tables'!A60) ->  | C41: =IF(B41=" "," ",'Pivot Tables'!B60) ->  | D41: =IF($B41=" "," ",'Pivot Tables'!E39) ->  | F41: =IF(E41=" "," ",'Pivot Tables'!C39) ->  | G41: =IF(B41=" "," ",'Pivot Tables'!D39) -> 
B42: =IF(OR('Pivot Tables'!A61=0,'Pivot Tables'!A61="(blank)",'Pivot Tables'!A61="Grand Total"), " ",'Pivot Tables'!A61) ->  | C42: =IF(B42=" "," ",'Pivot Tables'!B61) ->  | D42: =IF($B42=" "," ",'Pivot Tables'!E40) ->  | F42: =IF(E42=" "," ",'Pivot Tables'!C40) ->  | G42: =IF(B42=" "," ",'Pivot Tables'!D40) -> 
B45: Measure Totals
B46: Up to 25 measures can be summarized in the following table. If more measures are desired, insert additional rows, and copy and paste the formulas into the new rows.
B47: Measure | C47: GHG Reduction Potential (MTCO2e/year) | D47: Cumulative GHG Reduction Potential (MTCO2e) | E47: Rank (on GHG Reduction Potential) | F47: Capital Cost ($) | G47: Annual Cost Savings ($/year) | H47: Simple Payback (years) | I47: Rank (on Simple Payback) | J47: Cost Effectiveness ($/MTCO2e) | K47: Rank (on Cost Effectiveness) | L47: GHG Percent Reduction from Baseline (%)
B48: =IF(OR('Pivot Tables'!A69=0,'Pivot Tables'!A69="(blank)",'Pivot Tables'!A69="Grand Total"), " ",'Pivot Tables'!A69) -> Install IR heating | C48: =IF($B48=" "," ",'Pivot Tables'!B69) -> 26.5596685 | D48: =IF($B48=" "," ",'Pivot Tables'!E69) -> 265.596685 | E48: =IF(B48=" "," ",RANK(C48,C$48:C$72,0)) -> 4 | F48: =IF(B48=" "," ",'Pivot Tables'!C69) -> 20000 | G48: =IF(B48=" "," ",'Pivot Tables'!D69) -> 6000 | H48: =IF(B48=" "," ",F48/G48) -> 3.333333333 | I48: =IF(B48=" "," ",RANK(H48,H$48:H$72,1)) -> 3 | J48: =IF(B48=" "," ",F48/D48) -> 75.30214467 | K48: =IF(B48=" "," ",RANK(J48,J$48:J$72,1)) -> 2 | L48: =IF(B48=" "," ",C48/$F$3) -> 6.589547449e-07
B49: =IF(OR('Pivot Tables'!A70=0,'Pivot Tables'!A70="(blank)",'Pivot Tables'!A70="Grand Total"), " ",'Pivot Tables'!A70) -> Major Renovation (Deep Retrofit) Package | C49: =IF(B49=" "," ",'Pivot Tables'!B70) -> 690.4546438 | D49: =IF($B49=" "," ",'Pivot Tables'!E70) -> 13809.09288 | E49: =IF(B49=" "," ",RANK(C49,C$48:C$72,0)) -> 3 | F49: =IF(B49=" "," ",'Pivot Tables'!C70) -> 2123550 | G49: =IF(B49=" "," ",'Pivot Tables'!D70) -> 361350 | H49: 5.876712329 | I49: 4 | J49: =IF(B49=" "," ",F49/D49) -> 153.7791091 | K49: =IF(B49=" "," ",RANK(J49,J$48:J$72,1)) -> 4 | L49: 1.713042328e-05
B50: =IF(OR('Pivot Tables'!A71=0,'Pivot Tables'!A71="(blank)",'Pivot Tables'!A71="Grand Total"), " ",'Pivot Tables'!A71) -> RCx (EBCx) Package | C50: =IF(B50=" "," ",'Pivot Tables'!B71) -> 1964.554984 | D50: =IF($B50=" "," ",'Pivot Tables'!E71) -> 39291.09967 | E50: 1 | F50: =IF(B50=" "," ",'Pivot Tables'!C71) -> 748475 | G50: =IF(B50=" "," ",'Pivot Tables'!D71) -> 685650 | H50: 1.091628382 | I50: 1 | J50: 19.04947956 | K50: 1 | L50: 4.874130217e-05
B51: =IF(OR('Pivot Tables'!A72=0,'Pivot Tables'!A72="(blank)",'Pivot Tables'!A72="Grand Total"), " ",'Pivot Tables'!A72) -> Standard Retrofit Package | C51: =IF(B51=" "," ",'Pivot Tables'!B72) -> 1496.106016 | D51: =IF($B51=" "," ",'Pivot Tables'!E72) -> 29922.12031 | E51: 2 | F51: =IF(B51=" "," ",'Pivot Tables'!C72) -> 2649850 | G51: =IF(B51=" "," ",'Pivot Tables'!D72) -> 1085200 | H51: 2.441807962 | I51: 2 | J51: 88.55822957 | K51: 3 | L51: 3.711891802e-05
B52: =IF(OR('Pivot Tables'!A73=0,'Pivot Tables'!A73="(blank)",'Pivot Tables'!A73="Grand Total"), " ",'Pivot Tables'!A73) ->  | C52: =IF(B52=" "," ",'Pivot Tables'!B73) ->  | D52: =IF($B52=" "," ",'Pivot Tables'!E73) ->  | F52: =IF(B52=" "," ",'Pivot Tables'!C73) ->  | G52: =IF(B52=" "," ",'Pivot Tables'!D73) -> 
B53: =IF(OR('Pivot Tables'!A74=0,'Pivot Tables'!A74="(blank)",'Pivot Tables'!A74="Grand Total"), " ",'Pivot Tables'!A74) -> Replace the tenant server room cooling units with more efficient units | C53: =IF(B53=" "," ",'Pivot Tables'!B74) -> 6.033894093 | D53: =IF($B53=" "," ",'Pivot Tables'!E74) -> 90.50841139 | E53: 5 | F53: =IF(B53=" "," ",'Pivot Tables'!C74) -> 224800.4 | G53: =IF(B53=" "," ",'Pivot Tables'!D74) -> 22440 | H53: 10.01784314 | I53: 5 | J53: 2483.751472 | K53: 5 | L53: 1.49703041e-07
B54: =IF(OR('Pivot Tables'!A75=0,'Pivot Tables'!A75="(blank)",'Pivot Tables'!A75="Grand Total"), " ",'Pivot Tables'!A75) ->  | C54: =IF(B54=" "," ",'Pivot Tables'!B75) ->  | D54: =IF($B54=" "," ",'Pivot Tables'!E75) ->  | F54: =IF(B54=" "," ",'Pivot Tables'!C75) ->  | G54: =IF(B54=" "," ",'Pivot Tables'!D75) -> 
B55: =IF(OR('Pivot Tables'!A76=0,'Pivot Tables'!A76="(blank)",'Pivot Tables'!A76="Grand Total"), " ",'Pivot Tables'!A76) ->  | C55: =IF(B55=" "," ",'Pivot Tables'!B76) ->  | D55: =IF($B55=" "," ",'Pivot Tables'!E76) ->  | F55: =IF(B55=" "," ",'Pivot Tables'!C76) ->  | G55: =IF(B55=" "," ",'Pivot Tables'!D76) -> 
B56: =IF(OR('Pivot Tables'!A77=0,'Pivot Tables'!A77="(blank)",'Pivot Tables'!A77="Grand Total"), " ",'Pivot Tables'!A77) ->  | C56: =IF(B56=" "," ",'Pivot Tables'!B77) ->  | D56: =IF($B56=" "," ",'Pivot Tables'!E77) ->  | F56: =IF(B56=" "," ",'Pivot Tables'!C77) ->  | G56: =IF(B56=" "," ",'Pivot Tables'!D77) -> 
B57: =IF(OR('Pivot Tables'!A78=0,'Pivot Tables'!A78="(blank)",'Pivot Tables'!A78="Grand Total"), " ",'Pivot Tables'!A78) ->  | C57: =IF(B57=" "," ",'Pivot Tables'!B78) ->  | D57: =IF($B57=" "," ",'Pivot Tables'!E78) ->  | F57: =IF(B57=" "," ",'Pivot Tables'!C78) ->  | G57: =IF(B57=" "," ",'Pivot Tables'!D78) -> 
B58: =IF(OR('Pivot Tables'!A79=0,'Pivot Tables'!A79="(blank)",'Pivot Tables'!A79="Grand Total"), " ",'Pivot Tables'!A79) ->  | C58: =IF(B58=" "," ",'Pivot Tables'!B79) ->  | D58: =IF($B58=" "," ",'Pivot Tables'!E79) ->  | F58: =IF(B58=" "," ",'Pivot Tables'!C79) ->  | G58: =IF(B58=" "," ",'Pivot Tables'!D79) -> 
B59: =IF(OR('Pivot Tables'!A80=0,'Pivot Tables'!A80="(blank)",'Pivot Tables'!A80="Grand Total"), " ",'Pivot Tables'!A80) ->  | C59: =IF(B59=" "," ",'Pivot Tables'!B80) ->  | D59: =IF($B59=" "," ",'Pivot Tables'!E80) ->  | F59: =IF(B59=" "," ",'Pivot Tables'!C80) ->  | G59: =IF(B59=" "," ",'Pivot Tables'!D80) ->  | L59: =IF(B59=" "," ",C59/$F$3) -> 
B60: =IF(OR('Pivot Tables'!A81=0,'Pivot Tables'!A81="(blank)",'Pivot Tables'!A81="Grand Total"), " ",'Pivot Tables'!A81) ->  | C60: =IF(B60=" "," ",'Pivot Tables'!B81) ->  | D60: =IF($B60=" "," ",'Pivot Tables'!E81) ->  | F60: =IF(B60=" "," ",'Pivot Tables'!C81) ->  | G60: =IF(B60=" "," ",'Pivot Tables'!D81) -> 
B61: =IF(OR('Pivot Tables'!A82=0,'Pivot Tables'!A82="(blank)",'Pivot Tables'!A82="Grand Total"), " ",'Pivot Tables'!A82) ->  | C61: =IF(B61=" "," ",'Pivot Tables'!B82) ->  | D61: =IF($B61=" "," ",'Pivot Tables'!E82) ->  | F61: =IF(B61=" "," ",'Pivot Tables'!C82) ->  | G61: =IF(B61=" "," ",'Pivot Tables'!D82) -> 
B62: =IF(OR('Pivot Tables'!A83=0,'Pivot Tables'!A83="(blank)",'Pivot Tables'!A83="Grand Total"), " ",'Pivot Tables'!A83) ->  | C62: =IF(B62=" "," ",'Pivot Tables'!B83) ->  | D62: =IF($B62=" "," ",'Pivot Tables'!E83) ->  | F62: =IF(B62=" "," ",'Pivot Tables'!C83) ->  | G62: =IF(B62=" "," ",'Pivot Tables'!D83) -> 
B63: =IF(OR('Pivot Tables'!A84=0,'Pivot Tables'!A84="(blank)",'Pivot Tables'!A84="Grand Total"), " ",'Pivot Tables'!A84) ->  | C63: =IF(B63=" "," ",'Pivot Tables'!B84) ->  | D63: =IF($B63=" "," ",'Pivot Tables'!E84) ->  | F63: =IF(B63=" "," ",'Pivot Tables'!C84) ->  | G63: =IF(B63=" "," ",'Pivot Tables'!D84) -> 
B64: =IF(OR('Pivot Tables'!A85=0,'Pivot Tables'!A85="(blank)",'Pivot Tables'!A85="Grand Total"), " ",'Pivot Tables'!A85) ->  | C64: =IF(B64=" "," ",'Pivot Tables'!B85) ->  | D64: =IF($B64=" "," ",'Pivot Tables'!E85) ->  | F64: =IF(B64=" "," ",'Pivot Tables'!C85) ->  | G64: =IF(B64=" "," ",'Pivot Tables'!D85) -> 
B65: =IF(OR('Pivot Tables'!A86=0,'Pivot Tables'!A86="(blank)",'Pivot Tables'!A86="Grand Total"), " ",'Pivot Tables'!A86) ->  | C65: =IF(B65=" "," ",'Pivot Tables'!B86) ->  | D65: =IF($B65=" "," ",'Pivot Tables'!E86) ->  | F65: =IF(B65=" "," ",'Pivot Tables'!C86) ->  | G65: =IF(B65=" "," ",'Pivot Tables'!D86) -> 
B66: =IF(OR('Pivot Tables'!A87=0,'Pivot Tables'!A87="(blank)",'Pivot Tables'!A87="Grand Total"), " ",'Pivot Tables'!A87) ->  | C66: =IF(B66=" "," ",'Pivot Tables'!B87) ->  | D66: =IF($B66=" "," ",'Pivot Tables'!E87) ->  | F66: =IF(B66=" "," ",'Pivot Tables'!C87) ->  | G66: =IF(B66=" "," ",'Pivot Tables'!D87) -> 
B67: =IF(OR('Pivot Tables'!A88=0,'Pivot Tables'!A88="(blank)",'Pivot Tables'!A88="Grand Total"), " ",'Pivot Tables'!A88) ->  | C67: =IF(B67=" "," ",'Pivot Tables'!B88) ->  | D67: =IF($B67=" "," ",'Pivot Tables'!E88) ->  | F67: =IF(B67=" "," ",'Pivot Tables'!C88) ->  | G67: =IF(B67=" "," ",'Pivot Tables'!D88) -> 
B68: =IF(OR('Pivot Tables'!A89=0,'Pivot Tables'!A89="(blank)",'Pivot Tables'!A89="Grand Total"), " ",'Pivot Tables'!A89) ->  | C68: =IF(B68=" "," ",'Pivot Tables'!B89) ->  | D68: =IF($B68=" "," ",'Pivot Tables'!E89) ->  | F68: =IF(B68=" "," ",'Pivot Tables'!C89) ->  | G68: =IF(B68=" "," ",'Pivot Tables'!D89) -> 
B69: =IF(OR('Pivot Tables'!A90=0,'Pivot Tables'!A90="(blank)",'Pivot Tables'!A90="Grand Total"), " ",'Pivot Tables'!A90) ->  | C69: =IF(B69=" "," ",'Pivot Tables'!B90) ->  | D69: =IF($B69=" "," ",'Pivot Tables'!E90) ->  | F69: =IF(B69=" "," ",'Pivot Tables'!C90) ->  | G69: =IF(B69=" "," ",'Pivot Tables'!D90) -> 
B70: =IF(OR('Pivot Tables'!A91=0,'Pivot Tables'!A91="(blank)",'Pivot Tables'!A91="Grand Total"), " ",'Pivot Tables'!A91) ->  | C70: =IF(B70=" "," ",'Pivot Tables'!B91) ->  | D70: =IF($B70=" "," ",'Pivot Tables'!E91) ->  | F70: =IF(B70=" "," ",'Pivot Tables'!C91) ->  | G70: =IF(B70=" "," ",'Pivot Tables'!D91) -> 
B71: =IF(OR('Pivot Tables'!A92=0,'Pivot Tables'!A92="(blank)",'Pivot Tables'!A92="Grand Total"), " ",'Pivot Tables'!A92) ->  | C71: =IF(B71=" "," ",'Pivot Tables'!B92) ->  | D71: =IF($B71=" "," ",'Pivot Tables'!E92) ->  | F71: =IF(B71=" "," ",'Pivot Tables'!C92) ->  | G71: =IF(B71=" "," ",'Pivot Tables'!D92) -> 
B72: =IF(OR('Pivot Tables'!A93=0,'Pivot Tables'!A93="(blank)",'Pivot Tables'!A93="Grand Total"), " ",'Pivot Tables'!A93) ->  | C72: =IF(B72=" "," ",'Pivot Tables'!B93) ->  | D72: =IF($B72=" "," ",'Pivot Tables'!E93) ->  | F72: =IF(B72=" "," ",'Pivot Tables'!C93) ->  | G72: =IF(B72=" "," ",'Pivot Tables'!D93) -> 

Sheet Graphs

Sheet Measures
B2: Office | C2: Default Proxy Bldg Size | D2: 200000 | E2: SF
C3: User-defined Proxy Bldg Size | D3: 200000 | E3: SF
B4: VLOOKUP | C4: 1 | D4: 2 | E4: 3 | F4: 4 | G4: 5 | H4: 6 | I4: 7 | J4: 8 | K4: 9 | L4: 10 | M4: 11 | N4: 12 | O4: 13 | P4: 14 | Q4: 15 | R4: 16 | S4: 17 | T4: 18 | U4: 19 | V4: 20 | W4: 21 | X4: 22
A5: Building Type | B5: Retrofit Number | C5: Retrofit Description | D5: Climate | E5: Measure Costs ($) | F5: Energy Cost Savings ($) | G5: O&M Cost Savings ($) | H5: Total Savings ($) | I5: Simple Payback (Years) | J5: Net Present Value | K5: Measure Cost Index ($/sf) | L5: Energy Savings Index ($/sf) | M5: O&M Savings Index ($/sf) | N5: Total Savings Index ($/sf) | O5: NPV Index ($/sf) | P5: Electric energy savings (kWh) | Q5: Electric energy savings Index (kWh/SF) | R5: Electric energy savings Index (kBtu/SF) | S5: Electric demand savings (kW) | T5: Gas savings (therms) | U5: Gas Savings Index (kBtu/SF) | V5: EUI reduction (kBtu/sf) | W5: Savings as % of total site usage | X5: Effective Useful Life
A6: Office | B6: 1 | C6: RCx (EBCx) Package | D6: Hot & Humid | E6: 61100 | F6: 36300 | G6: 0 | H6: 36300 | I6: 2 | J6: 244000 | K6: =E6/$D$2 -> 0.3055 | L6: 0.1815 | M6: =IF(G6<>0,G6/$D$2,0) -> 0 | N6: =H6/$D$2 -> 0.1815 | O6: =J6/$D$2 -> 1.22 | P6: 319000 | Q6: =P6/$D$2 -> 1.595 | R6: =Q6*'Emission Factors'!$L$1/1000 -> 5.44214 | S6: 4 | T6: 16000 | U6: =IF(T6<>0,T6*100/$D$2,0) -> 8 | V6: 13 | W6: 0.15 | X6: 20
A7: Office | B7: 2 | C7: Standard Retrofit Package | D7: Hot & Humid | E7: 422000 | F7: 141000 | G7: -4100 | H7: 137000 | I7: 3 | J7: 753000 | K7: 2.11 | L7: 0.705 | M7: =IF(G7<>0,G7/$D$2,0) -> -0.0205 | N7: =H7/$D$2 -> 0.685 | O7: 3.765 | P7: 900000 | Q7: 4.5 | R7: =Q7*'Emission Factors'!$L$1/1000 -> 15.354 | S7: 170 | T7: 28000 | U7: 14 | V7: 29 | W7: 0.33 | X7: 20
A8: Office | B8: 3 | C8: Major Renovation (Deep Retrofit) Package | D8: Hot & Humid | E8: 697000 | F8: 115000 | G8: 1500 | H8: 117000 | I8: 6 | J8: 227000 | K8: 3.485 | L8: 0.575 | M8: =IF(G8<>0,G8/$D$2,0) -> 0.0075 | N8: =H8/$D$2 -> 0.585 | O8: 1.135 | P8: 1520000 | Q8: 7.6 | R8: =Q8*'Emission Factors'!$L$1/1000 -> 25.9312 | S8: 290 | T8: 28000 | U8: 14 | V8: 40 | W8: 0.45 | X8: 20
A10: Office | B10: 4 | C10: Install occupancy sensors for lighting | D10: Hot & Humid | E10: 75609 | F10: 9792 | G10: -652 | H10: 9140 | I10: 8 | J10: 11485 | K10: =E10/$D$2 -> 0.378045 | L10: =F10/$D$2 -> 0.04896 | M10: =IF(G10<>0,G10/$D$2,0) -> -0.00326 | N10: =H10/$D$2 -> 0.0457 | O10: 0.057425 | P10: 108944 | Q10: 0.54472 | R10: =Q10*'Emission Factors'!$L$1/1000 -> 1.85858464 | S10: 32 | T10: -1174 | U10: -0.587 | V10: 1.3 | W10: 0.017 | X10: 10
A11: Office | B11: 5 | C11: Install daylight harvesting sensors | D11: Hot & Humid | E11: 109452 | F11: 17085 | G11: -1304 | H11: 15782 | I11: 7 | J11: 72057 | K11: 0.54726 | L11: 0.085425 | M11: -0.00652 | N11: 0.07891 | O11: 0.360285 | P11: 177969 | Q11: 0.889845 | R11: =Q11*'Emission Factors'!$L$1/1000 -> 3.03615114 | S11: 82 | T11: -3110 | U11: -1.555 | V11: 1.5 | W11: 0.02 | X11: 20
A12: Office | B12: 6 | C12: Exterior light fixture upgrade, light level reduction, and controls. | D12: Hot & Humid | E12: 87534 | F12: 5840 | G12: 0 | H12: 5840 | I12: 16 | J12: -8221 | K12: 0.43767 | L12: 0.0292 | M12: 0 | N12: 0.0292 | O12: -0.041105 | P12: 100314 | Q12: 0.50157 | R12: =Q12*'Emission Factors'!$L$1/1000 -> 1.71135684 | S12: 0 | T12: 0 | U12: 0 | V12: 1.7 | W12: 0.023 | X12: 7
A13: Office | B13: 7 | C13: Implement seasonal temperature setpoints (69°F heating setpoint, 75°F cooling setpoint) (pneumatic zone controls) | D13: Hot & Humid | E13: 63390 | F13: 17075 | G13: 0 | H13: 17075 | I13: 4 | J13: 153357 | K13: 0.31695 | L13: 0.085375 | M13: 0 | N13: 0.085375 | O13: 0.766785 | P13: 60669 | Q13: 0.303345 | R13: =Q13*'Emission Factors'!$L$1/1000 -> 1.03501314 | S13: 40 | T13: 8899 | U13: 4.4495 | V13: 5.5 | W13: 0.073 | X13: 13
A14: Office | B14: 8 | C14: Reduce ventilation during unoccupied periods (pneumatic zone controls) | D14: Hot & Humid | E14: 36684 | F14: 17654 | G14: -2173 | H14: 15481 | I14: 2 | J14: 141767 | K14: 0.18342 | L14: 0.08827 | M14: -0.010865 | N14: 0.077405 | O14: 0.708835 | P14: 131397 | Q14: 0.656985 | R14: =Q14*'Emission Factors'!$L$1/1000 -> 2.24163282 | S14: 2 | T14: 8029 | U14: 4.0145 | V14: 6.3 | W14: 0.083 | X14: 13
A15: Office | B15: 9 | C15: Implement seasonal temperature setpoints (69°F heating setpoint, 75°F cooling setpoint) (DDC zone controls) | D15: Hot & Humid | E15: 36684 | F15: 17654 | G15: -2173 | H15: 15481 | I15: 2 | J15: 141767 | K15: 0.18342 | L15: 0.08827 | M15: -0.010865 | N15: 0.077405 | O15: 0.708835 | P15: 131397 | Q15: 0.656985 | R15: =Q15*'Emission Factors'!$L$1/1000 -> 2.24163282 | S15: 2 | T15: 8029 | U15: 4.0145 | V15: 6.3 | W15: 0.083 | X15: 13
A16: Office | B16: 10 | C16: Reduce ventilation during unoccupied periods (DDC zone controls) | D16: Hot & Humid | E16: 226887 | F16: 30339 | G16: 4345 | H16: 34684 | I16: 7 | J16: 132594 | K16: 1.134435 | L16: 0.151695 | M16: 0.021725 | N16: 0.17342 | O16: 0.66297 | P16: 278675 | Q16: 1.393375 | R16: =Q16*'Emission Factors'!$L$1/1000 -> 4.7541955 | S16: 31 | T16: 8030 | U16: 4.015 | V16: 8.8 | W16: 0.117 | X16: 13
A17: Office | B17: 11 | C17: Replace supply fan motor and variable frequency drive | D17: Hot & Humid | E17: 42490 | F17: 11505 | G17: 0 | H17: 11505 | I17: 4 | J17: 43717 | K17: 0.21245 | L17: 0.057525 | M17: 0 | N17: 0.057525 | O17: 0.218585 | P17: 120097 | Q17: 0.600485 | R17: =Q17*'Emission Factors'!$L$1/1000 -> 2.04885482 | S17: 32 | T17: -8 | U17: -0.004 | V17: 2 | W17: 0.027 | X17: 15
A18: Office | B18: 12 | C18: Increase efficiency of condenser water system by adding VFDs and lowering supply temperature | D18: Hot & Humid | E18: 37153 | F18: 2551 | G18: -217 | H18: 2334 | I18: 16 | J18: -17287 | K18: 0.185765 | L18: 0.012755 | M18: -0.001085 | N18: 0.01167 | O18: -0.086435 | P18: 39053 | Q18: 0.195265 | R18: =Q18*'Emission Factors'!$L$1/1000 -> 0.66624418 | S18: 0 | T18: 0 | U18: 0 | V18: 0.7 | W18: 0.009 | X18: 15
A19: Office | B19: 13 | C19: Replace the tenant server room cooling units with more efficient units | D19: Hot & Humid | E19: 53822 | F19: 3520 | G19: 0 | H19: 3520 | I19: 15 | J19: -2092 | K19: 0.26911 | L19: 0.0176 | M19: 0 | N19: 0.0176 | O19: -0.01046 | P19: 44992 | Q19: 0.22496 | R19: =Q19*'Emission Factors'!$L$1/1000 -> 0.76756352 | S19: 6 | T19: 0 | U19: 0 | V19: 0.8 | W19: 0.01 | X19: 15
A20: Office | B20: 1 | C20: RCx (EBCx) Package | D20: Hot & Dry | E20: 61100 | F20: 60600 | G20: 0 | H20: 60600 | I20: 1 | J20: 495000 | K20: 0.3055 | L20: 0.303 | M20: 0 | N20: 0.303 | O20: 2.475 | P20: 497000 | Q20: 2.485 | R20: =Q20*'Emission Factors'!$L$1/1000 -> 8.47882 | S20: 4 | T20: 26000 | U20: 13 | V20: 21 | W20: 0.22 | X20: 20
A21: Office | B21: 2 | C21: Standard Retrofit Package | D21: Hot & Dry | E21: 426000 | F21: 192000 | G21: -4900 | H21: 187000 | I21: 2 | J21: 1220000 | K21: 2.13 | L21: 0.96 | M21: -0.0245 | N21: 0.935 | O21: 6.1 | P21: 1110000 | Q21: 5.55 | R21: =Q21*'Emission Factors'!$L$1/1000 -> 18.9366 | S21: 170 | T21: 39000 | U21: 19.5 | V21: 39 | W21: 0.4 | X21: 20
A22: Office | B22: 3 | C22: Major Renovation (Deep Retrofit) Package | D22: Hot & Dry | E22: 890000 | F22: 159000 | G22: 1800 | H22: 161000 | I22: 6 | J22: 422000 | K22: 4.45 | L22: 0.795 | M22: 0.009 | N22: 0.805 | O22: 2.11 | P22: 1780000 | Q22: 8.9 | R22: =Q22*'Emission Factors'!$L$1/1000 -> 30.3668 | S22: 470 | T22: 41000 | U22: 20.5 | V22: 51 | W22: 0.52 | X22: 20
A23: Office | B23: 4 | C23: Install occupancy sensors for lighting | D23: Hot & Dry | E23: 76289 | F23: 8168 | G23: -765 | H23: 7403 | I23: 10 | J23: -11024 | K23: 0.381445 | L23: 0.04084 | M23: -0.003825 | N23: 0.037015 | O23: -0.05512 | P23: 104944 | Q23: 0.52472 | R23: =Q23*'Emission Factors'!$L$1/1000 -> 1.79034464 | S23: 35 | T23: -1432 | U23: -0.716 | V23: 1.1 | W23: 0.014 | X23: 10
A24: Office | B24: 5 | C24: Install daylight harvesting sensors | D24: Hot & Dry | E24: 110436 | F24: 14119 | G24: -1446 | H24: 12674 | I24: 9 | J24: 35503 | K24: 0.55218 | L24: 0.070595 | M24: -0.00723 | N24: 0.06337 | O24: 0.177515 | P24: 173328 | Q24: 0.86664 | R24: =Q24*'Emission Factors'!$L$1/1000 -> 2.95697568 | S24: 78 | T24: -3538 | U24: -1.769 | V24: 1.2 | W24: 0.016 | X24: 20
A25: Office | B25: 6 | C25: Exterior light fixture upgrade, light level reduction, and controls. | D25: Hot & Dry | E25: 88321 | F25: 6241 | G25: 0 | H25: 6241 | I25: 15 | J25: -4691 | K25: 0.441605 | L25: 0.031205 | M25: 0 | N25: 0.031205 | O25: -0.023455 | P25: 97369 | Q25: 0.486845 | R25: =Q25*'Emission Factors'!$L$1/1000 -> 1.66111514 | S25: 0 | T25: 0 | U25: 0 | V25: 1.7 | W25: 0.022 | X25: 7
A26: Office | B26: 7 | C26: Implement seasonal temperature setpoints (69°F heating setpoint, 75°F cooling setpoint) (pneumatic zone controls) | D26: Hot & Dry | E26: 63960 | F26: 24242 | G26: 0 | H26: 24242 | I26: 3 | J26: 235125 | K26: 0.3198 | L26: 0.12121 | M26: 0 | N26: 0.12121 | O26: 1.175625 | P26: 69294 | Q26: 0.34647 | R26: =Q26*'Emission Factors'!$L$1/1000 -> 1.18215564 | S26: 133 | T26: 10333 | U26: 5.1665 | V26: 6.3 | W26: 0.084 | X26: 13
A27: Office | B27: 8 | C27: Reduce ventilation during unoccupied periods (pneumatic zone controls) | D27: Hot & Dry | E27: 37014 | F27: 20065 | G27: -2550 | H27: 17514 | I27: 2 | J27: 164915 | K27: 0.18507 | L27: 0.100325 | M27: -0.01275 | N27: 0.08757 | O27: 0.824575 | P27: 147031 | Q27: 0.735155 | R27: =Q27*'Emission Factors'!$L$1/1000 -> 2.50834886 | S27: 1 | T27: 9054 | U27: 4.527 | V27: 7 | W27: 0.093 | X27: 13
A28: Office | B28: 9 | C28: Implement seasonal temperature setpoints (69°F heating setpoint, 75°F cooling setpoint) (DDC zone controls) | D28: Hot & Dry | E28: 37014 | F28: 20065 | G28: -2550 | H28: 17514 | I28: 2 | J28: 164915 | K28: 0.18507 | L28: 0.100325 | M28: -0.01275 | N28: 0.08757 | O28: 0.824575 | P28: 147031 | Q28: 0.735155 | R28: =Q28*'Emission Factors'!$L$1/1000 -> 2.50834886 | S28: 1 | T28: 9054 | U28: 4.527 | V28: 7 | W28: 0.093 | X28: 13
A29: Office | B29: 10 | C29: Reduce ventilation during unoccupied periods (DDC zone controls) | D29: Hot & Dry | E29: 228927 | F29: 33495 | G29: 5100 | H29: 38595 | I29: 6 | J29: 168757 | K29: 1.144635 | L29: 0.167475 | M29: 0.0255 | N29: 0.192975 | O29: 0.843785 | P29: 318300 | Q29: 1.5915 | R29: =Q29*'Emission Factors'!$L$1/1000 -> 5.430198 | S29: 13 | T29: 9016 | U29: 4.508 | V29: 9.9 | W29: 0.131 | X29: 13
A30: Office | B30: 11 | C30: Replace supply fan motor and variable frequency drive | D30: Hot & Dry | E30: 45189 | F30: 15235 | G30: 0 | H30: 15235 | I30: 3 | J30: 65114 | K30: 0.225945 | L30: 0.076175 | M30: 0 | N30: 0.076175 | O30: 0.32557 | P30: 153133 | Q30: 0.765665 | R30: =Q30*'Emission Factors'!$L$1/1000 -> 2.61244898 | S30: 72 | T30: -15 | U30: -0.0075 | V30: 2.6 | W30: 0.034 | X30: 15
A31: Office | B31: 12 | C31: Increase efficiency of condenser water system by adding VFDs and lowering supply temperature | D31: Hot & Dry | E31: 45190 | F31: 7561 | G31: -241 | H31: 7320 | I31: 6 | J31: 30189 | K31: 0.22595 | L31: 0.037805 | M31: -0.001205 | N31: 0.0366 | O31: 0.150945 | P31: 82375 | Q31: 0.411875 | R31: =Q31*'Emission Factors'!$L$1/1000 -> 1.4053175 | S31: 17 | T31: 0 | U31: 0 | V31: 1.4 | W31: 0.019 | X31: 15
A32: Office | B32: 13 | C32: Replace the tenant server room cooling units with more efficient units | D32: Hot & Dry | E32: 54306 | F32: 4007 | G32: 0 | H32: 4007 | I32: 14 | J32: 3095 | K32: 0.27153 | L32: 0.020035 | M32: 0 | N32: 0.020035 | O32: 0.015475 | P32: 50719 | Q32: 0.253595 | R32: =Q32*'Emission Factors'!$L$1/1000 -> 0.86526614 | S32: 8 | T32: 0 | U32: 0 | V32: 0.9 | W32: 0.011 | X32: 15
A33: Office | B33: 1 | C33: RCx (EBCx) Package | D33: Marine | E33: 61100 | F33: 72000 | G33: 0 | H33: 72000 | I33: 1 | J33: 613000 | K33: 0.3055 | L33: 0.36 | M33: 0 | N33: 0.36 | O33: 3.065 | P33: 410000 | Q33: 2.05 | R33: =Q33*'Emission Factors'!$L$1/1000 -> 6.9946 | S33: 0 | T33: 37000 | U33: 18.5 | V33: 26 | W33: 0.27 | X33: 20
A34: Office | B34: 2 | C34: Standard Retrofit Package | D34: Marine | E34: 439000 | F34: 204000 | G34: -4800 | H34: 199000 | I34: 2 | J34: 1320000 | K34: 2.195 | L34: 1.02 | M34: -0.024 | N34: 0.995 | O34: 6.6 | P34: 876000 | Q34: 4.38 | R34: =Q34*'Emission Factors'!$L$1/1000 -> 14.94456 | S34: 150 | T34: 51000 | U34: 25.5 | V34: 40 | W34: 0.43 | X34: 20
A35: Office | B35: 3 | C35: Major Renovation (Deep Retrofit) Package | D35: Marine | E35: 918000 | F35: 159000 | G35: 2800 | H35: 162000 | I35: 6 | J35: 369000 | K35: 4.59 | L35: 0.795 | M35: 0.014 | N35: 0.81 | O35: 1.845 | P35: 1250000 | Q35: 6.25 | R35: =Q35*'Emission Factors'!$L$1/1000 -> 21.325 | S35: 240 | T35: 57000 | U35: 28.5 | V35: 60 | W35: 0.53 | X35: 20
A36: Office | B36: 4 | C36: Install occupancy sensors for lighting | D36: Marine | E36: 79008 | F36: 8118 | G36: -750 | H36: 7368 | I36: 11 | J36: -14900 | K36: 0.39504 | L36: 0.04059 | M36: -0.00375 | N36: 0.03684 | O36: -0.0745 | P36: 97686 | Q36: 0.48843 | R36: =Q36*'Emission Factors'!$L$1/1000 -> 1.66652316 | S36: 29 | T36: -1652 | U36: -0.826 | V36: 0.8 | W36: 0.012 | X36: 10
A37: Office | B37: 5 | C37: Install daylight harvesting sensors | D37: Marine | E37: 114372 | F37: 10567 | G37: -1500 | H37: 9067 | I37: 13 | J37: -9755 | K37: 0.57186 | L37: 0.052835 | M37: -0.0075 | N37: 0.045335 | O37: -0.048775 | P37: 141075 | Q37: 0.705375 | R37: =Q37*'Emission Factors'!$L$1/1000 -> 2.4067395 | S37: 68 | T37: -4335 | U37: -2.1675 | V37: 0.2 | W37: 0.003 | X37: 20
A38: Office | B38: 6 | C38: Exterior light fixture upgrade, light level reduction, and controls. | D38: Marine | E38: 91469 | F38: 7023 | G38: 0 | H38: 7023 | I38: 14 | J38: 1281 | K38: 0.457345 | L38: 0.035115 | M38: 0 | N38: 0.035115 | O38: 0.006405 | P38: 97572 | Q38: 0.48786 | R38: =Q38*'Emission Factors'!$L$1/1000 -> 1.66457832 | S38: 0 | T38: 0 | U38: 0 | V38: 1.7 | W38: 0.024 | X38: 7
A39: Office | B39: 7 | C39: Implement seasonal temperature setpoints (69°F heating setpoint, 75°F cooling setpoint) (pneumatic zone controls) | D39: Marine | E39: 66240 | F39: 14970 | G39: 0 | H39: 14970 | I39: 4 | J39: 127307 | K39: 0.3312 | L39: 0.07485 | M39: 0 | N39: 0.07485 | O39: =J39/$D$2 -> 0.636535 | P39: 19314 | Q39: =P39/$D$2 -> 0.09657 | R39: =Q39*'Emission Factors'!$L$1/1000 -> 0.32949684 | S39: 24 | T39: 11063 | U39: =IF(T39<>0,T39*100/$D$2,0) -> 5.5315 | V39: 5.9 | W39: 0.086 | X39: 13
A40: Office | B40: 8 | C40: Reduce ventilation during unoccupied periods (pneumatic zone controls) | D40: Marine | E40: 38333 | F40: 18480 | G40: -2500 | H40: 15980 | I40: 2 | J40: 145985 | K40: 0.191665 | L40: 0.0924 | M40: -0.0125 | N40: 0.0799 | O40: 0.729925 | P40: 105708 | Q40: 0.52854 | R40: =Q40*'Emission Factors'!$L$1/1000 -> 1.80337848 | S40: -42 | T40: 8549 | U40: 4.2745 | V40: 6.1 | W40: 0.089 | X40: 13
A41: Office | B41: 9 | C41: Implement seasonal temperature setpoints (69°F heating setpoint, 75°F cooling setpoint) (DDC zone controls) | D41: Marine | E41: 38333 | F41: 18480 | G41: -2500 | H41: 15980 | I41: 2 | J41: 145985 | K41: 0.191665 | L41: 0.0924 | M41: -0.0125 | N41: 0.0799 | O41: 0.729925 | P41: 105708 | Q41: 0.52854 | R41: =Q41*'Emission Factors'!$L$1/1000 -> 1.80337848 | S41: -42 | T41: 8549 | U41: 4.2745 | V41: 6.1 | W41: 0.089 | X41: 13
A42: Office | B42: 10 | C42: Reduce ventilation during unoccupied periods (DDC zone controls) | D42: Marine | E42: 237086 | F42: 29838 | G42: 5000 | H42: 34838 | I42: 7 | J42: 118403 | K42: =E42/$D$2 -> 1.18543 | L42: =F42/$D$2 -> 0.14919 | M42: =IF(G42<>0,G42/$D$2,0) -> 0.025 | N42: =H42/$D$2 -> 0.17419 | O42: 0.592015 | P42: 228714 | Q42: 1.14357 | R42: =Q42*'Emission Factors'!$L$1/1000 -> 3.90186084 | S42: -26 | T42: 8477 | U42: 4.2385 | V42: 8.1 | W42: 0.119 | X42: 13
A43: Office | B43: 11 | C43: Replace supply fan motor and variable frequency drive | D43: Marine | E43: 37368 | F43: 11243 | G43: 0 | H43: 11243 | I43: 3 | J43: 45430 | K43: 0.18684 | L43: 0.056215 | M43: 0 | N43: 0.056215 | O43: 0.22715 | P43: 116283 | Q43: 0.581415 | R43: =Q43*'Emission Factors'!$L$1/1000 -> 1.98378798 | S43: 34 | T43: -9 | U43: -0.0045 | V43: 2 | W43: 0.029 | X43: 15
A44: Office | B44: 12 | C44: Increase efficiency of condenser water system by adding VFDs and lowering supply temperature | D44: Marine | E44: 42298 | F44: 2682 | G44: -250 | H44: 2432 | I44: 18 | J44: -22393 | K44: 0.21149 | L44: 0.01341 | M44: -0.00125 | N44: 0.01216 | O44: -0.111965 | P44: 21503 | Q44: 0.107515 | R44: =Q44*'Emission Factors'!$L$1/1000 -> 0.36684118 | S44: 12 | T44: 0 | U44: 0 | V44: 0.4 | W44: 0.005 | X44: 15
A45: Office | B45: 13 | C45: Replace the tenant server room cooling units with more efficient units | D45: Marine | E45: 56242 | F45: 3937 | G45: 0 | H45: 3937 | I45: 14 | J45: 768 | K45: 0.28121 | L45: 0.019685 | M45: 0 | N45: 0.019685 | O45: 0.00384 | P45: 46108 | Q45: 0.23054 | R45: =Q45*'Emission Factors'!$L$1/1000 -> 0.78660248 | S45: 7 | T45: 0 | U45: 0 | V45: 0.8 | W45: 0.012 | X45: 15
A46: Office | B46: 1 | C46: RCx (EBCx) Package | D46: Cold | E46: 61100 | F46: 63200 | G46: 0 | H46: 63200 | I46: 1 | J46: 522000 | K46: 0.3055 | L46: 0.316 | M46: 0 | N46: 0.316 | O46: 2.61 | P46: 341000 | Q46: 1.705 | R46: =Q46*'Emission Factors'!$L$1/1000 -> 5.81746 | S46: -20 | T46: 30000 | U46: 15 | V46: 20 | W46: 0.24 | X46: 20
A47: Office | B47: 2 | C47: Standard Retrofit Package | D47: Cold | E47: 439000 | F47: 192000 | G47: -5300 | H47: 187000 | I47: 2 | J47: 1200000 | K47: 2.195 | L47: 0.96 | M47: -0.0265 | N47: 0.935 | O47: 6 | P47: 806000 | Q47: 4.03 | R47: =Q47*'Emission Factors'!$L$1/1000 -> 13.75036 | S47: 310 | T47: 39000 | U47: 19.5 | V47: 33 | W47: 0.39 | X47: 20
A48: Office | B48: 3 | C48: Major Renovation (Deep Retrofit) Package | D48: Cold | E48: 885000 | F48: 151000 | G48: 1900 | H48: 153000 | I48: 6 | J48: 302000 | K48: 4.425 | L48: 0.755 | M48: 0.0095 | N48: 0.765 | O48: 1.51 | P48: 1170000 | Q48: 5.85 | R48: =Q48*'Emission Factors'!$L$1/1000 -> 19.9602 | S48: 410 | T48: 44000 | U48: 22 | V48: 42 | W48: 0.49 | X48: 20
A49: Office | B49: 4 | C49: Install occupancy sensors for lighting | D49: Cold | E49: 74778 | F49: 11089 | G49: -832 | H49: 10257 | I49: 7 | J49: 20236 | K49: 0.37389 | L49: 0.055445 | M49: -0.00416 | N49: 0.051285 | O49: 0.10118 | P49: 99419 | Q49: 0.497095 | R49: =Q49*'Emission Factors'!$L$1/1000 -> 1.69608814 | S49: 31 | T49: -1632 | U49: -0.816 | V49: 0.9 | W49: 0.013 | X49: 10
A50: Office | B50: 5 | C50: Install daylight harvesting sensors | D50: Cold | E50: 108249 | F50: 14659 | G50: -1663 | H50: 12996 | I50: 8 | J50: 41478 | K50: 0.541245 | L50: 0.073295 | M50: -0.008315 | N50: 0.06498 | O50: 0.20739 | P50: 156231 | Q50: 0.781155 | R50: =Q50*'Emission Factors'!$L$1/1000 -> 2.66530086 | S50: 69 | T50: -4384 | U50: -2.192 | V50: 0.5 | W50: 0.007 | X50: 20
A51: Office | B51: 6 | C51: Exterior light fixture upgrade, light level reduction, and controls. | D51: Cold | E51: 86572 | F51: 9075 | G51: 0 | H51: 9075 | I51: 10 | J51: 28823 | K51: 0.43286 | L51: 0.045375 | M51: 0 | N51: 0.045375 | O51: 0.144115 | P51: 97442 | Q51: 0.48721 | R51: =Q51*'Emission Factors'!$L$1/1000 -> 1.66236052 | S51: 0 | T51: 0 | U51: 0 | V51: 1.7 | W51: 0.025 | X51: 7
A52: Office | B52: 7 | C52: Implement seasonal temperature setpoints (69°F heating setpoint, 75°F cooling setpoint) (pneumatic zone controls) | D52: Cold | E52: 62694 | F52: 15324 | G52: 0 | H52: 15324 | I52: 4 | J52: 133702 | K52: 0.31347 | L52: 0.07662 | M52: 0 | N52: 0.07662 | O52: 0.66851 | P52: 23206 | Q52: 0.11603 | R52: =Q52*'Emission Factors'!$L$1/1000 -> 0.39589436 | S52: 182 | T52: 8971 | U52: 4.4855 | V52: 4.9 | W52: 0.074 | X52: 13
A53: Office | B53: 8 | C53: Reduce ventilation during unoccupied periods (pneumatic zone controls) | D53: Cold | E53: 36281 | F53: 15387 | G53: -2772 | H53: 12615 | I53: 3 | J53: 109575 | K53: 0.181405 | L53: 0.076935 | M53: -0.01386 | N53: 0.063075 | O53: 0.547875 | P53: 83989 | Q53: 0.419945 | R53: =Q53*'Emission Factors'!$L$1/1000 -> 1.43285234 | S53: 0 | T53: 6457 | U53: 3.2285 | V53: 4.7 | W53: 0.071 | X53: 13
A54: Office | B54: 9 | C54: Implement seasonal temperature setpoints (69°F heating setpoint, 75°F cooling setpoint) (DDC zone controls) | D54: Cold | E54: 36281 | F54: 15387 | G54: -2772 | H54: 12615 | I54: 3 | J54: 109575 | K54: 0.181405 | L54: 0.076935 | M54: -0.01386 | N54: 0.063075 | O54: 0.547875 | P54: 83989 | Q54: 0.419945 | R54: =Q54*'Emission Factors'!$L$1/1000 -> 1.43285234 | S54: 0 | T54: 6457 | U54: 3.2285 | V54: 4.7 | W54: 0.071 | X54: 13
A55: Office | B55: 10 | C55: Reduce ventilation during unoccupied periods (DDC zone controls) | D55: Cold | E55: 224393 | F55: 29251 | G55: 5545 | H55: 34796 | I55: 7 | J55: 125832 | K55: 1.121965 | L55: 0.146255 | M55: 0.027725 | N55: 0.17398 | O55: 0.62916 | P55: 205519 | Q55: 1.027595 | R55: =Q55*'Emission Factors'!$L$1/1000 -> 3.50615414 | S55: 1 | T55: 6133 | U55: 3.0665 | V55: 6.6 | W55: 0.1 | X55: 13
A56: Office | B56: 11 | C56: Replace supply fan motor and variable frequency drive | D56: Cold | E56: 30665 | F56: 11796 | G56: 0 | H56: 11796 | I56: 3 | J56: 53234 | K56: 0.153325 | L56: 0.05898 | M56: 0 | N56: 0.05898 | O56: 0.26617 | P56: 99542 | Q56: 0.49771 | R56: =Q56*'Emission Factors'!$L$1/1000 -> 1.69818652 | S56: 69 | T56: -35 | U56: -0.0175 | V56: 1.7 | W56: 0.026 | X56: 15
A57: Office | B57: 12 | C57: Increase efficiency of condenser water system by adding VFDs and lowering supply temperature | D57: Cold | E57: 46189 | F57: 2950 | G57: -277 | H57: 2673 | I57: 17 | J57: -24357 | K57: 0.230945 | L57: 0.01475 | M57: -0.001385 | N57: 0.013365 | O57: -0.121785 | P57: 23092 | Q57: 0.11546 | R57: =Q57*'Emission Factors'!$L$1/1000 -> 0.39394952 | S57: 15 | T57: 0 | U57: 0 | V57: 0.4 | W57: 0.005 | X57: 15
A58: Office | B58: 13 | C58: Replace the tenant server room cooling units with more efficient units | D58: Cold | E58: 51091 | F58: 5100 | G58: 0 | H58: 5100 | I58: 10 | J58: 18124 | K58: 0.255455 | L58: 0.0255 | M58: 0 | N58: 0.0255 | O58: 0.09062 | P58: 48903 | Q58: 0.244515 | R58: =Q58*'Emission Factors'!$L$1/1000 -> 0.83428518 | S58: 7 | T58: 0 | U58: 0 | V58: 0.8 | W58: 0.013 | X58: 15
A59: Office | B59: 1 | C59: RCx (EBCx) Package | D59: Very Cold | E59: 61100 | F59: 57100 | G59: 0 | H59: 57100 | I59: 1 | J59: 459000 | K59: 0.3055 | L59: 0.2855 | M59: 0 | N59: 0.2855 | O59: 2.295 | P59: 338000 | Q59: 1.69 | R59: =Q59*'Emission Factors'!$L$1/1000 -> 5.76628 | S59: -60 | T59: 34000 | U59: 17 | V59: 23 | W59: 0.25 | X59: 20
A60: Office | B60: 2 | C60: Standard Retrofit Package | D60: Very Cold | E60: 417000 | F60: 169000 | G60: -4800 | H60: 164000 | I60: 3 | J60: 1020000 | K60: 2.085 | L60: 0.845 | M60: -0.024 | N60: 0.82 | O60: 5.1 | P60: 788000 | Q60: 3.94 | R60: =Q60*'Emission Factors'!$L$1/1000 -> 13.44328 | S60: 250 | T60: 41000 | U60: 20.5 | V60: 34 | W60: 0.38 | X60: 20
A61: Office | B61: 3 | C61: Major Renovation (Deep Retrofit) Package | D61: Very Cold | E61: 837000 | F61: 135000 | G61: 2500 | H61: 137000 | I61: 6 | J61: 211000 | K61: 4.185 | L61: 0.675 | M61: 0.0125 | N61: 0.685 | O61: 1.055 | P61: 1150000 | Q61: 5.75 | R61: =Q61*'Emission Factors'!$L$1/1000 -> 19.619 | S61: 340 | T61: 49000 | U61: 24.5 | V61: 44 | W61: 0.49 | X61: 20
A63: Office | B63: 4 | C63: Install occupancy sensors for lighting | D63: Very Cold | E63: 74476 | F63: 9907 | G63: -757 | H63: 9150 | I63: 8 | J63: 9865 | K63: =E63/$D$2 -> 0.37238 | L63: =F63/$D$2 -> 0.049535 | M63: =IF(G63<>0,G63/$D$2,0) -> -0.003785 | N63: =H63/$D$2 -> 0.04575 | O63: 0.049325 | P63: 96844 | Q63: 0.48422 | R63: =Q63*'Emission Factors'!$L$1/1000 -> 1.65215864 | S63: 43 | T63: -1901 | U63: -0.9505 | V63: 0.7 | W63: 0.01 | X63: 10
A64: Office | B64: 5 | C64: Install daylight harvesting sensors | D64: Very Cold | E64: 107811 | F64: 13599 | G64: -1514 | H64: 12085 | I64: 9 | J64: 31404 | K64: 0.539055 | L64: 0.067995 | M64: -0.00757 | N64: 0.060425 | O64: 0.15702 | P64: 149806 | Q64: 0.74903 | R64: =Q64*'Emission Factors'!$L$1/1000 -> 2.55569036 | S64: 121 | T64: -4761 | U64: -2.3805 | V64: 0.2 | W64: 0.003 | X64: 20
A65: Office | B65: 6 | C65: Exterior light fixture upgrade, light level reduction, and controls. | D65: Very Cold | E65: 86222 | F65: 8685 | G65: 0 | H65: 8685 | I65: 10 | J65: 25048 | K65: 0.43111 | L65: 0.043425 | M65: 0 | N65: 0.043425 | O65: 0.12524 | P65: 97644 | Q65: 0.48822 | R65: =Q65*'Emission Factors'!$L$1/1000 -> 1.66580664 | S65: 0 | T65: 0 | U65: 0 | V65: 1.7 | W65: 0.025 | X65: 7
A66: Office | B66: 7 | C66: Implement seasonal temperature setpoints (69°F heating setpoint, 75°F cooling setpoint) (pneumatic zone controls) | D66: Very Cold | E66: 62440 | F66: 10934 | G66: 0 | H66: 10934 | I66: 6 | J66: 83563 | K66: 0.3122 | L66: 0.05467 | M66: 0 | N66: 0.05467 | O66: 0.417815 | P66: 18553 | Q66: 0.092765 | R66: =Q66*'Emission Factors'!$L$1/1000 -> 0.31651418 | S66: 173 | T66: 8324 | U66: 4.162 | V66: 4.5 | W66: 0.066 | X66: 13
A67: Office | B67: 8 | C67: Reduce ventilation during unoccupied periods (pneumatic zone controls) | D67: Very Cold | E67: 36134 | F67: 12263 | G67: -2524 | H67: 9739 | I67: 4 | J67: 76643 | K67: 0.18067 | L67: 0.061315 | M67: -0.01262 | N67: 0.048695 | O67: 0.383215 | P67: 85911 | Q67: 0.429555 | R67: =Q67*'Emission Factors'!$L$1/1000 -> 1.46564166 | S67: 0 | T67: 5274 | U67: 2.637 | V67: 4.1 | W67: 0.06 | X67: 13
A68: Office | B68: 9 | C68: Implement seasonal temperature setpoints (69°F heating setpoint, 75°F cooling setpoint) (DDC zone controls) | D68: Very Cold | E68: 36134 | F68: 12263 | G68: -2524 | H68: 9739 | I68: 4 | J68: 76643 | K68: 0.18067 | L68: 0.061315 | M68: -0.01262 | N68: 0.048695 | O68: 0.383215 | P68: 85911 | Q68: 0.429555 | R68: =Q68*'Emission Factors'!$L$1/1000 -> 1.46564166 | S68: 0 | T68: 5274 | U68: 2.637 | V68: 4.1 | W68: 0.06 | X68: 13
A69: Office | B69: 10 | C69: Reduce ventilation during unoccupied periods (DDC zone controls) | D69: Very Cold | E69: 223487 | F69: 24948 | G69: 5048 | H69: 29995 | I69: 8 | J69: 76066 | K69: 1.117435 | L69: 0.12474 | M69: 0.02524 | N69: 0.149975 | O69: 0.38033 | P69: 209094 | Q69: 1.04547 | R69: =Q69*'Emission Factors'!$L$1/1000 -> 3.56714364 | S69: 22 | T69: 4366 | U69: 2.183 | V69: 5.8 | W69: 0.085 | X69: 13
A70: Office | B70: 11 | C70: Replace supply fan motor and variable frequency drive | D70: Very Cold | E70: 30541 | F70: 11979 | G70: 0 | H70: 11979 | I70: 3 | J70: 54451 | K70: 0.152705 | L70: 0.059895 | M70: 0 | N70: 0.059895 | O70: 0.272255 | P70: 108072 | Q70: 0.54036 | R70: =Q70*'Emission Factors'!$L$1/1000 -> 1.84370832 | S70: 88 | T70: -85 | U70: -0.0425 | V70: 1.8 | W70: 0.027 | X70: 15
A71: Office | B71: 12 | C71: Increase efficiency of condenser water system by adding VFDs and lowering supply temperature | D71: Very Cold | E71: 42414 | F71: 1638 | G71: -252 | H71: 1385 | I71: >20 | J71: -34541 | K71: 0.21207 | L71: 0.00819 | M71: -0.00126 | N71: 0.006925 | O71: -0.172705 | P71: 13158 | Q71: 0.06579 | R71: =Q71*'Emission Factors'!$L$1/1000 -> 0.22447548 | S71: 9 | T71: 0 | U71: 0 | V71: 0.2 | W71: 0.003 | X71: 15
A72: Office | B72: 13 | C72: Replace the tenant server room cooling units with more efficient units | D72: Very Cold | E72: 50884 | F72: 4737 | G72: 0 | H72: 4737 | I72: 11 | J72: 14147 | K72: 0.25442 | L72: 0.023685 | M72: 0 | N72: 0.023685 | O72: =J72/$D$2 -> 0.070735 | P72: 48308 | Q72: 0.24154 | R72: =Q72*'Emission Factors'!$L$1/1000 -> 0.82413448 | S72: 8 | T72: 0 | U72: =T72*100/$D$2 -> 0 | V72: 0.8 | W72: 0.012 | X72: 15
A73: Office | B73: 14 | C73: Install IR heating | D73: Hot & Dry | E73: 100000 | F73: 20000 | G73: 0 | H73: 30000 | I73: 10 | J73: 5000 | K73: =E73/$D$3 -> 0.5 | L73: =F73/$D$3 -> 0.1 | M73: =IF(G73<>0,G73/$D$3,0) -> 0 | N73: =H73/$D$3 -> 0.15 | O73: =J73/$D$3 -> 0.025 | P73: 5000 | Q73: =P73/$D$3 -> 0.025 | R73: =Q73*'Emission Factors'!$L$1/1000 -> 0.0853 | S73: 10 | T73: 25000 | U73: =T73*100/$D$3 -> 12.5 | V73: 0.5 | W73: 0.01 | X73: 10
C74: <Insert user-defined measures> | K74: =E74/$D$3 -> 0 | L74: =F74/$D$3 -> 0 | M74: =IF(G74<>0,G74/$D$3,0) -> 0 | N74: =H74/$D$3 -> 0 | O74: =J74/$D$3 -> 0 | Q74: =P74/$D$3 -> 0 | R74: =Q74*'Emission Factors'!$L$1/1000 -> 0 | U74: =T74*100/$D$3 -> 0
C75: <Insert user-defined measures> | K75: 0 | L75: 0 | M75: 0 | N75: 0 | O75: 0 | Q75: 0 | R75: =Q75*'Emission Factors'!$L$1/1000 -> 0 | U75: 0
C76: <Insert user-defined measures> | K76: 0 | L76: 0 | M76: 0 | N76: 0 | O76: 0 | Q76: 0 | R76: =Q76*'Emission Factors'!$L$1/1000 -> 0 | U76: 0
C77: <Insert user-defined measures> | K77: 0 | L77: 0 | M77: 0 | N77: 0 | O77: 0 | Q77: 0 | R77: =Q77*'Emission Factors'!$L$1/1000 -> 0 | U77: 0

Sheet References
A1: References and Resources
A2: The following resources provided reference data for the analysis contained in this estimator worksheet. Additional GHG reduction resources are available through the Federal Energy Management Program (FEMP) at
A4: DOE - Department of Energy. 2011. Advanced Energy Retrofit Guides Office Buildings. PNNL-20761, Richland, WA. Available at http://www.pnnl.gov/main/publications/external/technical_reports/PNNL-20761.pdf
A5: EPA - Environmental Protection Agency. 2012. Emissions & Generation Resource Integrated Database (eGRID) 2012 Version 1.0. Available at http://www.epa.gov/cleanenergy/documents/egridzips/eGRID2012V1_0_year09_DATA.xls
A6: EIA - Energy Information Administration. 2003. Commercial Building Energy Consumption Survey 2003. Available at http://www.eia.gov/emeu/cbecs/cbecs2003/detailed_tables_2003/detailed_tables_2003.html#consumexpen03
A9: eGRID Region Map
A10: Source: U.S. EPA http://www.epa.gov/cleanenergy/documents/egridzips/eGRID2012_eGRID_subregions.jpg
A37: CBECS Climate Zone Map
A38: Source: U.S. Energy Information Administration (EIA), http://www.eia.gov/emeu/cbecs/climate_zones.html

Sheet Pivot Tables
A1: DO NOT EDIT - This is linked to the 'Summary' worksheet
A2: Row Labels | B2: Sum of Annual GHG Reduction (MTCO2e/year) | C2: Sum of Capital Cost ($) | D2: Sum of Annual Cost Savings ($/year) | E2: Sum of Cumulative GHG Reduction (MTCO2e)
A3: Program B | B3: 4183.709206 | C3: 5766675.4 | D3: 2160640 | E3: 83378.41796
A4: (blank) | B4: 0 | C4: 0 | D4: 0 | E4: 0
A5: Grand Total | B5: 4183.709206 | C5: 5766675.4 | D5: 2160640 | E5: 83378.41796
A25: Row Labels | B25: Sum of Annual GHG Reduction (MTCO2e/year) | C25: Sum of Capital Cost ($) | D25: Sum of Annual Cost Savings ($/year) | E25: Sum of Cumulative GHG Reduction (MTCO2e)
A26: Site 2 | B26: 2073.187275 | C26: 1420175 | D26: 939750 | E26: 41198.14881
A27: Site 3 | B27: 804.0743652 | C27: 2164100.4 | D27: 602140 | E27: 16051.31783
A28: Site 4 | B28: 1306.447566 | C28: 2182400 | D28: 618750 | E28: 26128.95132
A29: (blank) | B29: 0 | C29: 0 | D29: 0 | E29: 0
A30: Grand Total | B30: 4183.709206 | C30: 5766675.4 | D30: 2160640 | E30: 83378.41796
A68: Row Labels | B68: Sum of Annual GHG Reduction (MTCO2e/year) | C68: Sum of Capital Cost ($) | D68: Sum of Annual Cost Savings ($/year) | E68: Sum of Cumulative GHG Reduction (MTCO2e)
A69: Install IR heating | B69: 26.5596685 | C69: 20000 | D69: 6000 | E69: 265.596685
A70: Major Renovation (Deep Retrofit) Package | B70: 690.4546438 | C70: 2123550 | D70: 361350 | E70: 13809.09288
A71: RCx (EBCx) Package | B71: 1964.554984 | C71: 748475 | D71: 685650 | E71: 39291.09967
A72: Standard Retrofit Package | B72: 1496.106016 | C72: 2649850 | D72: 1085200 | E72: 29922.12031
A73: (blank) | B73: 0 | C73: 0 | D73: 0 | E73: 0
A74: Replace the tenant server room cooling units with more efficient units | B74: 6.033894093 | C74: 224800.4 | D74: 22440 | E74: 90.50841139
A75: Grand Total | B75: 4183.709206 | C75: 5766675.4 | D75: 2160640 | E75: 83378.41796

Sheet Emission Factors
A1: eGRID 2012 Emission Factors (2009 Year Data) | K1: Conversion: | L1: 3412 | M1: kBtu/MWh
F2: Baseload Emission Factors
A3: eGRID Subregion | B3: eGRID Subregion Acronym | C3: CO2 (lb/MWh) | D3: CH4 (lb/GWh) | E3: N20 (lb/GWh) | F3: CO2 (kg/MWh) | G3: CH4 (kg/MWh) | H3: N20 (kg/MWh) | I3: CO2e (kg/MWh) | J3: CO2e (kg/kBtu)
A4: ASCC Alaska Grid | B4: AKGD | C4: 1280.86 | D4: 27.737 | E4: 7.6877 | F4: =C4/2.20462 -> 580.989014 | G4: =D4/2.20462/1000 -> 0.01258130653 | H4: =E4/2.20462/1000 -> 0.00348708621 | I4: =F4+(G4*21)+(H4*310) -> 582.3342181 | J4: =I4/$L$1 -> 0.1706723969
A5: ASCC Miscellaneous | B5: AKMS | C5: 521.26 | D5: 21.7818 | E5: 4.2814 | F5: =C5/2.20462 -> 236.43984 | G5: =D5/2.20462/1000 -> 0.009880070035 | H5: =E5/2.20462/1000 -> 0.001942012682 | I5: 237.2493454 | J5: 0.0695338058
A6: WECC Southwest | B6: AZNM | C6: 1191.35 | D6: 19.1317 | E6: 15.5818 | F6: 540.3879127 | G6: 0.008678003465 | H6: 0.007067793996 | I6: 542.7611669 | J6: 0.159074199
A7: WECC California | B7: CAMX | C7: 658.68 | D7: 28.9404 | E7: 6.1653 | F7: 298.7725776 | G7: 0.01312716024 | H7: 0.002796536365 | I7: 299.9151742 | J7: 0.08790010968
A8: ERCOT All | B8: ERCT | C8: 1181.73 | D8: 16.703 | E8: 13.1035 | F8: 536.0243489 | G8: 0.007576362366 | H8: 0.005943654689 | I8: 538.0259854 | J8: 0.1576863967
A9: FRCC All | B9: FRCC | C9: 1176.61 | D9: 39.238 | E9: 13.5329 | F9: 533.7019532 | G9: 0.01779807858 | H9: 0.006138427484 | I9: 535.9786253 | J9: 0.1570863497
A10: HICC Miscellaneous | B10: HIMS | C10: 1351.66 | D10: 72.3986 | E10: 13.8041 | F10: 613.103392 | G10: 0.03283949161 | H10: 0.006261441881 | I10: 615.7340683 | J10: 0.180461333
A11: HICC Oahu | B11: HIOA | C11: 1593.35 | D11: 101.7449 | E11: 21.9805 | F11: 722.7322622 | G11: 0.04615076521 | H11: 0.009970198946 | I11: 726.79219 | J11: 0.2130106067
A12: MRO East | B12: MORE | C12: 1591.65 | D12: 23.9809 | E12: 27.0413 | F12: 721.9611543 | G12: 0.0108775662 | H12: 0.01226574194 | I12: 725.9919632 | J12: 0.2127760736
A13: MRO West | B13: MROW | C13: 1628.6 | D13: 28.7983 | E13: 27.7902 | F13: 738.7214123 | G13: 0.01306270468 | H13: 0.01260543767 | I13: 742.9034148 | J13: 0.2177325366
A14: NPCC New England | B14: NEWE | C14: 728.41 | D14: 75.6842 | E14: 13.855 | F14: 330.4016112 | G14: 0.03432981648 | H14: 0.00628452976 | I14: 333.0707415 | J14: 0.09761745063
A15: WECC Northwest | B15: NWPP | C15: 819.21 | D15: 15.2931 | E15: 12.5004 | F15: 371.5878473 | G15: 0.006936841723 | H15: 0.005670092805 | I15: 373.4912498 | J15: 0.109464024
A16: NPCC NYC/Westchester | B16: NYCW | C16: 610.67 | D16: 23.7509 | E16: 2.8065 | F16: 276.995582 | G16: 0.01077323983 | H16: 0.0012730085 | I16: 277.6164527 | J16: 0.08136472822
A17: NPCC Long Island | B17: NYLI | C17: 1347.99 | D17: 96.8646 | E17: 12.3733 | F17: 611.438706 | G17: 0.04393709574 | H17: 0.005612441146 | I17: 614.1012418 | J17: 0.1799827789
A18: NPCC Upstate NY | B18: NYUP | C18: 497.92 | D18: 15.9389 | E18: 6.7655 | F18: 225.8529815 | G18: 0.007229772024 | H18: 0.003068782829 | I18: 226.9561294 | J18: 0.06651703674
A19: RFC East | B19: RFCE | C19: 947.42 | D19: 26.8381 | E19: 14.9624 | F19: 429.7429943 | G19: 0.01217357186 | H19: 0.006786838548 | I19: 432.1025592 | J19: 0.1266420162
A20: RFC Michigan | B20: RFCM | C20: 1659.46 | D20: 31.409 | E20: 27.8884 | F20: 752.7192895 | G20: 0.01424689969 | H20: 0.0126499805 | I20: 756.9399683 | J20: 0.2218464151
A21: RFC West | B21: RFCW | C21: 1520.59 | D21: 18.119 | E21: 25.1334 | F21: 689.7288422 | G21: 0.008218649926 | H21: 0.01140033203 | I21: 693.4355367 | J21: 0.2032343308
A22: WECC Rockies | B22: RMPA | C22: 1824.51 | D22: 22.249 | E22: 27.1903 | F22: 827.5847992 | G22: 0.01009198864 | H22: 0.01233332729 | I22: 831.6200624 | J22: 0.2437338987
A23: SPP North | B23: SPNO | C23: 1815.76 | D23: 21.0086 | E23: 28.891 | F23: 823.6158612 | G23: 0.009529351997 | H23: 0.01310475275 | I23: 827.878451 | J23: 0.2426372951
A24: SPP South | B24: SPSO | C24: 1599.02 | D24: 23.248 | E24: 21.7875 | F24: 725.304134 | G24: 0.01054512796 | H24: 0.009882655514 | I24: 728.5892049 | J24: 0.2135372816
A25: SERC Mississippi Valley | B25: SRMV | C25: 1002.41 | D25: 19.4476 | E25: 10.6544 | F25: 454.6860683 | G25: 0.008821293466 | H25: 0.004832760294 | I25: 456.3694712 | J25: 0.1337542413
A26: SERC Midwest | B26: SRMW | C26: 1749.75 | D26: 19.5709 | E26: 28.9825 | F26: 793.6741933 | G26: 0.008877221471 | H26: 0.0131462565 | I26: 797.9359545 | J26: 0.2338616514
A27: SERC South | B27: SRSO | C27: 1325.68 | D27: 22.2717 | E27: 20.7755 | F27: 601.3190482 | G27: 0.0101022852 | H27: 0.00942361949 | I27: 604.4525182 | J27: 0.1771548998
A28: SERC Tennessee Valley | B28: SRTV | C28: 1357.71 | D28: 17.277 | E28: 22.0864 | F28: 615.8476291 | G28: 0.007836724696 | H28: 0.01001823443 | I28: 619.117853 | J28: 0.1814530636
A29: SERC Virginia/Carolina | B29: SRVC | C29: 1035.87 | D29: 21.5116 | E29: 17.4468 | F29: 469.8632871 | G29: 0.009757509231 | H29: 0.007913744772 | I29: 472.5214557 | J29: 0.1384881171
A30: U.S. Territories | B30: USTERR | D30: =C30/2.20462 -> 0 | F30: 0 | G30: 0 | H30: 0 | I30: 0 | J30: 0
A31: U.S. National Average | B31: U.S. | C31: 1216.18 | D31: 24.03 | E31: 18.08 | F31: 551.6506246 | G31: 0.01089983761 | H31: 0.008200959803 | I31: 554.4218187 | J31: 0.1624917405
A33: Natural Gas Emission Factors
A34: Source: EPA Mandatory Reporting Rule (MRR)
B35: Default HHV (MMBtu/scf) | F35: CO2 (kg/MMBtu) | G35: CH4 (kg/MMBtu) | H35: N20 (kg/MMBtu) | I35: CO2e (kg/MMBtu) | J35: CO2e (kg/kBtu)
A36: Natural Gas | B36: 0.001028 | F36: 53.02 | G36: 0.001 | H36: 0.0001 | I36: =F36+(G36*21)+(H36*310) -> 53.072 | J36: =I36/1000 -> 0.053072

Sheet Drop down menus
A1: Drop Down Menu Values
A3: Zone
A4: Hot & Humid
A5: Hot & Dry
A6: Marine
A7: Cold
A8: Very Cold
A10: Measure
A11: Default
A12: User-defined Measure
A14: Ease of Implementation
A15: Low
A16: Medium
A17: High
